Workbook

Sheet Home

Sheet 40-now
A1: มหาวิทยาลัยราชภัฏราชนครินทร์
A2: บัญชีรายการค่าเสื่อมราคาและค่าเสื่อมราคาสะสม ครุภัณฑ์ ประจำปีงบประมาณ 2559
A3: =A2+1 ->  | L3: =CONCATENATE(BS3,".",BT3,".",BU3) -> . . | M3: =IF(BV3="จำหน่าย",0,SUM(J3*K3)) ->  | N3: =IF(K3<5000,0,M3) ->  | P3: =DATE(YEAR(C3)+O3,MONTH(C3),DAY(C3)) ->  | Q3: =IF(NOT(OR(ISBLANK(P3),ISBLANK(C3))),P3-C3,"") ->  | R3: =SLN(N3,,O3) ->  | S3: =SLN(R3,,12) ->  | T3: =SLN(N3,,Q3) ->  | U3: =IF(N3=0,0,IF(AE3<=Q3,1,0)) ->  | V3: =SUM(R3*U3/12) ->  | W3: =IF(N3=0,0,IF((R3*AB3)+(R3*AC3/12)>=N3,N3-J3,((R3*AB3)+(R3*AC3/12)))) ->  | X3: =SUM(T3*U3) ->  | Y3: =IF(N3=0,0,IF((DATEDIF(C3,TODAY(),"d")+1)*T3>=N3,N3-J3,(DATEDIF(C3,TODAY(),"d")+1)*T3)) ->  | Z3: =IF(U3=0,0,IF(OR(DAY(C3)=1,MONTH(C3)<>MONTH(TODAY()),YEAR(C3)<>YEAR(TODAY())),T3*((DAY(DATE(YEAR(TODAY()),MONTH(TODAY())+1,1)-1))),T3*((DAY(DATE(YEAR(TODAY()),MONTH(TODAY())+1,1)-1)-DAY(C3)+1)))) ->  | AA3: =IF(N3=0,0,IF(X3>=N3,(J3),(N3-Y3))) ->  | AB3: =DATEDIF(C3,TODAY(),"Y") ->  | AC3: =DATEDIF(C3,TODAY(),"YM") ->  | AD3: =DATEDIF(C3,TODAY(),"md")+1 ->  | AE3: =DATEDIF(C3,TODAY(),"d")+1 ->  | AF3: =IF(N3=0,"No",IF(AE3>Q3,"NO","YES")) ->  | AV3: =100/O3 ->  | BY3: =CONCATENATE(AB3," ปี ",AC3," เดือน ",AD3," วัน ") ->  | BZ3: =A3 -> 
A5: ลำดับที่ | B5: หมายเลขเอกสาร | C5: วันที่ได้มา | D5: ปีงบประมาณ | E5: วิธีการที่ได้มา | F5: ประเภทงบประมาณ | G5: รหัสโครงการ | H5: บริษัท/ร้านค้า | I5: รายการ | J5: จำนวน | K5: ราคาต่อหน่วย | L5: หมายเลขครุภัณฑ์ | M5: ราคาทุนรวม | N5: ราคาทุนที่นำมาคิดค่าเสื่อม | O5: อายุการใช้งาน (ปี) | P5: วันหมดอายุการใช้งาน | Q5: อายุการใช้งาน (วัน) | R5: ค่าเสื่อมราคาต่อปี | S5: ค่าเสื่อมราคาต่อเดือน | T5: ค่าเสื่อมราคาต่อวัน | U5: ระยะเวลาคิดค่าเสื่อมปี 2559 | V5: ค่าเสื่อมราคา เดือนปัจจุบัน | W5: ค่าเสื่อมราคาสะสม (เดือน) | X5: ค่าเสื่อมราคา วันปัจจุบัน | Y5: ค่าเสื่อมราคาสะสม(วัน) | Z5: ค่าเสื่อมราคาเดือนปัจจุบัน (เสื่อมรายวัน) | AA5: มูลค่าสุทธิ | AB5: ใช้ไป (ปี) | AC5: ใช้ไป (เดือน) | AD5: ใช้ไป (วัน) | AE5: จำนวนวันทั้งหมดที่ใช้ไป | AF5: สถานะ | AG5: สมุดทะเบียนคุมเล่มที่ | AH5: สมุดทะเบียนคุมหน้าที่ | AI5: หน่วยงาน | AJ5: สาขา | AK5: ผู้เบิก | AL5: ประเภทครุภัณฑ์ | AM5: หมายเลขเครื่อง | AN5: ลักษณะ/คุณสมบัติ | AO5: รุ่น/แบบ/ขนาด | AP5: ที่อยู่ผู้ขาย | AQ5: เอกสารอ้างอิง | AR5: ใบเสร็จเล่มที่ | AS5: ใบเสร็จเลขที่ | AT5: สัญญาเลขที่ | AU5: เลขที่ใบเบิกพัสดุ | AV5: อัตราค่าเสื่อมราคา % | AW5: หมายเหตุ | AX5: ซ่อมครั้งที่ | AY5: วันที่ซ่อม | AZ5: รายการซ่อม | BA5: จำนวนหน่วย | BB5: จำนวนเงิน | BC5: ร้านที่รับซ่อม | BD5: หมายเหตุเอกสารอ้างอิง | BE5: ซ่อมครั้งที่ | BF5: วันที่ซ่อม | BG5: รายการซ่อม | BH5: จำนวนหน่วย | BI5: จำนวนเงิน | BJ5: ร้านที่รับซ่อม | BK5: หมายเหตุเอกสารอ้างอิง | BL5: ซ่อมครั้งที่ | BM5: วันที่ซ่อม | BN5: รายการซ่อม | BO5: จำนวนหน่วย | BP5: จำนวนเงิน | BQ5: ร้านที่รับซ่อม | BR5: หมายเหตุเอกสารอ้างอิง | BS5: หมวดครุภัณฑ์ | BT5: ประเภทครุภัณฑ์ | BU5: เลขครุภัณฑ์ | BV5: สถานะจำหน่าย | BW5: วันที่จำหน่าย | BX5: วันที่บันทึกข้อมุล | BY5: ใช้งานไปแล้ว | BZ5: ลำดับ
A6: 1 | C6: 1996-10-03 | D6: 40 | I6: เครื่องปรับแรงดันไฟฟ้า 1 ค. | J6: 1 | K6: 64200 | L6: 05.46.36 | M6: =IF(BV6="จำหน่าย",0,SUM(J6*K6)) -> 64200 | N6: =IF(K6<5000,0,M6) -> 64200 | O6: 3 | P6: =DATE(YEAR(C6)+O6,MONTH(C6),DAY(C6)) -> 1999-10-03 | Q6: =IF(NOT(OR(ISBLANK(P6),ISBLANK(C6))),P6-C6,"") -> 1095 | R6: =SLN(N6,,O6) -> 21400 | S6: =SLN(R6,,12) -> 1783.333333 | T6: =SLN(N6,,Q6) -> 58.63013699 | U6: =IF(N6=0,0,IF(AE6<=Q6,1,0)) -> 0 | V6: =SUM(R6*U6/12) -> 0 | W6: =IF(N6=0,0,IF((R6*AB6)+(R6*AC6/12)>=N6,N6-J6,((R6*AB6)+(R6*AC6/12)))) -> 64199 | X6: =SUM(T6*U6) -> 0 | Y6: =IF(N6=0,0,IF((DATEDIF(C6,TODAY(),"d")+1)*T6>=N6,N6-J6,(DATEDIF(C6,TODAY(),"d")+1)*T6)) -> 64199 | Z6: =IF(U6=0,0,IF(OR(DAY(C6)=1,MONTH(C6)<>MONTH(TODAY()),YEAR(C6)<>YEAR(TODAY())),T6*((DAY(DATE(YEAR(TODAY()),MONTH(TODAY())+1,1)-1))),T6*((DAY(DATE(YEAR(TODAY()),MONTH(TODAY())+1,1)-1)-DAY(C6)+1)))) -> 0 | AA6: =IF(N6=0,0,IF(X6>=N6,(J6),(N6-Y6))) -> 1 | AB6: =DATEDIF(C6,TODAY(),"Y") -> 22 | AC6: =DATEDIF(C6,TODAY(),"YM") -> 1 | AD6: =DATEDIF(C6,TODAY(),"md")+1 -> 19 | AE6: =DATEDIF(C6,TODAY(),"d")+1 -> 8085 | AF6: =IF(N6=0,"No",IF(AE6>Q6,"NO","YES")) -> NO | AV6: =100/O6 -> 33.33333333 | BS6: 05 | BT6: 46 | BU6: 36 | BY6: =CONCATENATE(AB6," ปี ",AC6," เดือน ",AD6," วัน ") -> 22 ปี 1 เดือน 19 วัน | BZ6: =A6 -> 1
A7: =A6+1 -> 2 | C7: 1996-10-04 | D7: 40 | I7: รถตู้ 12 ที่นั่ง 1 คัน | J7: 1 | K7: 670000 | L7: 02.02.15 | M7: =IF(BV7="จำหน่าย",0,SUM(J7*K7)) -> 670000 | N7: =IF(K7<5000,0,M7) -> 670000 | O7: 5 | P7: =DATE(YEAR(C7)+O7,MONTH(C7),DAY(C7)) -> 2001-10-04 | Q7: =IF(NOT(OR(ISBLANK(P7),ISBLANK(C7))),P7-C7,"") -> 1826 | R7: =SLN(N7,,O7) -> 134000 | S7: =SLN(R7,,12) -> 11166.66667 | T7: =SLN(N7,,Q7) -> 366.9222344 | U7: =IF(N7=0,0,IF(AE7<=Q7,1,0)) -> 0 | V7: =SUM(R7*U7/12) -> 0 | W7: =IF(N7=0,0,IF((R7*AB7)+(R7*AC7/12)>=N7,N7-J7,((R7*AB7)+(R7*AC7/12)))) -> 669999 | X7: =SUM(T7*U7) -> 0 | Y7: =IF(N7=0,0,IF((DATEDIF(C7,TODAY(),"d")+1)*T7>=N7,N7-J7,(DATEDIF(C7,TODAY(),"d")+1)*T7)) -> 669999 | Z7: =IF(U7=0,0,IF(OR(DAY(C7)=1,MONTH(C7)<>MONTH(TODAY()),YEAR(C7)<>YEAR(TODAY())),T7*((DAY(DATE(YEAR(TODAY()),MONTH(TODAY())+1,1)-1))),T7*((DAY(DATE(YEAR(TODAY()),MONTH(TODAY())+1,1)-1)-DAY(C7)+1)))) -> 0 | AA7: =IF(N7=0,0,IF(X7>=N7,(J7),(N7-Y7))) -> 1 | AB7: =DATEDIF(C7,TODAY(),"Y") -> 22 | AC7: =DATEDIF(C7,TODAY(),"YM") -> 1 | AD7: =DATEDIF(C7,TODAY(),"md")+1 -> 18 | AE7: =DATEDIF(C7,TODAY(),"d")+1 -> 8084 | AF7: =IF(N7=0,"No",IF(AE7>Q7,"NO","YES")) -> NO | AV7: =100/O7 -> 20 | BS7: 02 | BT7: 02 | BU7: 15 | BY7: =CONCATENATE(AB7," ปี ",AC7," เดือน ",AD7," วัน ") -> 22 ปี 1 เดือน 18 วัน | BZ7: =A7 -> 2
A8: =A7+1 -> 3 | C8: 1996-10-04 | D8: 40 | I8: รถตู้ 12 ที่นั่ง 1 คัน | J8: 1 | K8: 650000 | L8: 02.02.16 | M8: =IF(BV8="จำหน่าย",0,SUM(J8*K8)) -> 650000 | N8: =IF(K8<5000,0,M8) -> 650000 | O8: 5 | P8: 2001-10-04 | Q8: 1826 | R8: 130000 | S8: 10833.33333 | T8: 355.9693319 | U8: 0 | V8: 0 | W8: 649999 | X8: 0 | Y8: 649999 | Z8: 0 | AA8: 1 | AB8: 22 | AC8: 1 | AD8: 18 | AE8: 8084 | AF8: NO | AV8: 20 | BS8: 02 | BT8: 02 | BU8: 16 | BY8: 22 ปี 1 เดือน 18 วัน | BZ8: 3
A9: =A8+1 -> 4 | C9: 1996-10-05 | D9: 40 | I9: ชุดเฟอร์นิเจอร์หนัง 1 ชุด | J9: 1 | K9: 38500 | L9: 01.01.18905 | M9: =IF(BV9="จำหน่าย",0,SUM(J9*K9)) -> 38500 | N9: =IF(K9<5000,0,M9) -> 38500 | O9: 8 | P9: 2004-10-05 | Q9: 2922 | R9: 4812.5 | S9: 401.0416667 | T9: 13.17590691 | U9: 0 | V9: 0 | W9: 38499 | X9: 0 | Y9: 38499 | Z9: 0 | AA9: 1 | AB9: 22 | AC9: 1 | AD9: 17 | AE9: 8083 | AF9: NO | AV9: 12.5 | BS9: 01 | BT9: 01 | BU9: 18905 | BY9: 22 ปี 1 เดือน 17 วัน | BZ9: 4
A10: =A9+1 -> 5 | C10: 1996-10-10 | D10: 40 | I10: เครื่องปรับอากาศ 21 ค. | J10: 21 | K10: 24952.38095 | L10: 01.29.209-229 | M10: =IF(BV10="จำหน่าย",0,SUM(J10*K10)) -> 524000 | N10: =IF(K10<5000,0,M10) -> 524000 | O10: 8 | P10: 2004-10-10 | Q10: 2922 | R10: 65500 | S10: 5458.333333 | T10: 179.3292266 | U10: 0 | V10: 0 | W10: 523979 | X10: 0 | Y10: 523979 | Z10: 0 | AA10: 21 | AB10: 22 | AC10: 1 | AD10: 12 | AE10: 8078 | AF10: NO | AV10: 12.5 | BS10: 01 | BT10: 29 | BU10: 209-229 | BY10: 22 ปี 1 เดือน 12 วัน | BZ10: 5
A11: =A10+1 -> 6 | C11: 1996-10-10 | D11: 40 | I11: เครื่องพิมพ์สำเนาระบบดิจิตอล 1 ค. | J11: 1 | K11: 156555 | L11: 01.46.12 | M11: =IF(BV11="จำหน่าย",0,SUM(J11*K11)) -> 156555 | N11: =IF(K11<5000,0,M11) -> 156555 | O11: 8 | P11: 2004-10-10 | Q11: 2922 | R11: 19569.375 | S11: 1630.78125 | T11: 53.57802875 | U11: 0 | V11: 0 | W11: 156554 | X11: 0 | Y11: 156554 | Z11: 0 | AA11: 1 | AB11: 22 | AC11: 1 | AD11: 12 | AE11: 8078 | AF11: NO | AV11: 12.5 | BS11: 01 | BT11: 46 | BU11: 12 | BY11: 22 ปี 1 เดือน 12 วัน | BZ11: 6
A12: =A11+1 -> 7 | C12: 1996-10-11 | D12: 40 | I12: เครื่องคอมพิวเตอร์ 1 ค. | J12: 1 | K12: 50000 | L12: 01.53.364 | M12: =IF(BV12="จำหน่าย",0,SUM(J12*K12)) -> 50000 | N12: =IF(K12<5000,0,M12) -> 50000 | O12: 3 | P12: 1999-10-11 | Q12: 1095 | R12: 16666.66667 | S12: 1388.888889 | T12: 45.66210046 | U12: 0 | V12: 0 | W12: 49999 | X12: 0 | Y12: 49999 | Z12: 0 | AA12: 1 | AB12: 22 | AC12: 1 | AD12: 11 | AE12: 8077 | AF12: NO | AV12: 33.33333333 | BS12: 01 | BT12: 53 | BU12: 364 | BY12: 22 ปี 1 เดือน 11 วัน | BZ12: 7
A13: =A12+1 -> 8 | C13: 1996-10-18 | D13: 40 | I13: รถยนต์เก๋ง 4 ประตู 1 คัน | J13: 1 | K13: 1190000 | L13: 02.01.10 | M13: =IF(BV13="จำหน่าย",0,SUM(J13*K13)) -> 1190000 | N13: =IF(K13<5000,0,M13) -> 1190000 | O13: 5 | P13: 2001-10-18 | Q13: 1826 | R13: 238000 | S13: 19833.33333 | T13: 651.6976999 | U13: 0 | V13: 0 | W13: 1189999 | X13: 0 | Y13: 1189999 | Z13: 0 | AA13: 1 | AB13: 22 | AC13: 1 | AD13: 4 | AE13: 8070 | AF13: NO | AV13: 20 | BS13: 02 | BT13: 01 | BU13: 10 | BY13: 22 ปี 1 เดือน 4 วัน | BZ13: 8
A14: =A13+1 -> 9 | C14: 1996-11-04 | D14: 40 | I14: ครุภัณฑ์ประจำห้องพัก 20 ชุด | J14: 20 | K14: 37950 | L14: 08.09.21-40 | M14: =IF(BV14="จำหน่าย",0,SUM(J14*K14)) -> 759000 | N14: =IF(K14<5000,0,M14) -> 759000 | O14: 5 | P14: 2001-11-04 | Q14: 1826 | R14: 151800 | S14: 12650 | T14: 415.6626506 | U14: 0 | V14: 0 | W14: 758980 | X14: 0 | Y14: 758980 | Z14: 0 | AA14: 20 | AB14: 22 | AC14: 0 | AD14: 18 | AE14: 8053 | AF14: NO | AV14: 20 | BS14: 08 | BT14: 09 | BU14: 21-40 | BY14: 22 ปี 0 เดือน 18 วัน | BZ14: 9
A15: =A14+1 -> 10 | C15: 1996-11-19 | D15: 40 | I15: เครื่องคอมพิวเตอร์ 1 ค. | J15: 1 | K15: 39800 | L15: 01.53.366 | M15: =IF(BV15="จำหน่าย",0,SUM(J15*K15)) -> 39800 | N15: =IF(K15<5000,0,M15) -> 39800 | O15: 3 | P15: 1999-11-19 | Q15: 1095 | R15: 13266.66667 | S15: 1105.555556 | T15: 36.34703196 | U15: 0 | V15: 0 | W15: 39799 | X15: 0 | Y15: 39799 | Z15: 0 | AA15: 1 | AB15: 22 | AC15: 0 | AD15: 3 | AE15: 8038 | AF15: NO | AV15: 33.33333333 | BS15: 01 | BT15: 53 | BU15: 366 | BY15: 22 ปี 0 เดือน 3 วัน | BZ15: 10
A16: =A15+1 -> 11 | C16: 1996-11-20 | D16: 40 | I16: เครื่องขัดโลหะชิ้นงานวิทยา 1 ค. | J16: 1 | K16: 408000 | L16: 09.38.03 | M16: =IF(BV16="จำหน่าย",0,SUM(J16*K16)) -> 408000 | N16: =IF(K16<5000,0,M16) -> 408000 | O16: 4 | P16: 2000-11-20 | Q16: 1461 | R16: 102000 | S16: 8500 | T16: 279.2607803 | U16: 0 | V16: 0 | W16: 407999 | X16: 0 | Y16: 407999 | Z16: 0 | AA16: 1 | AB16: 22 | AC16: 0 | AD16: 2 | AE16: 8037 | AF16: NO | AV16: 25 | BS16: 09 | BT16: 38 | BU16: 03 | BY16: 22 ปี 0 เดือน 2 วัน | BZ16: 11
A17: =A16+1 -> 12 | C17: 1996-11-21 | D17: 40 | I17: เคาท์เตอร์บาร์ 1 ชุด | J17: 1 | K17: 72000 | L17: 01.02.3298 | M17: =IF(BV17="จำหน่าย",0,SUM(J17*K17)) -> 72000 | N17: =IF(K17<5000,0,M17) -> 72000 | O17: 8 | P17: 2004-11-21 | Q17: 2922 | R17: 9000 | S17: 750 | T17: 24.64065708 | U17: 0 | V17: 0 | W17: 71999 | X17: 0 | Y17: 71999 | Z17: 0 | AA17: 1 | AB17: 22 | AC17: 0 | AD17: 1 | AE17: 8036 | AF17: NO | AV17: 12.5 | BS17: 01 | BT17: 02 | BU17: 3298 | BY17: 22 ปี 0 เดือน 1 วัน | BZ17: 12
A18: =A17+1 -> 13 | C18: 1996-11-21 | D18: 40 | I18: เครื่องพิมพ์สำเนาระบบดิจิตอล 1 ค. | J18: 1 | K18: 160000 | L18: 01.46.13 | M18: =IF(BV18="จำหน่าย",0,SUM(J18*K18)) -> 160000 | N18: =IF(K18<5000,0,M18) -> 160000 | O18: 8 | P18: 2004-11-21 | Q18: 2922 | R18: 20000 | S18: 1666.666667 | T18: 54.75701574 | U18: 0 | V18: 0 | W18: 159999 | X18: 0 | Y18: 159999 | Z18: 0 | AA18: 1 | AB18: 22 | AC18: 0 | AD18: 1 | AE18: 8036 | AF18: NO | AV18: 12.5 | BS18: 01 | BT18: 46 | BU18: 13 | BY18: 22 ปี 0 เดือน 1 วัน | BZ18: 13
A19: =A18+1 -> 14 | C19: 1996-11-26 | D19: 40 | I19: เครื่องคอมพิวเตอร์ 1 ค. | J19: 1 | K19: 39800 | L19: 01.53.365 | M19: =IF(BV19="จำหน่าย",0,SUM(J19*K19)) -> 39800 | N19: =IF(K19<5000,0,M19) -> 39800 | O19: 3 | P19: 1999-11-26 | Q19: 1095 | R19: 13266.66667 | S19: 1105.555556 | T19: 36.34703196 | U19: 0 | V19: 0 | W19: 39799 | X19: 0 | Y19: 39799 | Z19: 0 | AA19: 1 | AB19: 21 | AC19: 11 | AD19: 27 | AE19: 8031 | AF19: NO | AV19: 33.33333333 | BS19: 01 | BT19: 53 | BU19: 365 | BY19: 21 ปี 11 เดือน 27 วัน | BZ19: 14
A20: =A19+1 -> 15 | C20: 1996-12-25 | D20: 40 | I20: จอรับภาพสัญญาณดาวเทียม 1 ค. | J20: 1 | K20: 97000 | L20: 05.50.02 | M20: =IF(BV20="จำหน่าย",0,SUM(J20*K20)) -> 97000 | N20: =IF(K20<5000,0,M20) -> 97000 | O20: 5 | P20: 2001-12-25 | Q20: 1826 | R20: 19400 | S20: 1616.666667 | T20: 53.12157722 | U20: 0 | V20: 0 | W20: 96999 | X20: 0 | Y20: 96999 | Z20: 0 | AA20: 1 | AB20: 21 | AC20: 10 | AD20: 28 | AE20: 8002 | AF20: NO | AV20: 20 | BS20: 05 | BT20: 50 | BU20: 02 | BY20: 21 ปี 10 เดือน 28 วัน | BZ20: 15
A21: =A20+1 -> 16 | C21: 1997-01-13 | D21: 40 | I21: เครื่องปรับอากาศ 5 ค. | J21: 5 | K21: 30800 | L21: 01.29.272-276 | M21: =IF(BV21="จำหน่าย",0,SUM(J21*K21)) -> 154000 | N21: =IF(K21<5000,0,M21) -> 154000 | O21: 8 | P21: 2005-01-13 | Q21: 2922 | R21: 19250 | S21: 1604.166667 | T21: 52.70362765 | U21: 0 | V21: 0 | W21: 153995 | X21: 0 | Y21: 153995 | Z21: 0 | AA21: 5 | AB21: 21 | AC21: 10 | AD21: 9 | AE21: 7983 | AF21: NO | AV21: 12.5 | BS21: 01 | BT21: 29 | BU21: 272-276 | BY21: 21 ปี 10 เดือน 9 วัน | BZ21: 16
A22: =A21+1 -> 17 | C22: 1997-01-13 | D22: 40 | I22: เครื่องปรับอากาศ 10 ค. | J22: 10 | K22: 36500 | L22: 01.29.277-286 | M22: =IF(BV22="จำหน่าย",0,SUM(J22*K22)) -> 365000 | N22: =IF(K22<5000,0,M22) -> 365000 | O22: 8 | P22: 2005-01-13 | Q22: 2922 | R22: 45625 | S22: 3802.083333 | T22: 124.9144422 | U22: 0 | V22: 0 | W22: 364990 | X22: 0 | Y22: 364990 | Z22: 0 | AA22: 10 | AB22: 21 | AC22: 10 | AD22: 9 | AE22: 7983 | AF22: NO | AV22: 12.5 | BS22: 01 | BT22: 29 | BU22: 277-286 | BY22: 21 ปี 10 เดือน 9 วัน | BZ22: 17
A23: =A22+1 -> 18 | C23: 1997-01-13 | D23: 40 | I23: เคาท์เตอร์ห้องอาหาร 1 ชุด | J23: 1 | K23: 59000 | L23: 01.36.25.01 | M23: =IF(BV23="จำหน่าย",0,SUM(J23*K23)) -> 59000 | N23: =IF(K23<5000,0,M23) -> 59000 | O23: 8 | P23: 2005-01-13 | Q23: 2922 | R23: 7375 | S23: 614.5833333 | T23: 20.19164956 | U23: 0 | V23: 0 | W23: 58999 | X23: 0 | Y23: 58999 | Z23: 0 | AA23: 1 | AB23: 21 | AC23: 10 | AD23: 9 | AE23: 7983 | AF23: NO | AV23: 12.5 | BS23: 01 | BT23: 36 | BU23: 01 | BY23: 21 ปี 10 เดือน 9 วัน | BZ23: 18
A24: =A23+1 -> 19 | C24: 1997-01-28 | D24: 40 | I24: เครื่องพิมพ์ดีดไฟฟ้า 1 ค. | J24: 1 | K24: 34000 | L24: 01.50.18 | M24: =IF(BV24="จำหน่าย",0,SUM(J24*K24)) -> 34000 | N24: =IF(K24<5000,0,M24) -> 34000 | O24: 8 | P24: 2005-01-28 | Q24: 2922 | R24: 4250 | S24: 354.1666667 | T24: 11.63586585 | U24: 0 | V24: 0 | W24: 33999 | X24: 0 | Y24: 33999 | Z24: 0 | AA24: 1 | AB24: 21 | AC24: 9 | AD24: 25 | AE24: 7968 | AF24: NO | AV24: 12.5 | BS24: 01 | BT24: 50 | BU24: 18 | BY24: 21 ปี 9 เดือน 25 วัน | BZ24: 19
A25: =A24+1 -> 20 | C25: 1997-02-04 | D25: 40 | I25: เครื่องอัดสำเนาเทป 1 ค. | J25: 1 | K25: 35952 | L25: 06.21.04 | M25: =IF(BV25="จำหน่าย",0,SUM(J25*K25)) -> 35952 | N25: =IF(K25<5000,0,M25) -> 35952 | O25: 5 | P25: 2002-02-04 | Q25: 1826 | R25: 7190.4 | S25: 599.2 | T25: 19.68893757 | U25: 0 | V25: 0 | W25: 35951 | X25: 0 | Y25: 35951 | Z25: 0 | AA25: 1 | AB25: 21 | AC25: 9 | AD25: 18 | AE25: 7961 | AF25: NO | AV25: 20 | BS25: 06 | BT25: 21 | BU25: 04 | BY25: 21 ปี 9 เดือน 18 วัน | BZ25: 20
A26: =A25+1 -> 21 | C26: 1997-02-05 | D26: 40 | I26: ครุภัณฑ์ประจำห้องพัก 10 ชุด | J26: 10 | K26: 37950 | L26: 08.09.11-20 | M26: =IF(BV26="จำหน่าย",0,SUM(J26*K26)) -> 379500 | N26: =IF(K26<5000,0,M26) -> 379500 | O26: 5 | P26: 2002-02-05 | Q26: 1826 | R26: 75900 | S26: 6325 | T26: 207.8313253 | U26: 0 | V26: 0 | W26: 379490 | X26: 0 | Y26: 379490 | Z26: 0 | AA26: 10 | AB26: 21 | AC26: 9 | AD26: 17 | AE26: 7960 | AF26: NO | AV26: 20 | BS26: 08 | BT26: 09 | BU26: 11-20 | BY26: 21 ปี 9 เดือน 17 วัน | BZ26: 21
A27: =A26+1 -> 22 | C27: 1997-03-24 | D27: 40 | I27: เครื่องคอมพิวเตอร์ 2 ค. | J27: 2 | K27: 42000 | L27: 01.53.372-373 | M27: =IF(BV27="จำหน่าย",0,SUM(J27*K27)) -> 84000 | N27: =IF(K27<5000,0,M27) -> 84000 | O27: 3 | P27: 2000-03-24 | Q27: 1096 | R27: 28000 | S27: 2333.333333 | T27: 76.64233577 | U27: 0 | V27: 0 | W27: 83998 | X27: 0 | Y27: 83998 | Z27: 0 | AA27: 2 | AB27: 21 | AC27: 7 | AD27: 29 | AE27: 7913 | AF27: NO | AV27: 33.33333333 | BS27: 01 | BT27: 53 | BU27: 372-373 | BY27: 21 ปี 7 เดือน 29 วัน | BZ27: 22
A28: =A27+1 -> 23 | C28: 1997-04-18 | D28: 40 | I28: โต๊ะประชุม 1 ชุด | J28: 1 | K28: 79000 | L28: 01.02.3596 | M28: =IF(BV28="จำหน่าย",0,SUM(J28*K28)) -> 79000 | N28: =IF(K28<5000,0,M28) -> 79000 | O28: 8 | P28: 2005-04-18 | Q28: 2922 | R28: 9875 | S28: 822.9166667 | T28: 27.03627652 | U28: 0 | V28: 0 | W28: 78999 | X28: 0 | Y28: 78999 | Z28: 0 | AA28: 1 | AB28: 21 | AC28: 7 | AD28: 4 | AE28: 7888 | AF28: NO | AV28: 12.5 | BS28: 01 | BT28: 02 | BU28: 3596 | BY28: 21 ปี 7 เดือน 4 วัน | BZ28: 23
A29: =A28+1 -> 24 | C29: 1997-04-18 | D29: 40 | I29: โต๊ะประชุม 1 ชุด | J29: 1 | K29: 33000 | L29: 01.02.3599 | M29: =IF(BV29="จำหน่าย",0,SUM(J29*K29)) -> 33000 | N29: =IF(K29<5000,0,M29) -> 33000 | O29: 8 | P29: 2005-04-18 | Q29: 2922 | R29: 4125 | S29: 343.75 | T29: 11.2936345 | U29: 0 | V29: 0 | W29: 32999 | X29: 0 | Y29: 32999 | Z29: 0 | AA29: 1 | AB29: 21 | AC29: 7 | AD29: 4 | AE29: 7888 | AF29: NO | AV29: 12.5 | BS29: 01 | BT29: 02 | BU29: 3599 | BY29: 21 ปี 7 เดือน 4 วัน | BZ29: 24
A30: =A29+1 -> 25 | C30: 1997-04-20 | D30: 40 | I30: กล้องถ่ายวีดีโอ 1 ตัว | J30: 1 | K30: 39900 | L30: 06.17.27 | M30: =IF(BV30="จำหน่าย",0,SUM(J30*K30)) -> 39900 | N30: =IF(K30<5000,0,M30) -> 39900 | O30: 5 | P30: 2002-04-20 | Q30: 1826 | R30: 7980 | S30: 665 | T30: 21.85104053 | U30: 0 | V30: 0 | W30: 39899 | X30: 0 | Y30: 39899 | Z30: 0 | AA30: 1 | AB30: 21 | AC30: 7 | AD30: 2 | AE30: 7886 | AF30: NO | AV30: 20 | BS30: 06 | BT30: 17 | BU30: 27 | BY30: 21 ปี 7 เดือน 2 วัน | BZ30: 25
A31: =A30+1 -> 26 | C31: 1997-04-28 | D31: 40 | I31: กล้องจุลทรรศน์ 20 ค. | J31: 20 | K31: 44405 | L31: 07.04.89-108 | M31: =IF(BV31="จำหน่าย",0,SUM(J31*K31)) -> 888100 | N31: =IF(K31<5000,0,M31) -> 888100 | O31: 5 | P31: 2002-04-28 | Q31: 1826 | R31: 177620 | S31: 14801.66667 | T31: 486.3636364 | U31: 0 | V31: 0 | W31: 888080 | X31: 0 | Y31: 888080 | Z31: 0 | AA31: 20 | AB31: 21 | AC31: 6 | AD31: 25 | AE31: 7878 | AF31: NO | AV31: 20 | BS31: 07 | BT31: 04 | BU31: 89-108 | BY31: 21 ปี 6 เดือน 25 วัน | BZ31: 26
A32: =A31+1 -> 27 | C32: 1997-05-26 | D32: 40 | I32: จอรับภาพ 1 ชุด | J32: 1 | K32: 42000 | L32: 06.02.15 | M32: =IF(BV32="จำหน่าย",0,SUM(J32*K32)) -> 42000 | N32: =IF(K32<5000,0,M32) -> 42000 | O32: 5 | P32: 2002-05-26 | Q32: 1826 | R32: 8400 | S32: 700 | T32: 23.00109529 | U32: 0 | V32: 0 | W32: 41999 | X32: 0 | Y32: 41999 | Z32: 0 | AA32: 1 | AB32: 21 | AC32: 5 | AD32: 27 | AE32: 7850 | AF32: NO | AV32: 20 | BS32: 06 | BT32: 02 | BU32: 15 | BY32: 21 ปี 5 เดือน 27 วัน | BZ32: 27
A33: =A32+1 -> 28 | C33: 1997-06-06 | D33: 40 | I33: ชุดสาธิตการแก้เพาเวอร์แฟคเตอร์ 1 ชุด | J33: 1 | K33: 149000 | L33: 09.44.01 | M33: =IF(BV33="จำหน่าย",0,SUM(J33*K33)) -> 149000 | N33: =IF(K33<5000,0,M33) -> 149000 | O33: 4 | P33: 2001-06-06 | Q33: 1461 | R33: 37250 | S33: 3104.166667 | T33: 101.9849418 | U33: 0 | V33: 0 | W33: 148999 | X33: 0 | Y33: 148999 | Z33: 0 | AA33: 1 | AB33: 21 | AC33: 5 | AD33: 16 | AE33: 7839 | AF33: NO | AV33: 25 | BS33: 09 | BT33: 44 | BU33: 01 | BY33: 21 ปี 5 เดือน 16 วัน | BZ33: 28
A34: =A33+1 -> 29 | C34: 1997-06-11 | D34: 40 | I34: เครื่องคอมพิวเตอร์ 1 ค. | J34: 1 | K34: 33958.33 | L34: 01.53.376 | M34: =IF(BV34="จำหน่าย",0,SUM(J34*K34)) -> 33958.33 | N34: =IF(K34<5000,0,M34) -> 33958.33 | O34: 3 | P34: 2000-06-11 | Q34: 1096 | R34: 11319.44333 | S34: 943.2869444 | T34: 30.98387774 | U34: 0 | V34: 0 | W34: 33957.33 | X34: 0 | Y34: 33957.33 | Z34: 0 | AA34: 1 | AB34: 21 | AC34: 5 | AD34: 11 | AE34: 7834 | AF34: NO | AV34: 33.33333333 | BS34: 01 | BT34: 53 | BU34: 376 | BY34: 21 ปี 5 เดือน 11 วัน | BZ34: 29
A35: =A34+1 -> 30 | C35: 1997-06-11 | D35: 40 | I35: เครื่องคอมพิวเตอร์ 1 ค. | J35: 1 | K35: 33958.33 | L35: 01.53.378 | M35: =IF(BV35="จำหน่าย",0,SUM(J35*K35)) -> 33958.33 | N35: =IF(K35<5000,0,M35) -> 33958.33 | O35: 3 | P35: 2000-06-11 | Q35: 1096 | R35: 11319.44333 | S35: 943.2869444 | T35: 30.98387774 | U35: 0 | V35: 0 | W35: 33957.33 | X35: 0 | Y35: 33957.33 | Z35: 0 | AA35: 1 | AB35: 21 | AC35: 5 | AD35: 11 | AE35: 7834 | AF35: NO | AV35: 33.33333333 | BS35: 01 | BT35: 53 | BU35: 378 | BY35: 21 ปี 5 เดือน 11 วัน | BZ35: 30
A36: =A35+1 -> 31 | C36: 1997-06-11 | D36: 40 | I36: เครื่องคอมพิวเตอร์ 1 ค. | J36: 1 | K36: 33958.33 | L36: 01.53.380 | M36: =IF(BV36="จำหน่าย",0,SUM(J36*K36)) -> 33958.33 | N36: =IF(K36<5000,0,M36) -> 33958.33 | O36: 3 | P36: 2000-06-11 | Q36: 1096 | R36: 11319.44333 | S36: 943.2869444 | T36: 30.98387774 | U36: 0 | V36: 0 | W36: 33957.33 | X36: 0 | Y36: 33957.33 | Z36: 0 | AA36: 1 | AB36: 21 | AC36: 5 | AD36: 11 | AE36: 7834 | AF36: NO | AV36: 33.33333333 | BS36: 01 | BT36: 53 | BU36: 380 | BY36: 21 ปี 5 เดือน 11 วัน | BZ36: 31
A37: =A36+1 -> 32 | C37: 1997-06-11 | D37: 40 | I37: เครื่องคอมพิวเตอร์ 1 ค. | J37: 1 | K37: 33958.33 | L37: 01.53.381 | M37: =IF(BV37="จำหน่าย",0,SUM(J37*K37)) -> 33958.33 | N37: =IF(K37<5000,0,M37) -> 33958.33 | O37: 3 | P37: 2000-06-11 | Q37: 1096 | R37: 11319.44333 | S37: 943.2869444 | T37: 30.98387774 | U37: 0 | V37: 0 | W37: 33957.33 | X37: 0 | Y37: 33957.33 | Z37: 0 | AA37: 1 | AB37: 21 | AC37: 5 | AD37: 11 | AE37: 7834 | AF37: NO | AV37: 33.33333333 | BS37: 01 | BT37: 53 | BU37: 381 | BY37: 21 ปี 5 เดือน 11 วัน | BZ37: 32
A38: =A37+1 -> 33 | C38: 1997-06-11 | D38: 40 | I38: เครื่องคอมพิวเตอร์ 1 ค. | J38: 1 | K38: 33958.33 | L38: 01.53.382 | M38: =IF(BV38="จำหน่าย",0,SUM(J38*K38)) -> 33958.33 | N38: =IF(K38<5000,0,M38) -> 33958.33 | O38: 3 | P38: 2000-06-11 | Q38: 1096 | R38: 11319.44333 | S38: 943.2869444 | T38: 30.98387774 | U38: 0 | V38: 0 | W38: 33957.33 | X38: 0 | Y38: 33957.33 | Z38: 0 | AA38: 1 | AB38: 21 | AC38: 5 | AD38: 11 | AE38: 7834 | AF38: NO | AV38: 33.33333333 | BS38: 01 | BT38: 53 | BU38: 382 | BY38: 21 ปี 5 เดือน 11 วัน | BZ38: 33
A39: =A38+1 -> 34 | C39: 1997-06-11 | D39: 40 | I39: เครื่องคอมพิวเตอร์ 1 ค. | J39: 1 | K39: 33958.33 | L39: 01.53.384 | M39: =IF(BV39="จำหน่าย",0,SUM(J39*K39)) -> 33958.33 | N39: =IF(K39<5000,0,M39) -> 33958.33 | O39: 3 | P39: 2000-06-11 | Q39: 1096 | R39: 11319.44333 | S39: 943.2869444 | T39: 30.98387774 | U39: 0 | V39: 0 | W39: 33957.33 | X39: 0 | Y39: 33957.33 | Z39: 0 | AA39: 1 | AB39: 21 | AC39: 5 | AD39: 11 | AE39: 7834 | AF39: NO | AV39: 33.33333333 | BS39: 01 | BT39: 53 | BU39: 384 | BY39: 21 ปี 5 เดือน 11 วัน | BZ39: 34
A40: =A39+1 -> 35 | C40: 1997-06-11 | D40: 40 | I40: เครื่องคอมพิวเตอร์ 1 ค. | J40: 1 | K40: 33958.33 | L40: 01.53.385 | M40: =IF(BV40="จำหน่าย",0,SUM(J40*K40)) -> 33958.33 | N40: =IF(K40<5000,0,M40) -> 33958.33 | O40: 3 | P40: 2000-06-11 | Q40: 1096 | R40: 11319.44333 | S40: 943.2869444 | T40: 30.98387774 | U40: 0 | V40: 0 | W40: 33957.33 | X40: 0 | Y40: 33957.33 | Z40: 0 | AA40: 1 | AB40: 21 | AC40: 5 | AD40: 11 | AE40: 7834 | AF40: NO | AV40: 33.33333333 | BS40: 01 | BT40: 53 | BU40: 385 | BY40: 21 ปี 5 เดือน 11 วัน | BZ40: 35
A41: =A40+1 -> 36 | C41: 1997-06-11 | D41: 40 | I41: เครื่องคอมพิวเตอร์ 1 ค. | J41: 1 | K41: 33958.33 | L41: 01.53.387 | M41: =IF(BV41="จำหน่าย",0,SUM(J41*K41)) -> 33958.33 | N41: =IF(K41<5000,0,M41) -> 33958.33 | O41: 3 | P41: 2000-06-11 | Q41: 1096 | R41: 11319.44333 | S41: 943.2869444 | T41: 30.98387774 | U41: 0 | V41: 0 | W41: 33957.33 | X41: 0 | Y41: 33957.33 | Z41: 0 | AA41: 1 | AB41: 21 | AC41: 5 | AD41: 11 | AE41: 7834 | AF41: NO | AV41: 33.33333333 | BS41: 01 | BT41: 53 | BU41: 387 | BY41: 21 ปี 5 เดือน 11 วัน | BZ41: 36
A42: =A41+1 -> 37 | C42: 1997-06-11 | D42: 40 | I42: เครื่องคอมพิวเตอร์ 1 ค. | J42: 1 | K42: 33958.33 | L42: 01.53.391 | M42: =IF(BV42="จำหน่าย",0,SUM(J42*K42)) -> 33958.33 | N42: =IF(K42<5000,0,M42) -> 33958.33 | O42: 3 | P42: 2000-06-11 | Q42: 1096 | R42: 11319.44333 | S42: 943.2869444 | T42: 30.98387774 | U42: 0 | V42: 0 | W42: 33957.33 | X42: 0 | Y42: 33957.33 | Z42: 0 | AA42: 1 | AB42: 21 | AC42: 5 | AD42: 11 | AE42: 7834 | AF42: NO | AV42: 33.33333333 | BS42: 01 | BT42: 53 | BU42: 391 | BY42: 21 ปี 5 เดือน 11 วัน | BZ42: 37
A43: =A42+1 -> 38 | C43: 1997-06-11 | D43: 40 | I43: เครื่องคอมพิวเตอร์ 1 ค. | J43: 1 | K43: 33958.33 | L43: 01.53.393 | M43: =IF(BV43="จำหน่าย",0,SUM(J43*K43)) -> 33958.33 | N43: =IF(K43<5000,0,M43) -> 33958.33 | O43: 3 | P43: 2000-06-11 | Q43: 1096 | R43: 11319.44333 | S43: 943.2869444 | T43: 30.98387774 | U43: 0 | V43: 0 | W43: 33957.33 | X43: 0 | Y43: 33957.33 | Z43: 0 | AA43: 1 | AB43: 21 | AC43: 5 | AD43: 11 | AE43: 7834 | AF43: NO | AV43: 33.33333333 | BS43: 01 | BT43: 53 | BU43: 393 | BY43: 21 ปี 5 เดือน 11 วัน | BZ43: 38
A44: =A43+1 -> 39 | C44: 1997-06-11 | D44: 40 | I44: เครื่องคอมพิวเตอร์ 1 ค. | J44: 1 | K44: 33958.33 | L44: 01.53.396 | M44: =IF(BV44="จำหน่าย",0,SUM(J44*K44)) -> 33958.33 | N44: =IF(K44<5000,0,M44) -> 33958.33 | O44: 3 | P44: 2000-06-11 | Q44: 1096 | R44: 11319.44333 | S44: 943.2869444 | T44: 30.98387774 | U44: 0 | V44: 0 | W44: 33957.33 | X44: 0 | Y44: 33957.33 | Z44: 0 | AA44: 1 | AB44: 21 | AC44: 5 | AD44: 11 | AE44: 7834 | AF44: NO | AV44: 33.33333333 | BS44: 01 | BT44: 53 | BU44: 396 | BY44: 21 ปี 5 เดือน 11 วัน | BZ44: 39
A45: =A44+1 -> 40 | C45: 1997-06-11 | D45: 40 | I45: เครื่องคอมพิวเตอร์ 1 ค. | J45: 1 | K45: 33958.33 | L45: 01.53.397 | M45: =IF(BV45="จำหน่าย",0,SUM(J45*K45)) -> 33958.33 | N45: =IF(K45<5000,0,M45) -> 33958.33 | O45: 3 | P45: 2000-06-11 | Q45: 1096 | R45: 11319.44333 | S45: 943.2869444 | T45: 30.98387774 | U45: 0 | V45: 0 | W45: 33957.33 | X45: 0 | Y45: 33957.33 | Z45: 0 | AA45: 1 | AB45: 21 | AC45: 5 | AD45: 11 | AE45: 7834 | AF45: NO | AV45: 33.33333333 | BS45: 01 | BT45: 53 | BU45: 397 | BY45: 21 ปี 5 เดือน 11 วัน | BZ45: 40
A46: =A45+1 -> 41 | C46: 1997-06-14 | D46: 40 | I46: หม้อบดเคลือบ 1 ค. | J46: 1 | K46: 60000 | L46: 09.49.10 | M46: =IF(BV46="จำหน่าย",0,SUM(J46*K46)) -> 60000 | N46: =IF(K46<5000,0,M46) -> 60000 | O46: 4 | P46: 2001-06-14 | Q46: 1461 | R46: 15000 | S46: 1250 | T46: 41.06776181 | U46: 0 | V46: 0 | W46: 59999 | X46: 0 | Y46: 59999 | Z46: 0 | AA46: 1 | AB46: 21 | AC46: 5 | AD46: 8 | AE46: 7831 | AF46: NO | AV46: 25 | BS46: 09 | BT46: 49 | BU46: 10 | BY46: 21 ปี 5 เดือน 8 วัน | BZ46: 41
A47: =A46+1 -> 42 | C47: 1997-06-25 | D47: 40 | I47: เครื่องคอมพิวเตอร์ 1 ค. | J47: 1 | K47: 34600 | L47: 01.53.408 | M47: =IF(BV47="จำหน่าย",0,SUM(J47*K47)) -> 34600 | N47: =IF(K47<5000,0,M47) -> 34600 | O47: 3 | P47: 2000-06-25 | Q47: 1096 | R47: 11533.33333 | S47: 961.1111111 | T47: 31.56934307 | U47: 0 | V47: 0 | W47: 34599 | X47: 0 | Y47: 34599 | Z47: 0 | AA47: 1 | AB47: 21 | AC47: 4 | AD47: 28 | AE47: 7820 | AF47: NO | AV47: 33.33333333 | BS47: 01 | BT47: 53 | BU47: 408 | BY47: 21 ปี 4 เดือน 28 วัน | BZ47: 42
A48: =A47+1 -> 43 | C48: 1997-06-25 | D48: 40 | I48: เครื่องคอมพิวเตอร์ 1 ค. | J48: 1 | K48: 34600 | L48: 01.53.410 | M48: =IF(BV48="จำหน่าย",0,SUM(J48*K48)) -> 34600 | N48: =IF(K48<5000,0,M48) -> 34600 | O48: 3 | P48: 2000-06-25 | Q48: 1096 | R48: 11533.33333 | S48: 961.1111111 | T48: 31.56934307 | U48: 0 | V48: 0 | W48: 34599 | X48: 0 | Y48: 34599 | Z48: 0 | AA48: 1 | AB48: 21 | AC48: 4 | AD48: 28 | AE48: 7820 | AF48: NO | AV48: 33.33333333 | BS48: 01 | BT48: 53 | BU48: 410 | BY48: 21 ปี 4 เดือน 28 วัน | BZ48: 43
A49: =A48+1 -> 44 | C49: 1997-06-25 | D49: 40 | I49: เครื่องคอมพิวเตอร์ 1 ค. | J49: 1 | K49: 34600 | L49: 01.53.411 | M49: =IF(BV49="จำหน่าย",0,SUM(J49*K49)) -> 34600 | N49: =IF(K49<5000,0,M49) -> 34600 | O49: 3 | P49: 2000-06-25 | Q49: 1096 | R49: 11533.33333 | S49: 961.1111111 | T49: 31.56934307 | U49: 0 | V49: 0 | W49: 34599 | X49: 0 | Y49: 34599 | Z49: 0 | AA49: 1 | AB49: 21 | AC49: 4 | AD49: 28 | AE49: 7820 | AF49: NO | AV49: 33.33333333 | BS49: 01 | BT49: 53 | BU49: 411 | BY49: 21 ปี 4 เดือน 28 วัน | BZ49: 44
A50: =A49+1 -> 45 | C50: 1997-06-26 | D50: 40 | I50: ล้อเลื่อนบรรทุก 1 คัน | J50: 1 | K50: 45000 | L50: 01.52.95 | M50: =IF(BV50="จำหน่าย",0,SUM(J50*K50)) -> 45000 | N50: =IF(K50<5000,0,M50) -> 45000 | O50: 8 | P50: 2005-06-26 | Q50: 2922 | R50: 5625 | S50: 468.75 | T50: 15.40041068 | U50: 0 | V50: 0 | W50: 44999 | X50: 0 | Y50: 44999 | Z50: 0 | AA50: 1 | AB50: 21 | AC50: 4 | AD50: 27 | AE50: 7819 | AF50: NO | AV50: 12.5 | BS50: 01 | BT50: 52 | BU50: 95 | BY50: 21 ปี 4 เดือน 27 วัน | BZ50: 45
A51: =A50+1 -> 46 | C51: 1997-06-27 | D51: 40 | I51: เตาเผาเครื่องปั้น 1 เตา | J51: 1 | K51: 130000 | L51: 09.47.01 | M51: =IF(BV51="จำหน่าย",0,SUM(J51*K51)) -> 130000 | N51: =IF(K51<5000,0,M51) -> 130000 | O51: 5 | P51: 2002-06-27 | Q51: 1826 | R51: 26000 | S51: 2166.666667 | T51: 71.19386637 | U51: 0 | V51: 0 | W51: 129999 | X51: 0 | Y51: 129999 | Z51: 0 | AA51: 1 | AB51: 21 | AC51: 4 | AD51: 26 | AE51: 7818 | AF51: NO | AV51: 20 | BS51: 09 | BT51: 47 | BU51: 01 | BY51: 21 ปี 4 เดือน 26 วัน | BZ51: 46
A52: =A51+1 -> 47 | C52: 1997-07-01 | D52: 40 | I52: เครื่องอัดสำเนาเทป 1 ค. | J52: 1 | K52: 104004 | L52: 05.27.78 | M52: =IF(BV52="จำหน่าย",0,SUM(J52*K52)) -> 104004 | N52: =IF(K52<5000,0,M52) -> 104004 | O52: 5 | P52: 2002-07-01 | Q52: 1826 | R52: 20800.8 | S52: 1733.4 | T52: 56.95728368 | U52: 0 | V52: 0 | W52: 104003 | X52: 0 | Y52: 104003 | Z52: 0 | AA52: 1 | AB52: 21 | AC52: 4 | AD52: 21 | AE52: 7814 | AF52: NO | AV52: 20 | BS52: 05 | BT52: 27 | BU52: 78 | BY52: 21 ปี 4 เดือน 21 วัน | BZ52: 47
A53: =A52+1 -> 48 | C53: 1997-07-03 | D53: 40 | I53: เครื่องล้างปิเปต 1 ค. | J53: 1 | K53: 30000 | L53: 07.100.02 | M53: =IF(BV53="จำหน่าย",0,SUM(J53*K53)) -> 30000 | N53: =IF(K53<5000,0,M53) -> 30000 | O53: 5 | P53: 2002-07-03 | Q53: 1826 | R53: 6000 | S53: 500 | T53: 16.42935378 | U53: 0 | V53: 0 | W53: 29999 | X53: 0 | Y53: 29999 | Z53: 0 | AA53: 1 | AB53: 21 | AC53: 4 | AD53: 19 | AE53: 7812 | AF53: NO | AV53: 20 | BS53: 07 | BT53: 100 | BU53: 02 | BY53: 21 ปี 4 เดือน 19 วัน | BZ53: 48
A54: =A53+1 -> 49 | C54: 1997-07-04 | D54: 40 | I54: เครื่องสแกนเนอร์ 1 ค. | J54: 1 | K54: 40000 | L54: 01.53.412 | M54: =IF(BV54="จำหน่าย",0,SUM(J54*K54)) -> 40000 | N54: =IF(K54<5000,0,M54) -> 40000 | O54: 3 | P54: 2000-07-04 | Q54: 1096 | R54: 13333.33333 | S54: 1111.111111 | T54: 36.49635036 | U54: 0 | V54: 0 | W54: 39999 | X54: 0 | Y54: 39999 | Z54: 0 | AA54: 1 | AB54: 21 | AC54: 4 | AD54: 18 | AE54: 7811 | AF54: NO | AV54: 33.33333333 | BS54: 01 | BT54: 53 | BU54: 412 | BY54: 21 ปี 4 เดือน 18 วัน | BZ54: 49
A55: =A54+1 -> 50 | C55: 1997-07-10 | D55: 40 | I55: เครื่องวิเคราะห์จุดหลอดเหลว 1 ค. | J55: 1 | K55: 115000 | L55: 07.58.02 | M55: =IF(BV55="จำหน่าย",0,SUM(J55*K55)) -> 115000 | N55: =IF(K55<5000,0,M55) -> 115000 | O55: 5 | P55: 2002-07-10 | Q55: 1826 | R55: 23000 | S55: 1916.666667 | T55: 62.97918949 | U55: 0 | V55: 0 | W55: 114999 | X55: 0 | Y55: 114999 | Z55: 0 | AA55: 1 | AB55: 21 | AC55: 4 | AD55: 12 | AE55: 7805 | AF55: NO | AV55: 20 | BS55: 07 | BT55: 58 | BU55: 02 | BY55: 21 ปี 4 เดือน 12 วัน | BZ55: 50
A56: =A55+1 -> 51 | C56: 1997-07-15 | D56: 40 | I56: เครื่องวัดค่า POD. 1 ค. | J56: 1 | K56: 30000 | L56: 07.95.02 | M56: =IF(BV56="จำหน่าย",0,SUM(J56*K56)) -> 30000 | N56: =IF(K56<5000,0,M56) -> 30000 | O56: 5 | P56: 2002-07-15 | Q56: 1826 | R56: 6000 | S56: 500 | T56: 16.42935378 | U56: 0 | V56: 0 | W56: 29999 | X56: 0 | Y56: 29999 | Z56: 0 | AA56: 1 | AB56: 21 | AC56: 4 | AD56: 7 | AE56: 7800 | AF56: NO | AV56: 20 | BS56: 07 | BT56: 95 | BU56: 02 | BY56: 21 ปี 4 เดือน 7 วัน | BZ56: 51
A57: =A56+1 -> 52 | C57: 1997-07-16 | D57: 40 | I57: เครื่องเขย่า 1 ค. | J57: 1 | K57: 50000 | L57: 03.26.02 | M57: =IF(BV57="จำหน่าย",0,SUM(J57*K57)) -> 50000 | N57: =IF(K57<5000,0,M57) -> 50000 | O57: 5 | P57: 2002-07-16 | Q57: 1826 | R57: 10000 | S57: 833.3333333 | T57: 27.3822563 | U57: 0 | V57: 0 | W57: 49999 | X57: 0 | Y57: 49999 | Z57: 0 | AA57: 1 | AB57: 21 | AC57: 4 | AD57: 6 | AE57: 7799 | AF57: NO | AV57: 20 | BS57: 03 | BT57: 26 | BU57: 02 | BY57: 21 ปี 4 เดือน 6 วัน | BZ57: 52
A58: =A57+1 -> 53 | C58: 1997-07-18 | D58: 40 | I58: เครื่องคอมพิวเตอร์ 1 ค. | J58: 1 | K58: 47900 | L58: 01.53.423 | M58: =IF(BV58="จำหน่าย",0,SUM(J58*K58)) -> 47900 | N58: =IF(K58<5000,0,M58) -> 47900 | O58: 3 | P58: 2000-07-18 | Q58: 1096 | R58: 15966.66667 | S58: 1330.555556 | T58: 43.70437956 | U58: 0 | V58: 0 | W58: 47899 | X58: 0 | Y58: 47899 | Z58: 0 | AA58: 1 | AB58: 21 | AC58: 4 | AD58: 4 | AE58: 7797 | AF58: NO | AV58: 33.33333333 | BS58: 01 | BT58: 53 | BU58: 423 | BY58: 21 ปี 4 เดือน 4 วัน | BZ58: 53
A59: =A58+1 -> 54 | C59: 1997-07-23 | D59: 40 | I59: กล้องถ่ายภาพดิจิตอล 1 ตัว | J59: 1 | K59: 30816 | L59: 06.01.53 | M59: =IF(BV59="จำหน่าย",0,SUM(J59*K59)) -> 30816 | N59: =IF(K59<5000,0,M59) -> 30816 | O59: 5 | P59: 2002-07-23 | Q59: 1826 | R59: 6163.2 | S59: 513.6 | T59: 16.8762322 | U59: 0 | V59: 0 | W59: 30815 | X59: 0 | Y59: 30815 | Z59: 0 | AA59: 1 | AB59: 21 | AC59: 3 | AD59: 30 | AE59: 7792 | AF59: NO | AV59: 20 | BS59: 06 | BT59: 01 | BU59: 53 | BY59: 21 ปี 3 เดือน 30 วัน | BZ59: 54
A60: =A59+1 -> 55 | C60: 1997-07-25 | D60: 40 | I60: เครื่องสแกนเนอร์ 1 ค. | J60: 1 | K60: 33705 | L60: 01.65.41 | M60: =IF(BV60="จำหน่าย",0,SUM(J60*K60)) -> 33705 | N60: =IF(K60<5000,0,M60) -> 33705 | O60: 3 | P60: 2000-07-25 | Q60: 1096 | R60: 11235 | S60: 936.25 | T60: 30.75273723 | U60: 0 | V60: 0 | W60: 33704 | X60: 0 | Y60: 33704 | Z60: 0 | AA60: 1 | AB60: 21 | AC60: 3 | AD60: 28 | AE60: 7790 | AF60: NO | AV60: 33.33333333 | BS60: 01 | BT60: 65 | BU60: 41 | BY60: 21 ปี 3 เดือน 28 วัน | BZ60: 55
A61: =A60+1 -> 56 | C61: 1997-07-29 | D61: 40 | I61: เครื่องถ่ายเอกสาร 1 ค. | J61: 1 | K61: 89000 | L61: 01.22.17 | M61: =IF(BV61="จำหน่าย",0,SUM(J61*K61)) -> 89000 | N61: =IF(K61<5000,0,M61) -> 89000 | O61: 8 | P61: 2005-07-29 | Q61: 2922 | R61: 11125 | S61: 927.0833333 | T61: 30.45859001 | U61: 0 | V61: 0 | W61: 88999 | X61: 0 | Y61: 88999 | Z61: 0 | AA61: 1 | AB61: 21 | AC61: 3 | AD61: 24 | AE61: 7786 | AF61: NO | AV61: 12.5 | BS61: 01 | BT61: 22 | BU61: 17 | BY61: 21 ปี 3 เดือน 24 วัน | BZ61: 56
A62: =A61+1 -> 57 | C62: 1997-07-31 | D62: 40 | I62: ชุดเครื่องขยายเสียง 1 ชุด | J62: 1 | K62: 46331.5 | L62: 05.06.242 | M62: =IF(BV62="จำหน่าย",0,SUM(J62*K62)) -> 46331.5 | N62: =IF(K62<5000,0,M62) -> 46331.5 | O62: 5 | P62: 2002-07-31 | Q62: 1826 | R62: 9266.3 | S62: 772.1916667 | T62: 25.37322015 | U62: 0 | V62: 0 | W62: 46330.5 | X62: 0 | Y62: 46330.5 | Z62: 0 | AA62: 1 | AB62: 21 | AC62: 3 | AD62: 22 | AE62: 7784 | AF62: NO | AV62: 20 | BS62: 05 | BT62: 06 | BU62: 242 | BY62: 21 ปี 3 เดือน 22 วัน | BZ62: 57
A63: =A62+1 -> 58 | C63: 1997-07-31 | D63: 40 | I63: ชุดเครื่องขยายเสียง 1 ชุด | J63: 1 | K63: 46331.5 | L63: 05.06.243 | M63: =IF(BV63="จำหน่าย",0,SUM(J63*K63)) -> 46331.5 | N63: =IF(K63<5000,0,M63) -> 46331.5 | O63: 5 | P63: 2002-07-31 | Q63: 1826 | R63: 9266.3 | S63: 772.1916667 | T63: 25.37322015 | U63: 0 | V63: 0 | W63: 46330.5 | X63: 0 | Y63: 46330.5 | Z63: 0 | AA63: 1 | AB63: 21 | AC63: 3 | AD63: 22 | AE63: 7784 | AF63: NO | AV63: 20 | BS63: 05 | BT63: 06 | BU63: 243 | BY63: 21 ปี 3 เดือน 22 วัน | BZ63: 58
A64: =A63+1 -> 59 | C64: 1997-07-31 | D64: 40 | I64: เครื่องวัดค่าบีโอดี 1 ชุด | J64: 1 | K64: 99500 | L64: 07.95.01 | M64: =IF(BV64="จำหน่าย",0,SUM(J64*K64)) -> 99500 | N64: =IF(K64<5000,0,M64) -> 99500 | O64: 5 | P64: 2002-07-31 | Q64: 1826 | R64: 19900 | S64: 1658.333333 | T64: 54.49069003 | U64: 0 | V64: 0 | W64: 99499 | X64: 0 | Y64: 99499 | Z64: 0 | AA64: 1 | AB64: 21 | AC64: 3 | AD64: 22 | AE64: 7784 | AF64: NO | AV64: 20 | BS64: 07 | BT64: 95 | BU64: 01 | BY64: 21 ปี 3 เดือน 22 วัน | BZ64: 59
A65: =A64+1 -> 60 | C65: 1997-08-04 | D65: 40 | I65: เครื่องสแกนเนอร์ 1 ค. | J65: 1 | K65: 32500 | L65: 01.53.435 | M65: =IF(BV65="จำหน่าย",0,SUM(J65*K65)) -> 32500 | N65: =IF(K65<5000,0,M65) -> 32500 | O65: 3 | P65: 2000-08-04 | Q65: 1096 | R65: 10833.33333 | S65: 902.7777778 | T65: 29.65328467 | U65: 0 | V65: 0 | W65: 32499 | X65: 0 | Y65: 32499 | Z65: 0 | AA65: 1 | AB65: 21 | AC65: 3 | AD65: 18 | AE65: 7780 | AF65: NO | AV65: 33.33333333 | BS65: 01 | BT65: 53 | BU65: 435 | BY65: 21 ปี 3 เดือน 18 วัน | BZ65: 60
A66: =A65+1 -> 61 | C66: 1997-08-04 | D66: 40 | I66: เครื่องคอมพิวเตอร์ 2 ค. | J66: 2 | K66: 36500 | L66: 01.53.532-533 | M66: =IF(BV66="จำหน่าย",0,SUM(J66*K66)) -> 73000 | N66: =IF(K66<5000,0,M66) -> 73000 | O66: 3 | P66: 2000-08-04 | Q66: 1096 | R66: 24333.33333 | S66: 2027.777778 | T66: 66.60583942 | U66: 0 | V66: 0 | W66: 72998 | X66: 0 | Y66: 72998 | Z66: 0 | AA66: 2 | AB66: 21 | AC66: 3 | AD66: 18 | AE66: 7780 | AF66: NO | AV66: 33.33333333 | BS66: 01 | BT66: 53 | BU66: 532-533 | BY66: 21 ปี 3 เดือน 18 วัน | BZ66: 61
A67: =A66+1 -> 62 | C67: 1997-08-05 | D67: 40 | I67: เครื่องฉายภาพข้ามศรีษะ 5 ค. | J67: 5 | K67: 8667 | L67: 06.08.298-302 | M67: =IF(BV67="จำหน่าย",0,SUM(J67*K67)) -> 43335 | N67: =IF(K67<5000,0,M67) -> 43335 | O67: 5 | P67: 2002-08-05 | Q67: 1826 | R67: 8667 | S67: 722.25 | T67: 23.73220153 | U67: 0 | V67: 0 | W67: 43330 | X67: 0 | Y67: 43330 | Z67: 0 | AA67: 5 | AB67: 21 | AC67: 3 | AD67: 17 | AE67: 7779 | AF67: NO | AV67: 20 | BS67: 06 | BT67: 08 | BU67: 298-302 | BY67: 21 ปี 3 เดือน 17 วัน | BZ67: 62
A68: =A67+1 -> 63 | C68: 1997-08-07 | D68: 40 | I68: โต๊ะประชุม 1 ชุด | J68: 1 | K68: 129700 | L68: 01.02.7078 | M68: =IF(BV68="จำหน่าย",0,SUM(J68*K68)) -> 129700 | N68: =IF(K68<5000,0,M68) -> 129700 | O68: 8 | P68: 2005-08-07 | Q68: 2922 | R68: 16212.5 | S68: 1351.041667 | T68: 44.38740589 | U68: 0 | V68: 0 | W68: 129699 | X68: 0 | Y68: 129699 | Z68: 0 | AA68: 1 | AB68: 21 | AC68: 3 | AD68: 15 | AE68: 7777 | AF68: NO | AV68: 12.5 | BS68: 01 | BT68: 02 | BU68: 7078 | BY68: 21 ปี 3 เดือน 15 วัน | BZ68: 63
A69: =A68+1 -> 64 | C69: 1997-08-15 | D69: 40 | I69: จักรยานทดสอบสมรรถภาพ 1 คัน | J69: 1 | K69: 58500 | L69: 10.02.04 | M69: =IF(BV69="จำหน่าย",0,SUM(J69*K69)) -> 58500 | N69: =IF(K69<5000,0,M69) -> 58500 | O69: 5 | P69: 2002-08-15 | Q69: 1826 | R69: 11700 | S69: 975 | T69: 32.03723987 | U69: 0 | V69: 0 | W69: 58499 | X69: 0 | Y69: 58499 | Z69: 0 | AA69: 1 | AB69: 21 | AC69: 3 | AD69: 7 | AE69: 7769 | AF69: NO | AV69: 20 | BS69: 10 | BT69: 02 | BU69: 04 | BY69: 21 ปี 3 เดือน 7 วัน | BZ69: 64
A70: =A69+1 -> 65 | C70: 1997-08-18 | D70: 40 | I70: ตู้ปลอดเชื้อ 1 ตู้ | J70: 1 | K70: 100000 | L70: 03.15.03 | M70: =IF(BV70="จำหน่าย",0,SUM(J70*K70)) -> 100000 | N70: =IF(K70<5000,0,M70) -> 100000 | O70: 3 | P70: =DATE(YEAR(C70)+O70,MONTH(C70),DAY(C70)) -> 2000-08-18 | Q70: =IF(NOT(OR(ISBLANK(P70),ISBLANK(C70))),P70-C70,"") -> 1096 | R70: =SLN(N70,,O70) -> 33333.33333 | S70: =SLN(R70,,12) -> 2777.777778 | T70: =SLN(N70,,Q70) -> 91.24087591 | U70: =IF(N70=0,0,IF(AE70<=Q70,1,0)) -> 0 | V70: 0 | W70: 99999 | X70: 0 | Y70: 99999 | Z70: 0 | AA70: 1 | AB70: =DATEDIF(C70,TODAY(),"Y") -> 21 | AC70: =DATEDIF(C70,TODAY(),"YM") -> 3 | AD70: =DATEDIF(C70,TODAY(),"md")+1 -> 4 | AE70: =DATEDIF(C70,TODAY(),"d")+1 -> 7766 | AF70: =IF(N70=0,"No",IF(AE70>Q70,"NO","YES")) -> NO | AV70: =100/O70 -> 33.33333333 | BS70: 03 | BT70: 15 | BU70: 03 | BY70: =CONCATENATE(AB70," ปี ",AC70," เดือน ",AD70," วัน ") -> 21 ปี 3 เดือน 4 วัน | BZ70: =A70 -> 65
A71: =A70+1 -> 66 | C71: 1997-08-20 | D71: 40 | I71: เครื่องถ่ายเอกสาร 1 ค. | J71: 1 | K71: 65000 | L71: 01.22.18 | M71: =IF(BV71="จำหน่าย",0,SUM(J71*K71)) -> 65000 | N71: =IF(K71<5000,0,M71) -> 65000 | O71: 8 | P71: 2005-08-20 | Q71: 2922 | R71: 8125 | S71: 677.0833333 | T71: 22.24503765 | U71: 0 | V71: =SUM(R71*U71/12) -> 0 | W71: =IF(N71=0,0,IF((R71*AB71)+(R71*AC71/12)>=N71,N71-J71,((R71*AB71)+(R71*AC71/12)))) -> 64999 | X71: =SUM(T71*U71) -> 0 | Y71: =IF(N71=0,0,IF((DATEDIF(C71,TODAY(),"d")+1)*T71>=N71,N71-J71,(DATEDIF(C71,TODAY(),"d")+1)*T71)) -> 64999 | Z71: =IF(U71=0,0,IF(OR(DAY(C71)=1,MONTH(C71)<>MONTH(TODAY()),YEAR(C71)<>YEAR(TODAY())),T71*((DAY(DATE(YEAR(TODAY()),MONTH(TODAY())+1,1)-1))),T71*((DAY(DATE(YEAR(TODAY()),MONTH(TODAY())+1,1)-1)-DAY(C71)+1)))) -> 0 | AA71: =IF(N71=0,0,IF(X71>=N71,(J71),(N71-Y71))) -> 1 | AB71: 21 | AC71: 3 | AD71: 2 | AE71: 7764 | AF71: NO | AV71: 12.5 | BS71: 01 | BT71: 22 | BU71: 18 | BY71: 21 ปี 3 เดือน 2 วัน | BZ71: 66
A72: =A71+1 -> 67 | C72: 1997-08-26 | D72: 40 | I72: เครื่องคอมพิวเตอร์ 2 ค. | J72: 2 | K72: 30000 | L72: 01.53.450-451 | M72: =IF(BV72="จำหน่าย",0,SUM(J72*K72)) -> 60000 | N72: =IF(K72<5000,0,M72) -> 60000 | O72: 3 | P72: 2000-08-26 | Q72: 1096 | R72: 20000 | S72: 1666.666667 | T72: 54.74452555 | U72: 0 | V72: 0 | W72: 59998 | X72: 0 | Y72: 59998 | Z72: 0 | AA72: 2 | AB72: 21 | AC72: 2 | AD72: 27 | AE72: 7758 | AF72: NO | AV72: 33.33333333 | BS72: 01 | BT72: 53 | BU72: 450-451 | BY72: 21 ปี 2 เดือน 27 วัน | BZ72: 67
A73: =A72+1 -> 68 | C73: 1997-08-28 | D73: 40 | I73: เครื่องคอมพิวเตอร์ 1 ค. | J73: 1 | K73: 35000 | L73: 01.53.457 | M73: =IF(BV73="จำหน่าย",0,SUM(J73*K73)) -> 35000 | N73: =IF(K73<5000,0,M73) -> 35000 | O73: 3 | P73: 2000-08-28 | Q73: 1096 | R73: 11666.66667 | S73: 972.2222222 | T73: 31.93430657 | U73: 0 | V73: 0 | W73: 34999 | X73: 0 | Y73: 34999 | Z73: 0 | AA73: 1 | AB73: 21 | AC73: 2 | AD73: 25 | AE73: 7756 | AF73: NO | AV73: 33.33333333 | BS73: 01 | BT73: 53 | BU73: 457 | BY73: 21 ปี 2 เดือน 25 วัน | BZ73: 68
A74: =A73+1 -> 69 | C74: 1997-08-28 | D74: 40 | I74: เครื่องคอมพิวเตอร์ 1 ค. | J74: 1 | K74: 35000 | L74: 01.53.458 | M74: =IF(BV74="จำหน่าย",0,SUM(J74*K74)) -> 35000 | N74: =IF(K74<5000,0,M74) -> 35000 | O74: 3 | P74: 2000-08-28 | Q74: 1096 | R74: 11666.66667 | S74: 972.2222222 | T74: 31.93430657 | U74: 0 | V74: 0 | W74: 34999 | X74: 0 | Y74: 34999 | Z74: 0 | AA74: 1 | AB74: 21 | AC74: 2 | AD74: 25 | AE74: 7756 | AF74: NO | AV74: 33.33333333 | BS74: 01 | BT74: 53 | BU74: 458 | BY74: 21 ปี 2 เดือน 25 วัน | BZ74: 69
A75: =A74+1 -> 70 | C75: 1997-08-28 | D75: 40 | I75: เครื่องคอมพิวเตอร์ 1 ค. | J75: 1 | K75: 35000 | L75: 01.53.460 | M75: =IF(BV75="จำหน่าย",0,SUM(J75*K75)) -> 35000 | N75: =IF(K75<5000,0,M75) -> 35000 | O75: 3 | P75: 2000-08-28 | Q75: 1096 | R75: 11666.66667 | S75: 972.2222222 | T75: 31.93430657 | U75: 0 | V75: 0 | W75: 34999 | X75: 0 | Y75: 34999 | Z75: 0 | AA75: 1 | AB75: 21 | AC75: 2 | AD75: 25 | AE75: 7756 | AF75: NO | AV75: 33.33333333 | BS75: 01 | BT75: 53 | BU75: 460 | BY75: 21 ปี 2 เดือน 25 วัน | BZ75: 70
A76: =A75+1 -> 71 | C76: 1997-08-28 | D76: 40 | I76: เครื่องวัดความเป็นกรด-ด่าง 1 ค. | J76: 1 | K76: 49091 | L76: 03.06.04 | M76: =IF(BV76="จำหน่าย",0,SUM(J76*K76)) -> 49091 | N76: =IF(K76<5000,0,M76) -> 49091 | O76: 3 | P76: 2000-08-28 | Q76: 1096 | R76: 16363.66667 | S76: 1363.638889 | T76: 44.79105839 | U76: 0 | V76: 0 | W76: 49090 | X76: 0 | Y76: 49090 | Z76: 0 | AA76: 1 | AB76: 21 | AC76: 2 | AD76: 25 | AE76: 7756 | AF76: NO | AV76: 33.33333333 | BS76: 03 | BT76: 06 | BU76: 04 | BY76: 21 ปี 2 เดือน 25 วัน | BZ76: 71
A77: =A76+1 -> 72 | C77: 1997-08-28 | D77: 40 | I77: เครื่องวัดความเป็นกรด-ด่าง 9 ค. | J77: 9 | K77: 49091 | L77: 03.06.06-14 | M77: =IF(BV77="จำหน่าย",0,SUM(J77*K77)) -> 441819 | N77: =IF(K77<5000,0,M77) -> 441819 | O77: 3 | P77: 2000-08-28 | Q77: 1096 | R77: 147273 | S77: 12272.75 | T77: 403.1195255 | U77: 0 | V77: 0 | W77: 441810 | X77: 0 | Y77: 441810 | Z77: 0 | AA77: 9 | AB77: 21 | AC77: 2 | AD77: 25 | AE77: 7756 | AF77: NO | AV77: 33.33333333 | BS77: 03 | BT77: 06 | BU77: 06-14 | BY77: 21 ปี 2 เดือน 25 วัน | BZ77: 72
A78: =A77+1 -> 73 | C78: 1997-08-28 | D78: 40 | I78: เครื่องวัดความเป็นกรด-ด่าง 1 ค. | J78: 1 | K78: 49091 | L78: 03.06.06 | M78: =IF(BV78="จำหน่าย",0,SUM(J78*K78)) -> 49091 | N78: =IF(K78<5000,0,M78) -> 49091 | O78: 3 | P78: 2000-08-28 | Q78: 1096 | R78: 16363.66667 | S78: 1363.638889 | T78: 44.79105839 | U78: 0 | V78: 0 | W78: 49090 | X78: 0 | Y78: 49090 | Z78: 0 | AA78: 1 | AB78: 21 | AC78: 2 | AD78: 25 | AE78: 7756 | AF78: NO | AV78: 33.33333333 | BS78: 03 | BT78: 06 | BU78: 06 | BY78: 21 ปี 2 เดือน 25 วัน | BZ78: 73
A79: =A78+1 -> 74 | C79: 1997-08-28 | D79: 40 | I79: เครื่องวัดความเป็นกรด-ด่าง 7 ค. | J79: 7 | K79: 49091 | L79: 03.06.08-14 | M79: =IF(BV79="จำหน่าย",0,SUM(J79*K79)) -> 343637 | N79: =IF(K79<5000,0,M79) -> 343637 | O79: 3 | P79: 2000-08-28 | Q79: 1096 | R79: 114545.6667 | S79: 9545.472222 | T79: 313.5374088 | U79: 0 | V79: 0 | W79: 343630 | X79: 0 | Y79: 343630 | Z79: 0 | AA79: 7 | AB79: 21 | AC79: 2 | AD79: 25 | AE79: 7756 | AF79: NO | AV79: 33.33333333 | BS79: 03 | BT79: 06 | BU79: 08-14 | BY79: 21 ปี 2 เดือน 25 วัน | BZ79: 74
A80: =A79+1 -> 75 | C80: 1997-08-28 | D80: 40 | I80: เครื่องวัดความเป็นกรด-ด่าง 3 ค. | J80: 3 | K80: 49091 | L80: 03.06.08-10 | M80: =IF(BV80="จำหน่าย",0,SUM(J80*K80)) -> 147273 | N80: =IF(K80<5000,0,M80) -> 147273 | O80: 3 | P80: 2000-08-28 | Q80: 1096 | R80: 49091 | S80: 4090.916667 | T80: 134.3731752 | U80: 0 | V80: 0 | W80: 147270 | X80: 0 | Y80: 147270 | Z80: 0 | AA80: 3 | AB80: 21 | AC80: 2 | AD80: 25 | AE80: 7756 | AF80: NO | AV80: 33.33333333 | BS80: 03 | BT80: 06 | BU80: 08-10 | BY80: 21 ปี 2 เดือน 25 วัน | BZ80: 75
A81: =A80+1 -> 76 | C81: 1997-08-28 | D81: 40 | I81: เครื่องวัดความเป็นกรด-ด่าง 3 ค. | J81: 3 | K81: 49091 | L81: 03.06.12-14 | M81: =IF(BV81="จำหน่าย",0,SUM(J81*K81)) -> 147273 | N81: =IF(K81<5000,0,M81) -> 147273 | O81: 3 | P81: 2000-08-28 | Q81: 1096 | R81: 49091 | S81: 4090.916667 | T81: 134.3731752 | U81: 0 | V81: 0 | W81: 147270 | X81: 0 | Y81: 147270 | Z81: 0 | AA81: 3 | AB81: 21 | AC81: 2 | AD81: 25 | AE81: 7756 | AF81: NO | AV81: 33.33333333 | BS81: 03 | BT81: 06 | BU81: 12-14 | BY81: 21 ปี 2 เดือน 25 วัน | BZ81: 76
A82: =A81+1 -> 77 | C82: 1997-08-28 | D82: 40 | I82: เตาเผาเครื่องปั้น 1 เตา | J82: 1 | K82: 375000 | L82: 09.47.02 | M82: =IF(BV82="จำหน่าย",0,SUM(J82*K82)) -> 375000 | N82: =IF(K82<5000,0,M82) -> 375000 | O82: 5 | P82: 2002-08-28 | Q82: 1826 | R82: 75000 | S82: 6250 | T82: 205.3669222 | U82: 0 | V82: 0 | W82: 374999 | X82: 0 | Y82: 374999 | Z82: 0 | AA82: 1 | AB82: 21 | AC82: 2 | AD82: 25 | AE82: 7756 | AF82: NO | AV82: 20 | BS82: 09 | BT82: 47 | BU82: 02 | BY82: 21 ปี 2 เดือน 25 วัน | BZ82: 77
A83: =A82+1 -> 78 | C83: 1997-09-02 | D83: 40 | I83: เครื่องปรับอากาศ 1 ค. | J83: 1 | K83: 35000 | L83: 01.29.292 | M83: =IF(BV83="จำหน่าย",0,SUM(J83*K83)) -> 35000 | N83: =IF(K83<5000,0,M83) -> 35000 | O83: 8 | P83: 2005-09-02 | Q83: 2922 | R83: 4375 | S83: 364.5833333 | T83: 11.97809719 | U83: 0 | V83: 0 | W83: 34999 | X83: 0 | Y83: 34999 | Z83: 0 | AA83: 1 | AB83: 21 | AC83: 2 | AD83: 20 | AE83: 7751 | AF83: NO | AV83: 12.5 | BS83: 01 | BT83: 29 | BU83: 292 | BY83: 21 ปี 2 เดือน 20 วัน | BZ83: 78
A84: =A83+1 -> 79 | C84: 1997-09-02 | D84: 40 | I84: เครื่องขยายเสียง 1 ชุด | J84: 1 | K84: 45000 | L84: 05.06.248 | M84: =IF(BV84="จำหน่าย",0,SUM(J84*K84)) -> 45000 | N84: =IF(K84<5000,0,M84) -> 45000 | O84: 5 | P84: 2002-09-02 | Q84: 1826 | R84: 9000 | S84: 750 | T84: 24.64403067 | U84: 0 | V84: 0 | W84: 44999 | X84: 0 | Y84: 44999 | Z84: 0 | AA84: 1 | AB84: 21 | AC84: 2 | AD84: 20 | AE84: 7751 | AF84: NO | AV84: 20 | BS84: 05 | BT84: 06 | BU84: 248 | BY84: 21 ปี 2 เดือน 20 วัน | BZ84: 79
A85: =A84+1 -> 80 | C85: 1997-09-08 | D85: 40 | I85: เครื่องผสมสัญญาณเสียง 1 ค. | J85: 1 | K85: 31000 | L85: 05.06.323 | M85: =IF(BV85="จำหน่าย",0,SUM(J85*K85)) -> 31000 | N85: =IF(K85<5000,0,M85) -> 31000 | O85: 5 | P85: 2002-09-08 | Q85: 1826 | R85: 6200 | S85: 516.6666667 | T85: 16.9769989 | U85: 0 | V85: 0 | W85: 30999 | X85: 0 | Y85: 30999 | Z85: 0 | AA85: 1 | AB85: 21 | AC85: 2 | AD85: 14 | AE85: 7745 | AF85: NO | AV85: 20 | BS85: 05 | BT85: 06 | BU85: 323 | BY85: 21 ปี 2 เดือน 14 วัน | BZ85: 80
A86: =A85+1 -> 81 | C86: 1997-09-09 | D86: 40 | I86: เครื่องคอมพิวเตอร์ 3 ค. | J86: 3 | K86: 38456 | L86: 01.53.546-548 | M86: =IF(BV86="จำหน่าย",0,SUM(J86*K86)) -> 115368 | N86: =IF(K86<5000,0,M86) -> 115368 | O86: 3 | P86: 2000-09-09 | Q86: 1096 | R86: 38456 | S86: 3204.666667 | T86: 105.2627737 | U86: 0 | V86: 0 | W86: 115365 | X86: 0 | Y86: 115365 | Z86: 0 | AA86: 3 | AB86: 21 | AC86: 2 | AD86: 13 | AE86: 7744 | AF86: NO | AV86: 33.33333333 | BS86: 01 | BT86: 53 | BU86: 546-548 | BY86: 21 ปี 2 เดือน 13 วัน | BZ86: 81
A87: =A86+1 -> 82 | C87: 1997-09-09 | D87: 40 | I87: เครื่องคอมพิวเตอร์ 1 ค. | J87: 1 | K87: 38456 | L87: 01.53.551 | M87: =IF(BV87="จำหน่าย",0,SUM(J87*K87)) -> 38456 | N87: =IF(K87<5000,0,M87) -> 38456 | O87: 3 | P87: 2000-09-09 | Q87: 1096 | R87: 12818.66667 | S87: 1068.222222 | T87: 35.08759124 | U87: 0 | V87: 0 | W87: 38455 | X87: 0 | Y87: 38455 | Z87: 0 | AA87: 1 | AB87: 21 | AC87: 2 | AD87: 13 | AE87: 7744 | AF87: NO | AV87: 33.33333333 | BS87: 01 | BT87: 53 | BU87: 551 | BY87: 21 ปี 2 เดือน 13 วัน | BZ87: 82
A88: =A87+1 -> 83 | C88: 1997-09-09 | D88: 40 | I88: เครื่องคอมพิวเตอร์ 1 ค. | J88: 1 | K88: 38456 | L88: 01.53.557 | M88: =IF(BV88="จำหน่าย",0,SUM(J88*K88)) -> 38456 | N88: =IF(K88<5000,0,M88) -> 38456 | O88: 3 | P88: 2000-09-09 | Q88: 1096 | R88: 12818.66667 | S88: 1068.222222 | T88: 35.08759124 | U88: 0 | V88: 0 | W88: 38455 | X88: 0 | Y88: 38455 | Z88: 0 | AA88: 1 | AB88: 21 | AC88: 2 | AD88: 13 | AE88: 7744 | AF88: NO | AV88: 33.33333333 | BS88: 01 | BT88: 53 | BU88: 557 | BY88: 21 ปี 2 เดือน 13 วัน | BZ88: 83
A89: =A88+1 -> 84 | C89: 1997-09-17 | D89: 40 | I89: เครื่องขยายเสียง 1 ชุด | J89: 1 | K89: 52206 | L89: 05.06.264 | M89: =IF(BV89="จำหน่าย",0,SUM(J89*K89)) -> 52206 | N89: =IF(K89<5000,0,M89) -> 52206 | O89: 5 | P89: 2002-09-17 | Q89: 1826 | R89: 10441.2 | S89: 870.1 | T89: 28.59036145 | U89: 0 | V89: 0 | W89: 52205 | X89: 0 | Y89: 52205 | Z89: 0 | AA89: 1 | AB89: 21 | AC89: 2 | AD89: 5 | AE89: 7736 | AF89: NO | AV89: 20 | BS89: 05 | BT89: 06 | BU89: 264 | BY89: 21 ปี 2 เดือน 5 วัน | BZ89: 84
A90: =A89+1 -> 85 | C90: 1997-09-23 | D90: 40 | I90: ชุดทดลองการเคลื่อนที่เชิงหมุน 3 ชุด | J90: 3 | K90: 59920 | L90: 07.57.02-04 | M90: =IF(BV90="จำหน่าย",0,SUM(J90*K90)) -> 179760 | N90: =IF(K90<5000,0,M90) -> 179760 | O90: 5 | P90: 2002-09-23 | Q90: 1826 | R90: 35952 | S90: 2996 | T90: 98.44468784 | U90: 0 | V90: 0 | W90: 179757 | X90: 0 | Y90: 179757 | Z90: 0 | AA90: 3 | AB90: 21 | AC90: 1 | AD90: 30 | AE90: 7730 | AF90: NO | AV90: 20 | BS90: 07 | BT90: 57 | BU90: 02-04 | BY90: 21 ปี 1 เดือน 30 วัน | BZ90: 85
A91: =A90+1 -> 86 | C91: 1997-09-23 | D91: 40 | I91: ชุดทดลองเกี่ยวกับแรงและแวกเตอร์ 6 ชุด | J91: 6 | K91: 53333.33333 | L91: 07.99.01-06 | M91: =IF(BV91="จำหน่าย",0,SUM(J91*K91)) -> 320000 | N91: =IF(K91<5000,0,M91) -> 320000 | O91: 5 | P91: 2002-09-23 | Q91: 1826 | R91: 64000 | S91: 5333.333333 | T91: 175.2464403 | U91: 0 | V91: 0 | W91: 319994 | X91: 0 | Y91: 319994 | Z91: 0 | AA91: 6 | AB91: 21 | AC91: 1 | AD91: 30 | AE91: 7730 | AF91: NO | AV91: 20 | BS91: 07 | BT91: 99 | BU91: 01-06 | BY91: 21 ปี 1 เดือน 30 วัน | BZ91: 86
A92: =A91+1 -> 87 | C92: 1997-09-24 | D92: 40 | I92: ชุดประมวลภาพ 1 ชุด | J92: 1 | K92: 99000 | L92: 07.04.109 | M92: =IF(BV92="จำหน่าย",0,SUM(J92*K92)) -> 99000 | N92: =IF(K92<5000,0,M92) -> 99000 | O92: 5 | P92: 2002-09-24 | Q92: 1826 | R92: 19800 | S92: 1650 | T92: 54.21686747 | U92: 0 | V92: 0 | W92: 98999 | X92: 0 | Y92: 98999 | Z92: 0 | AA92: 1 | AB92: 21 | AC92: 1 | AD92: 29 | AE92: 7729 | AF92: NO | AV92: 20 | BS92: 07 | BT92: 04 | BU92: 109 | BY92: 21 ปี 1 เดือน 29 วัน | BZ92: 87
A93: =A92+1 -> 88 | C93: 1997-09-26 | D93: 40 | I93: เครื่องถ่ายเอกสาร 1 ค. | J93: 1 | K93: 72000 | L93: 01.22.19 | M93: =IF(BV93="จำหน่าย",0,SUM(J93*K93)) -> 72000 | N93: =IF(K93<5000,0,M93) -> 72000 | O93: 8 | P93: 2005-09-26 | Q93: 2922 | R93: 9000 | S93: 750 | T93: 24.64065708 | U93: 0 | V93: 0 | W93: 71999 | X93: 0 | Y93: 71999 | Z93: 0 | AA93: 1 | AB93: 21 | AC93: 1 | AD93: 27 | AE93: 7727 | AF93: NO | AV93: 12.5 | BS93: 01 | BT93: 22 | BU93: 19 | BY93: 21 ปี 1 เดือน 27 วัน | BZ93: 88
A94: =A93+1 -> 89 | C94: 1997-09-30 | D94: 40 | I94: เครื่องคอมพิวเตอร์แม่ข่าย 1 ค. | J94: 1 | K94: 99800 | L94: 01.53.480 | M94: =IF(BV94="จำหน่าย",0,SUM(J94*K94)) -> 99800 | N94: =IF(K94<5000,0,M94) -> 99800 | O94: 3 | P94: 2000-09-30 | Q94: 1096 | R94: 33266.66667 | S94: 2772.222222 | T94: 91.05839416 | U94: 0 | V94: 0 | W94: 99799 | X94: 0 | Y94: 99799 | Z94: 0 | AA94: 1 | AB94: 21 | AC94: 1 | AD94: 23 | AE94: 7723 | AF94: NO | AV94: 33.33333333 | BS94: 01 | BT94: 53 | BU94: 480 | BY94: 21 ปี 1 เดือน 23 วัน | BZ94: 89
A95: =A94+1 -> 90 | C95: 1997-09-30 | D95: 40 | I95: เครื่องสแกนเนอร์ 1 ค. | J95: 1 | K95: 31350 | L95: 01.53.481 | M95: =IF(BV95="จำหน่าย",0,SUM(J95*K95)) -> 31350 | N95: =IF(K95<5000,0,M95) -> 31350 | O95: 3 | P95: 2000-09-30 | Q95: 1096 | R95: 10450 | S95: 870.8333333 | T95: 28.6040146 | U95: 0 | V95: 0 | W95: 31349 | X95: 0 | Y95: 31349 | Z95: 0 | AA95: 1 | AB95: 21 | AC95: 1 | AD95: 23 | AE95: 7723 | AF95: NO | AV95: 33.33333333 | BS95: 01 | BT95: 53 | BU95: 481 | BY95: 21 ปี 1 เดือน 23 วัน | BZ95: 90
A96: =A95+1 -> 91 | C96: 1997-09-30 | D96: 40 | I96: เครื่องคอมพิวเตอร์ 1 ค. | J96: 1 | K96: 75790 | L96: 01.53.484 | M96: =IF(BV96="จำหน่าย",0,SUM(J96*K96)) -> 75790 | N96: =IF(K96<5000,0,M96) -> 75790 | O96: 3 | P96: 2000-09-30 | Q96: 1096 | R96: 25263.33333 | S96: 2105.277778 | T96: 69.15145985 | U96: 0 | V96: 0 | W96: 75789 | X96: 0 | Y96: 75789 | Z96: 0 | AA96: 1 | AB96: 21 | AC96: 1 | AD96: 23 | AE96: 7723 | AF96: NO | AV96: 33.33333333 | BS96: 01 | BT96: 53 | BU96: 484 | BY96: 21 ปี 1 เดือน 23 วัน | BZ96: 91
A97: =A96+1 -> 92 | C97: 1997-09-30 | D97: 40 | I97: เครื่องสแกนเนอร์ 1 ค. | J97: 1 | K97: 34100 | L97: 01.53.486 | M97: =IF(BV97="จำหน่าย",0,SUM(J97*K97)) -> 34100 | N97: =IF(K97<5000,0,M97) -> 34100 | O97: 3 | P97: 2000-09-30 | Q97: 1096 | R97: 11366.66667 | S97: 947.2222222 | T97: 31.11313869 | U97: 0 | V97: 0 | W97: 34099 | X97: 0 | Y97: 34099 | Z97: 0 | AA97: 1 | AB97: 21 | AC97: 1 | AD97: 23 | AE97: 7723 | AF97: NO | AV97: 33.33333333 | BS97: 01 | BT97: 53 | BU97: 486 | BY97: 21 ปี 1 เดือน 23 วัน | BZ97: 92
A98: =A97+1 -> 93 | C98: 1997-09-30 | D98: 40 | I98: Harddisk 4.3 GB 1 ตัว | J98: 1 | K98: 45000 | L98: 01.65.04 | M98: =IF(BV98="จำหน่าย",0,SUM(J98*K98)) -> 45000 | N98: =IF(K98<5000,0,M98) -> 45000 | O98: 3 | P98: 2000-09-30 | Q98: 1096 | R98: 15000 | S98: 1250 | T98: 41.05839416 | U98: 0 | V98: 0 | W98: 44999 | X98: 0 | Y98: 44999 | Z98: 0 | AA98: 1 | AB98: 21 | AC98: 1 | AD98: 23 | AE98: 7723 | AF98: NO | AV98: 33.33333333 | BS98: 01 | BT98: 65 | BU98: 04 | BY98: 21 ปี 1 เดือน 23 วัน | BZ98: 93
A99: =A98+1 -> 94 | C99: 1997-09-30 | D99: 40 | I99: เครื่องพิมพ์เลเซอร์ 1 ค. | J99: 1 | K99: 34100 | L99: 01.72.135 | M99: =IF(BV99="จำหน่าย",0,SUM(J99*K99)) -> 34100 | N99: =IF(K99<5000,0,M99) -> 34100 | O99: 3 | P99: 2000-09-30 | Q99: 1096 | R99: 11366.66667 | S99: 947.2222222 | T99: 31.11313869 | U99: 0 | V99: 0 | W99: 34099 | X99: 0 | Y99: 34099 | Z99: 0 | AA99: 1 | AB99: 21 | AC99: 1 | AD99: 23 | AE99: 7723 | AF99: NO | AV99: 33.33333333 | BS99: 01 | BT99: 72 | BU99: 135 | BY99: 21 ปี 1 เดือน 23 วัน | BZ99: 94
A100: =A99+1 -> 95 | C100: 1997-09-30 | D100: 40 | I100: เครื่องผสมสัญญาณเสียง 1 ค. | J100: 1 | K100: 74000 | L100: 05.06.265 | M100: =IF(BV100="จำหน่าย",0,SUM(J100*K100)) -> 74000 | N100: =IF(K100<5000,0,M100) -> 74000 | O100: 5 | P100: 2002-09-30 | Q100: 1826 | R100: 14800 | S100: 1233.333333 | T100: 40.52573932 | U100: 0 | V100: 0 | W100: 73999 | X100: 0 | Y100: 73999 | Z100: 0 | AA100: 1 | AB100: 21 | AC100: 1 | AD100: 23 | AE100: 7723 | AF100: NO | AV100: 20 | BS100: 05 | BT100: 06 | BU100: 265 | BY100: 21 ปี 1 เดือน 23 วัน | BZ100: 95
A101: =A100+1 -> 96 | C101: 1997-09-30 | D101: 40 | I101: เครื่องกระจายสัญญาณ 1 ค. | J101: 1 | K101: 37000 | L101: 05.31.08 | M101: =IF(BV101="จำหน่าย",0,SUM(J101*K101)) -> 37000 | N101: =IF(K101<5000,0,M101) -> 37000 | O101: 5 | P101: 2002-09-30 | Q101: 1826 | R101: 7400 | S101: 616.6666667 | T101: 20.26286966 | U101: 0 | V101: 0 | W101: 36999 | X101: 0 | Y101: 36999 | Z101: 0 | AA101: 1 | AB101: 21 | AC101: 1 | AD101: 23 | AE101: 7723 | AF101: NO | AV101: 20 | BS101: 05 | BT101: 31 | BU101: 08 | BY101: 21 ปี 1 เดือน 23 วัน | BZ101: 96
A102: =A101+1 -> 97 | C102: 1997-09-30 | D102: 40 | I102: เครื่องปรับกระแสไฟฟ้า 1 ค. | J102: 1 | K102: 51500 | L102: 05.46.50 | M102: =IF(BV102="จำหน่าย",0,SUM(J102*K102)) -> 51500 | N102: =IF(K102<5000,0,M102) -> 51500 | O102: 3 | P102: 2000-09-30 | Q102: 1096 | R102: 17166.66667 | S102: 1430.555556 | T102: 46.98905109 | U102: 0 | V102: 0 | W102: 51499 | X102: 0 | Y102: 51499 | Z102: 0 | AA102: 1 | AB102: 21 | AC102: 1 | AD102: 23 | AE102: 7723 | AF102: NO | AV102: 33.33333333 | BS102: 05 | BT102: 46 | BU102: 50 | BY102: 21 ปี 1 เดือน 23 วัน | BZ102: 97
A103: =A102+1 -> 98 | C103: 1997-09-30 | D103: 40 | I103: แท่นรางหมุนหม้อบด 1 แท่น | J103: 1 | K103: 38500 | L103: 09.05.39 | M103: =IF(BV103="จำหน่าย",0,SUM(J103*K103)) -> 38500 | N103: =IF(K103<5000,0,M103) -> 38500 | O103: 4 | P103: 2001-09-30 | Q103: 1461 | R103: 9625 | S103: 802.0833333 | T103: 26.35181383 | U103: 0 | V103: 0 | W103: 38499 | X103: 0 | Y103: 38499 | Z103: 0 | AA103: 1 | AB103: 21 | AC103: 1 | AD103: 23 | AE103: 7723 | AF103: NO | AV103: 25 | BS103: 09 | BT103: 05 | BU103: 39 | BY103: 21 ปี 1 เดือน 23 วัน | BZ103: 98
A104: =A103+1 -> 99 | C104: 1997-09-30 | D104: 40 | I104: เตาไฟฟ้า 1 เตา | J104: 1 | K104: 85000 | L104: 09.17.02 | M104: =IF(BV104="จำหน่าย",0,SUM(J104*K104)) -> 85000 | N104: =IF(K104<5000,0,M104) -> 85000 | O104: 4 | P104: 2001-09-30 | Q104: 1461 | R104: 21250 | S104: 1770.833333 | T104: 58.17932923 | U104: 0 | V104: 0 | W104: 84999 | X104: 0 | Y104: 84999 | Z104: 0 | AA104: 1 | AB104: 21 | AC104: 1 | AD104: 23 | AE104: 7723 | AF104: NO | AV104: 25 | BS104: 09 | BT104: 17 | BU104: 02 | BY104: 21 ปี 1 เดือน 23 วัน | BZ104: 99
A105: =A104+1 -> 100 | C105: 1997-09-30 | D105: 40 | I105: เตาเซรามิกส์ 1 เตา | J105: 1 | K105: 96000 | L105: 09.17.03 | M105: =IF(BV105="จำหน่าย",0,SUM(J105*K105)) -> 96000 | N105: =IF(K105<5000,0,M105) -> 96000 | O105: 4 | P105: 2001-09-30 | Q105: 1461 | R105: 24000 | S105: 2000 | T105: 65.70841889 | U105: 0 | V105: 0 | W105: 95999 | X105: 0 | Y105: 95999 | Z105: 0 | AA105: 1 | AB105: 21 | AC105: 1 | AD105: 23 | AE105: 7723 | AF105: NO | AV105: 25 | BS105: 09 | BT105: 17 | BU105: 03 | BY105: 21 ปี 1 เดือน 23 วัน | BZ105: 100
A106: =A105+1 -> 101 | C106: 1997-10-01 | D106: 41 | I106: โต๊ะติดผนังเก็บอุปกรณ์เคมี | J106: 1 | K106: 98300 | L106: 01.06.690 | M106: =IF(BV106="จำหน่าย",0,SUM(J106*K106)) -> 98300 | N106: =IF(K106<5000,0,M106) -> 98300 | O106: 8 | P106: 2005-10-01 | Q106: 2922 | R106: 12287.5 | S106: 1023.958333 | T106: 33.64134155 | U106: 0 | V106: 0 | W106: 98299 | X106: 0 | Y106: 98299 | Z106: 0 | AA106: 1 | AB106: 21 | AC106: 1 | AD106: 21 | AE106: 7722 | AF106: NO | AV106: 12.5 | BS106: 01 | BT106: 06 | BU106: 690 | BY106: 21 ปี 1 เดือน 21 วัน | BZ106: 101
A107: =A106+1 -> 102 | C107: 1997-10-01 | D107: 41 | I107: ล้อเลื่อนบรรทุก 3 คัน | J107: 3 | K107: 40000 | L107: 01.52.125-127 | M107: =IF(BV107="จำหน่าย",0,SUM(J107*K107)) -> 120000 | N107: =IF(K107<5000,0,M107) -> 120000 | O107: 8 | P107: 2005-10-01 | Q107: 2922 | R107: 15000 | S107: 1250 | T107: 41.06776181 | U107: 0 | V107: 0 | W107: 119997 | X107: 0 | Y107: 119997 | Z107: 0 | AA107: 3 | AB107: 21 | AC107: 1 | AD107: 21 | AE107: 7722 | AF107: NO | AV107: 12.5 | BS107: 01 | BT107: 52 | BU107: 125-127 | BY107: 21 ปี 1 เดือน 21 วัน | BZ107: 102
A108: =A107+1 -> 103 | C108: 1997-10-06 | D108: 41 | I108: เครื่องบันทึก CD ROM 1 ค. | J108: 1 | K108: 81100 | L108: 01.67.04 | M108: =IF(BV108="จำหน่าย",0,SUM(J108*K108)) -> 81100 | N108: =IF(K108<5000,0,M108) -> 81100 | O108: 3 | P108: 2000-10-06 | Q108: 1096 | R108: 27033.33333 | S108: 2252.777778 | T108: 73.99635036 | U108: 0 | V108: 0 | W108: 81099 | X108: 0 | Y108: 81099 | Z108: 0 | AA108: 1 | AB108: 21 | AC108: 1 | AD108: 16 | AE108: 7717 | AF108: NO | AV108: 33.33333333 | BS108: 01 | BT108: 67 | BU108: 04 | BY108: 21 ปี 1 เดือน 16 วัน | BZ108: 103
A109: =A108+1 -> 104 | C109: 1997-10-06 | D109: 41 | I109: จานรับสัญญาณดาวเทียม 1 ค. | J109: 1 | K109: 65758 | L109: 05.50.03 | M109: =IF(BV109="จำหน่าย",0,SUM(J109*K109)) -> 65758 | N109: =IF(K109<5000,0,M109) -> 65758 | O109: 5 | P109: 2002-10-06 | Q109: 1826 | R109: 13151.6 | S109: 1095.966667 | T109: 36.01204819 | U109: 0 | V109: 0 | W109: 65757 | X109: 0 | Y109: 65757 | Z109: 0 | AA109: 1 | AB109: 21 | AC109: 1 | AD109: 16 | AE109: 7717 | AF109: NO | AV109: 20 | BS109: 05 | BT109: 50 | BU109: 03 | BY109: 21 ปี 1 เดือน 16 วัน | BZ109: 104
A110: =A109+1 -> 105 | C110: 1997-10-24 | D110: 41 | I110: เครื่องปรับอากาศ 35,000 BTU 3 ค. | J110: 3 | K110: 41000 | L110: 01.29.295-297 | M110: =IF(BV110="จำหน่าย",0,SUM(J110*K110)) -> 123000 | N110: =IF(K110<5000,0,M110) -> 123000 | O110: 8 | P110: 2005-10-24 | Q110: 2922 | R110: 15375 | S110: 1281.25 | T110: 42.09445585 | U110: 0 | V110: 0 | W110: 122997 | X110: 0 | Y110: 122997 | Z110: 0 | AA110: 3 | AB110: 21 | AC110: 0 | AD110: 29 | AE110: 7699 | AF110: NO | AV110: 12.5 | BS110: 01 | BT110: 29 | BU110: 295-297 | BY110: 21 ปี 0 เดือน 29 วัน | BZ110: 105
A111: =A110+1 -> 106 | C111: 1997-10-27 | D111: 41 | I111: เครื่องคอมพิวเตอร์ 2 ค. | J111: 2 | K111: 132500 | L111: 01.53.492-496 | M111: =IF(BV111="จำหน่าย",0,SUM(J111*K111)) -> 265000 | N111: =IF(K111<5000,0,M111) -> 265000 | O111: 3 | P111: 2000-10-27 | Q111: 1096 | R111: 88333.33333 | S111: 7361.111111 | T111: 241.7883212 | U111: 0 | V111: 0 | W111: 264998 | X111: 0 | Y111: 264998 | Z111: 0 | AA111: 2 | AB111: 21 | AC111: 0 | AD111: 26 | AE111: 7696 | AF111: NO | AV111: 33.33333333 | BS111: 01 | BT111: 53 | BU111: 492-496 | BY111: 21 ปี 0 เดือน 26 วัน | BZ111: 106
A112: =A111+1 -> 107 | C112: 1997-11-06 | D112: 41 | I112: เครื่องคอมพิวเตอร์ 1 ค. | J112: 1 | K112: 34500 | L112: 01.53.501 | M112: =IF(BV112="จำหน่าย",0,SUM(J112*K112)) -> 34500 | N112: =IF(K112<5000,0,M112) -> 34500 | O112: 3 | P112: 2000-11-06 | Q112: 1096 | R112: 11500 | S112: 958.3333333 | T112: 31.47810219 | U112: 0 | V112: 0 | W112: 34499 | X112: 0 | Y112: 34499 | Z112: 0 | AA112: 1 | AB112: 21 | AC112: 0 | AD112: 16 | AE112: 7686 | AF112: NO | AV112: 33.33333333 | BS112: 01 | BT112: 53 | BU112: 501 | BY112: 21 ปี 0 เดือน 16 วัน | BZ112: 107
A113: =A112+1 -> 108 | C113: 1997-11-06 | D113: 41 | I113: เครื่องคอมพิวเตอร์ 1 ค. | J113: 1 | K113: 34500 | L113: 01.53.503 | M113: =IF(BV113="จำหน่าย",0,SUM(J113*K113)) -> 34500 | N113: =IF(K113<5000,0,M113) -> 34500 | O113: 3 | P113: 2000-11-06 | Q113: 1096 | R113: 11500 | S113: 958.3333333 | T113: 31.47810219 | U113: 0 | V113: 0 | W113: 34499 | X113: 0 | Y113: 34499 | Z113: 0 | AA113: 1 | AB113: 21 | AC113: 0 | AD113: 16 | AE113: 7686 | AF113: NO | AV113: 33.33333333 | BS113: 01 | BT113: 53 | BU113: 503 | BY113: 21 ปี 0 เดือน 16 วัน | BZ113: 108
A114: =A113+1 -> 109 | C114: 1997-11-06 | D114: 41 | I114: เครื่องคอมพิวเตอร์ 2 ค. | J114: 2 | K114: 34500 | L114: 01.53.505-506 | M114: =IF(BV114="จำหน่าย",0,SUM(J114*K114)) -> 69000 | N114: =IF(K114<5000,0,M114) -> 69000 | O114: 3 | P114: 2000-11-06 | Q114: 1096 | R114: 23000 | S114: 1916.666667 | T114: 62.95620438 | U114: 0 | V114: 0 | W114: 68998 | X114: 0 | Y114: 68998 | Z114: 0 | AA114: 2 | AB114: 21 | AC114: 0 | AD114: 16 | AE114: 7686 | AF114: NO | AV114: 33.33333333 | BS114: 01 | BT114: 53 | BU114: 505-506 | BY114: 21 ปี 0 เดือน 16 วัน | BZ114: 109
A115: =A114+1 -> 110 | C115: 1997-11-06 | D115: 41 | I115: เครื่องคอมพิวเตอร์ 1 ค. | J115: 1 | K115: 34500 | L115: 01.53.508 | M115: =IF(BV115="จำหน่าย",0,SUM(J115*K115)) -> 34500 | N115: =IF(K115<5000,0,M115) -> 34500 | O115: 3 | P115: 2000-11-06 | Q115: 1096 | R115: 11500 | S115: 958.3333333 | T115: 31.47810219 | U115: 0 | V115: 0 | W115: 34499 | X115: 0 | Y115: 34499 | Z115: 0 | AA115: 1 | AB115: 21 | AC115: 0 | AD115: 16 | AE115: 7686 | AF115: NO | AV115: 33.33333333 | BS115: 01 | BT115: 53 | BU115: 508 | BY115: 21 ปี 0 เดือน 16 วัน | BZ115: 110
A116: =A115+1 -> 111 | C116: 1997-11-06 | D116: 41 | I116: เครื่องคอมพิวเตอร์ 4 ค. | J116: 4 | K116: 34500 | L116: 01.53.511-514 | M116: =IF(BV116="จำหน่าย",0,SUM(J116*K116)) -> 138000 | N116: =IF(K116<5000,0,M116) -> 138000 | O116: 3 | P116: 2000-11-06 | Q116: 1096 | R116: 46000 | S116: 3833.333333 | T116: 125.9124088 | U116: 0 | V116: 0 | W116: 137996 | X116: 0 | Y116: 137996 | Z116: 0 | AA116: 4 | AB116: 21 | AC116: 0 | AD116: 16 | AE116: 7686 | AF116: NO | AV116: 33.33333333 | BS116: 01 | BT116: 53 | BU116: 511-514 | BY116: 21 ปี 0 เดือน 16 วัน | BZ116: 111
A117: =A116+1 -> 112 | C117: 1997-11-06 | D117: 41 | I117: เครื่องคอมพิวเตอร์ 4 ค. | J117: 4 | K117: 34500 | L117: 01.53.516-519 | M117: =IF(BV117="จำหน่าย",0,SUM(J117*K117)) -> 138000 | N117: =IF(K117<5000,0,M117) -> 138000 | O117: 3 | P117: 2000-11-06 | Q117: 1096 | R117: 46000 | S117: 3833.333333 | T117: 125.9124088 | U117: 0 | V117: 0 | W117: 137996 | X117: 0 | Y117: 137996 | Z117: 0 | AA117: 4 | AB117: 21 | AC117: 0 | AD117: 16 | AE117: 7686 | AF117: NO | AV117: 33.33333333 | BS117: 01 | BT117: 53 | BU117: 516-519 | BY117: 21 ปี 0 เดือน 16 วัน | BZ117: 112
A118: =A117+1 -> 113 | C118: 1997-11-18 | D118: 41 | I118: เครื่องปรับอากาศ 35,000 BTU 1 ค. | J118: 1 | K118: 34000 | L118: 01.29.298 | M118: =IF(BV118="จำหน่าย",0,SUM(J118*K118)) -> 34000 | N118: =IF(K118<5000,0,M118) -> 34000 | O118: 8 | P118: 2005-11-18 | Q118: 2922 | R118: 4250 | S118: 354.1666667 | T118: 11.63586585 | U118: 0 | V118: 0 | W118: 33999 | X118: 0 | Y118: 33999 | Z118: 0 | AA118: 1 | AB118: 21 | AC118: 0 | AD118: 4 | AE118: 7674 | AF118: NO | AV118: 12.5 | BS118: 01 | BT118: 29 | BU118: 298 | BY118: 21 ปี 0 เดือน 4 วัน | BZ118: 113
A119: =A118+1 -> 114 | C119: 1997-11-19 | D119: 41 | I119: เครื่องพิมพ์สำเนาระบบดิจิตอล 1 ค. | J119: 1 | K119: 125000 | L119: 01.46.15 | M119: =IF(BV119="จำหน่าย",0,SUM(J119*K119)) -> 125000 | N119: =IF(K119<5000,0,M119) -> 125000 | O119: 8 | P119: 2005-11-19 | Q119: 2922 | R119: 15625 | S119: 1302.083333 | T119: 42.77891855 | U119: 0 | V119: 0 | W119: 124999 | X119: 0 | Y119: 124999 | Z119: 0 | AA119: 1 | AB119: 21 | AC119: 0 | AD119: 3 | AE119: 7673 | AF119: NO | AV119: 12.5 | BS119: 01 | BT119: 46 | BU119: 15 | BY119: 21 ปี 0 เดือน 3 วัน | BZ119: 114
A120: =A119+1 -> 115 | C120: 1997-11-24 | D120: 41 | I120: เครื่องคอมพิวเตอร์ระบบ UNIX 1 ค. | J120: 1 | K120: 607000 | L120: 01.53.520 | M120: =IF(BV120="จำหน่าย",0,SUM(J120*K120)) -> 607000 | N120: =IF(K120<5000,0,M120) -> 607000 | O120: 3 | P120: 2000-11-24 | Q120: 1096 | R120: 202333.3333 | S120: 16861.11111 | T120: 553.8321168 | U120: 0 | V120: 0 | W120: 606999 | X120: 0 | Y120: 606999 | Z120: 0 | AA120: 1 | AB120: 20 | AC120: 11 | AD120: 29 | AE120: 7668 | AF120: NO | AV120: 33.33333333 | BS120: 01 | BT120: 53 | BU120: 520 | BY120: 20 ปี 11 เดือน 29 วัน | BZ120: 115
A121: =A120+1 -> 116 | C121: 1997-11-24 | D121: 41 | I121: เครื่องกำจัดอากาศเสีย 1 ค. | J121: 1 | K121: 399110 | L121: 07.80.04 | M121: =IF(BV121="จำหน่าย",0,SUM(J121*K121)) -> 399110 | N121: =IF(K121<5000,0,M121) -> 399110 | O121: 5 | P121: 2002-11-24 | Q121: 1826 | R121: 79822 | S121: 6651.833333 | T121: 218.5706462 | U121: 0 | V121: 0 | W121: 399109 | X121: 0 | Y121: 399109 | Z121: 0 | AA121: 1 | AB121: 20 | AC121: 11 | AD121: 29 | AE121: 7668 | AF121: NO | AV121: 20 | BS121: 07 | BT121: 80 | BU121: 04 | BY121: 20 ปี 11 เดือน 29 วัน | BZ121: 116
A122: =A121+1 -> 117 | C122: 1997-11-28 | D122: 41 | I122: เครื่องสำรองไฟฟ้า 1 ค. | J122: 1 | K122: 39600 | L122: 05.46.53 | M122: =IF(BV122="จำหน่าย",0,SUM(J122*K122)) -> 39600 | N122: =IF(K122<5000,0,M122) -> 39600 | O122: 3 | P122: 2000-11-28 | Q122: 1096 | R122: 13200 | S122: 1100 | T122: 36.13138686 | U122: 0 | V122: 0 | W122: 39599 | X122: 0 | Y122: 39599 | Z122: 0 | AA122: 1 | AB122: 20 | AC122: 11 | AD122: 25 | AE122: 7664 | AF122: NO | AV122: 33.33333333 | BS122: 05 | BT122: 46 | BU122: 53 | BY122: 20 ปี 11 เดือน 25 วัน | BZ122: 117
A123: =A122+1 -> 118 | C123: 1997-12-12 | D123: 41 | I123: เครื่องคอมพิวเตอร์ 1 ชุด | J123: 1 | K123: 50000 | L123: 01.53.529 | M123: =IF(BV123="จำหน่าย",0,SUM(J123*K123)) -> 50000 | N123: =IF(K123<5000,0,M123) -> 50000 | O123: 3 | P123: 2000-12-12 | Q123: 1096 | R123: 16666.66667 | S123: 1388.888889 | T123: 45.62043796 | U123: 0 | V123: 0 | W123: 49999 | X123: 0 | Y123: 49999 | Z123: 0 | AA123: 1 | AB123: 20 | AC123: 11 | AD123: 10 | AE123: 7650 | AF123: NO | AV123: 33.33333333 | BS123: 01 | BT123: 53 | BU123: 529 | BY123: 20 ปี 11 เดือน 10 วัน | BZ123: 118
A124: =A123+1 -> 119 | C124: 1997-12-15 | D124: 41 | I124: แป้นบาสเก็ตบอล 1 ชุด | J124: 1 | K124: 39300 | L124: 10.07.07 | M124: =IF(BV124="จำหน่าย",0,SUM(J124*K124)) -> 39300 | N124: =IF(K124<5000,0,M124) -> 39300 | O124: 5 | P124: 2002-12-15 | Q124: 1826 | R124: 7860 | S124: 655 | T124: 21.52245345 | U124: 0 | V124: 0 | W124: 39299 | X124: 0 | Y124: 39299 | Z124: 0 | AA124: 1 | AB124: 20 | AC124: 11 | AD124: 7 | AE124: 7647 | AF124: NO | AV124: 20 | BS124: 10 | BT124: 07 | BU124: 07 | BY124: 20 ปี 11 เดือน 7 วัน | BZ124: 119
A125: =A124+1 -> 120 | C125: 1997-12-22 | D125: 41 | I125: เครื่องผสมและรีดดิน 1 ค. | J125: 1 | K125: 145000 | L125: 09.42.01 | M125: =IF(BV125="จำหน่าย",0,SUM(J125*K125)) -> 145000 | N125: =IF(K125<5000,0,M125) -> 145000 | O125: 5 | P125: 2002-12-22 | Q125: 1826 | R125: 29000 | S125: 2416.666667 | T125: 79.40854326 | U125: 0 | V125: 0 | W125: 144999 | X125: 0 | Y125: 144999 | Z125: 0 | AA125: 1 | AB125: 20 | AC125: 10 | AD125: 31 | AE125: 7640 | AF125: NO | AV125: 20 | BS125: 09 | BT125: 42 | BU125: 01 | BY125: 20 ปี 10 เดือน 31 วัน | BZ125: 120
A126: =A125+1 -> 121 | C126: 1997-12-29 | D126: 41 | I126: เครื่องปรับอากาศ 35,300 BTU 2 ค. | J126: 2 | K126: 38000 | L126: 01.29.300-301 | M126: =IF(BV126="จำหน่าย",0,SUM(J126*K126)) -> 76000 | N126: =IF(K126<5000,0,M126) -> 76000 | O126: 8 | P126: 2005-12-29 | Q126: 2922 | R126: 9500 | S126: 791.6666667 | T126: 26.00958248 | U126: 0 | V126: 0 | W126: 75998 | X126: 0 | Y126: 75998 | Z126: 0 | AA126: 2 | AB126: 20 | AC126: 10 | AD126: 24 | AE126: 7633 | AF126: NO | AV126: 12.5 | BS126: 01 | BT126: 29 | BU126: 300-301 | BY126: 20 ปี 10 เดือน 24 วัน | BZ126: 121
A127: =A126+1 -> 122 | C127: 1997-12-30 | D127: 41 | I127: เครื่องคอมพิวเตอร์ 1 ชุด | J127: 1 | K127: 50000 | L127: 01.53.536 | M127: =IF(BV127="จำหน่าย",0,SUM(J127*K127)) -> 50000 | N127: =IF(K127<5000,0,M127) -> 50000 | O127: 3 | P127: 2000-12-30 | Q127: 1096 | R127: 16666.66667 | S127: 1388.888889 | T127: 45.62043796 | U127: 0 | V127: 0 | W127: 49999 | X127: 0 | Y127: 49999 | Z127: 0 | AA127: 1 | AB127: 20 | AC127: 10 | AD127: 23 | AE127: 7632 | AF127: NO | AV127: 33.33333333 | BS127: 01 | BT127: 53 | BU127: 536 | BY127: 20 ปี 10 เดือน 23 วัน | BZ127: 122
A128: =A127+1 -> 123 | C128: 1998-02-17 | D128: 41 | I128: ปั๊มสูบน้ำบาดาล 1 ชุด | J128: 1 | K128: 37180 | L128: 08.06.54 | M128: =IF(BV128="จำหน่าย",0,SUM(J128*K128)) -> 37180 | N128: =IF(K128<5000,0,M128) -> 37180 | O128: 5 | P128: 2003-02-17 | Q128: 1826 | R128: 7436 | S128: 619.6666667 | T128: 20.36144578 | U128: 0 | V128: 0 | W128: 37179 | X128: 0 | Y128: 37179 | Z128: 0 | AA128: 1 | AB128: 20 | AC128: 9 | AD128: 5 | AE128: 7583 | AF128: NO | AV128: 20 | BS128: 08 | BT128: 06 | BU128: 54 | BY128: 20 ปี 9 เดือน 5 วัน | BZ128: 123
A129: =A128+1 -> 124 | C129: 1998-02-22 | D129: 41 | I129: เครื่องชั่งไฟฟ้า 1 ค. | J129: 1 | K129: 72600 | L129: 07.79.13 | M129: =IF(BV129="จำหน่าย",0,SUM(J129*K129)) -> 72600 | N129: =IF(K129<5000,0,M129) -> 72600 | O129: 5 | P129: 2003-02-22 | Q129: 1826 | R129: 14520 | S129: 1210 | T129: 39.75903614 | U129: 0 | V129: 0 | W129: 72599 | X129: 0 | Y129: 72599 | Z129: 0 | AA129: 1 | AB129: 20 | AC129: 8 | AD129: 31 | AE129: 7578 | AF129: NO | AV129: 20 | BS129: 07 | BT129: 79 | BU129: 13 | BY129: 20 ปี 8 เดือน 31 วัน | BZ129: 124
A130: =A129+1 -> 125 | C130: 1998-03-30 | D130: 41 | I130: เครื่องคอมพิวเตอร์ 1 ค. | J130: 1 | K130: 30000 | L130: 01.53.559 | M130: =IF(BV130="จำหน่าย",0,SUM(J130*K130)) -> 30000 | N130: =IF(K130<5000,0,M130) -> 30000 | O130: 3 | P130: 2001-03-30 | Q130: 1096 | R130: 10000 | S130: 833.3333333 | T130: 27.37226277 | U130: 0 | V130: 0 | W130: 29999 | X130: 0 | Y130: 29999 | Z130: 0 | AA130: 1 | AB130: 20 | AC130: 7 | AD130: 23 | AE130: 7542 | AF130: NO | AV130: 33.33333333 | BS130: 01 | BT130: 53 | BU130: 559 | BY130: 20 ปี 7 เดือน 23 วัน | BZ130: 125
A131: =A130+1 -> 126 | C131: 1998-03-30 | D131: 41 | I131: เครื่องคอมพิวเตอร์ 1 ค. | J131: 1 | K131: 30000 | L131: 01.53.560 | M131: =IF(BV131="จำหน่าย",0,SUM(J131*K131)) -> 30000 | N131: =IF(K131<5000,0,M131) -> 30000 | O131: 3 | P131: 2001-03-30 | Q131: 1096 | R131: 10000 | S131: 833.3333333 | T131: 27.37226277 | U131: 0 | V131: 0 | W131: 29999 | X131: 0 | Y131: 29999 | Z131: 0 | AA131: 1 | AB131: 20 | AC131: 7 | AD131: 23 | AE131: 7542 | AF131: NO | AV131: 33.33333333 | BS131: 01 | BT131: 53 | BU131: 560 | BY131: 20 ปี 7 เดือน 23 วัน | BZ131: 126
A132: =A131+1 -> 127 | C132: 1998-03-30 | D132: 41 | I132: เครื่องคอมพิวเตอร์ 1 ค. | J132: 1 | K132: 30000 | L132: 01.53.561 | M132: =IF(BV132="จำหน่าย",0,SUM(J132*K132)) -> 30000 | N132: =IF(K132<5000,0,M132) -> 30000 | O132: 3 | P132: 2001-03-30 | Q132: 1096 | R132: 10000 | S132: 833.3333333 | T132: 27.37226277 | U132: 0 | V132: 0 | W132: 29999 | X132: 0 | Y132: 29999 | Z132: 0 | AA132: 1 | AB132: 20 | AC132: 7 | AD132: 23 | AE132: 7542 | AF132: NO | AV132: 33.33333333 | BS132: 01 | BT132: 53 | BU132: 561 | BY132: 20 ปี 7 เดือน 23 วัน | BZ132: 127
A133: =A132+1 -> 128 | C133: 1998-03-30 | D133: 41 | I133: เครื่องคอมพิวเตอร์ 1 ค. | J133: 1 | K133: 30000 | L133: 01.53.562 | M133: =IF(BV133="จำหน่าย",0,SUM(J133*K133)) -> 30000 | N133: =IF(K133<5000,0,M133) -> 30000 | O133: 3 | P133: =DATE(YEAR(C133)+O133,MONTH(C133),DAY(C133)) -> 2001-03-30 | Q133: =IF(NOT(OR(ISBLANK(P133),ISBLANK(C133))),P133-C133,"") -> 1096 | R133: =SLN(N133,,O133) -> 10000 | S133: =SLN(R133,,12) -> 833.3333333 | T133: =SLN(N133,,Q133) -> 27.37226277 | U133: =IF(N133=0,0,IF(AE133<=Q133,1,0)) -> 0 | V133: 0 | W133: 29999 | X133: 0 | Y133: 29999 | Z133: 0 | AA133: 1 | AB133: =DATEDIF(C133,TODAY(),"Y") -> 20 | AC133: =DATEDIF(C133,TODAY(),"YM") -> 7 | AD133: =DATEDIF(C133,TODAY(),"md")+1 -> 23 | AE133: =DATEDIF(C133,TODAY(),"d")+1 -> 7542 | AF133: =IF(N133=0,"No",IF(AE133>Q133,"NO","YES")) -> NO | AV133: =100/O133 -> 33.33333333 | BS133: 01 | BT133: 53 | BU133: 562 | BY133: =CONCATENATE(AB133," ปี ",AC133," เดือน ",AD133," วัน ") -> 20 ปี 7 เดือน 23 วัน | BZ133: =A133 -> 128
A134: =A133+1 -> 129 | C134: 1998-03-30 | D134: 41 | I134: เครื่องคอมพิวเตอร์ 1 ค. | J134: 1 | K134: 30000 | L134: 01.53.563 | M134: =IF(BV134="จำหน่าย",0,SUM(J134*K134)) -> 30000 | N134: =IF(K134<5000,0,M134) -> 30000 | O134: 3 | P134: 2001-03-30 | Q134: 1096 | R134: 10000 | S134: 833.3333333 | T134: 27.37226277 | U134: 0 | V134: 0 | W134: 29999 | X134: 0 | Y134: 29999 | Z134: 0 | AA134: 1 | AB134: 20 | AC134: 7 | AD134: 23 | AE134: 7542 | AF134: NO | AV134: 33.33333333 | BS134: 01 | BT134: 53 | BU134: 563 | BY134: 20 ปี 7 เดือน 23 วัน | BZ134: 129
A135: =A134+1 -> 130 | C135: 1998-03-30 | D135: 41 | I135: เครื่องคอมพิวเตอร์ 1 ค. | J135: 1 | K135: 30000 | L135: 01.53.564 | M135: =IF(BV135="จำหน่าย",0,SUM(J135*K135)) -> 30000 | N135: =IF(K135<5000,0,M135) -> 30000 | O135: 3 | P135: 2001-03-30 | Q135: 1096 | R135: 10000 | S135: 833.3333333 | T135: 27.37226277 | U135: 0 | V135: =SUM(R135*U135/12) -> 0 | W135: =IF(N135=0,0,IF((R135*AB135)+(R135*AC135/12)>=N135,N135-J135,((R135*AB135)+(R135*AC135/12)))) -> 29999 | X135: =SUM(T135*U135) -> 0 | Y135: =IF(N135=0,0,IF((DATEDIF(C135,TODAY(),"d")+1)*T135>=N135,N135-J135,(DATEDIF(C135,TODAY(),"d")+1)*T135)) -> 29999 | Z135: =IF(U135=0,0,IF(OR(DAY(C135)=1,MONTH(C135)<>MONTH(TODAY()),YEAR(C135)<>YEAR(TODAY())),T135*((DAY(DATE(YEAR(TODAY()),MONTH(TODAY())+1,1)-1))),T135*((DAY(DATE(YEAR(TODAY()),MONTH(TODAY())+1,1)-1)-DAY(C135)+1)))) -> 0 | AA135: =IF(N135=0,0,IF(X135>=N135,(J135),(N135-Y135))) -> 1 | AB135: 20 | AC135: 7 | AD135: 23 | AE135: 7542 | AF135: NO | AV135: 33.33333333 | BS135: 01 | BT135: 53 | BU135: 564 | BY135: 20 ปี 7 เดือน 23 วัน | BZ135: 130
A136: =A135+1 -> 131 | C136: 1998-03-30 | D136: 41 | I136: เครื่องคอมพิวเตอร์ 1 ค. | J136: 1 | K136: 30000 | L136: 01.53.565 | M136: =IF(BV136="จำหน่าย",0,SUM(J136*K136)) -> 30000 | N136: =IF(K136<5000,0,M136) -> 30000 | O136: 3 | P136: 2001-03-30 | Q136: 1096 | R136: 10000 | S136: 833.3333333 | T136: 27.37226277 | U136: 0 | V136: 0 | W136: 29999 | X136: 0 | Y136: 29999 | Z136: 0 | AA136: 1 | AB136: 20 | AC136: 7 | AD136: 23 | AE136: 7542 | AF136: NO | AV136: 33.33333333 | BS136: 01 | BT136: 53 | BU136: 565 | BY136: 20 ปี 7 เดือน 23 วัน | BZ136: 131
A137: =A136+1 -> 132 | C137: 1998-03-30 | D137: 41 | I137: เครื่องคอมพิวเตอร์ 1 ค. | J137: 1 | K137: 30000 | L137: 01.53.566 | M137: =IF(BV137="จำหน่าย",0,SUM(J137*K137)) -> 30000 | N137: =IF(K137<5000,0,M137) -> 30000 | O137: 3 | P137: 2001-03-30 | Q137: 1096 | R137: 10000 | S137: 833.3333333 | T137: 27.37226277 | U137: 0 | V137: 0 | W137: 29999 | X137: 0 | Y137: 29999 | Z137: 0 | AA137: 1 | AB137: 20 | AC137: 7 | AD137: 23 | AE137: 7542 | AF137: NO | AV137: 33.33333333 | BS137: 01 | BT137: 53 | BU137: 566 | BY137: 20 ปี 7 เดือน 23 วัน | BZ137: 132
A138: =A137+1 -> 133 | C138: 1998-03-30 | D138: 41 | I138: เครื่องคอมพิวเตอร์ 1 ค. | J138: 1 | K138: 30000 | L138: 01.53.567 | M138: =IF(BV138="จำหน่าย",0,SUM(J138*K138)) -> 30000 | N138: =IF(K138<5000,0,M138) -> 30000 | O138: 3 | P138: 2001-03-30 | Q138: 1096 | R138: 10000 | S138: 833.3333333 | T138: 27.37226277 | U138: 0 | V138: 0 | W138: 29999 | X138: 0 | Y138: 29999 | Z138: 0 | AA138: 1 | AB138: 20 | AC138: 7 | AD138: 23 | AE138: 7542 | AF138: NO | AV138: 33.33333333 | BS138: 01 | BT138: 53 | BU138: 567 | BY138: 20 ปี 7 เดือน 23 วัน | BZ138: 133
A139: =A138+1 -> 134 | C139: 1998-03-30 | D139: 41 | I139: เครื่องคอมพิวเตอร์ 1 ค. | J139: 1 | K139: 30000 | L139: 01.53.568 | M139: =IF(BV139="จำหน่าย",0,SUM(J139*K139)) -> 30000 | N139: =IF(K139<5000,0,M139) -> 30000 | O139: 3 | P139: 2001-03-30 | Q139: 1096 | R139: 10000 | S139: 833.3333333 | T139: 27.37226277 | U139: 0 | V139: 0 | W139: 29999 | X139: 0 | Y139: 29999 | Z139: 0 | AA139: 1 | AB139: 20 | AC139: 7 | AD139: 23 | AE139: 7542 | AF139: NO | AV139: 33.33333333 | BS139: 01 | BT139: 53 | BU139: 568 | BY139: 20 ปี 7 เดือน 23 วัน | BZ139: 134
A140: =A139+1 -> 135 | C140: 1998-03-30 | D140: 41 | I140: เครื่องคอมพิวเตอร์ 1 ค. | J140: 1 | K140: 30000 | L140: 01.53.569 | M140: =IF(BV140="จำหน่าย",0,SUM(J140*K140)) -> 30000 | N140: =IF(K140<5000,0,M140) -> 30000 | O140: 3 | P140: 2001-03-30 | Q140: 1096 | R140: 10000 | S140: 833.3333333 | T140: 27.37226277 | U140: 0 | V140: 0 | W140: 29999 | X140: 0 | Y140: 29999 | Z140: 0 | AA140: 1 | AB140: 20 | AC140: 7 | AD140: 23 | AE140: 7542 | AF140: NO | AV140: 33.33333333 | BS140: 01 | BT140: 53 | BU140: 569 | BY140: 20 ปี 7 เดือน 23 วัน | BZ140: 135
A141: =A140+1 -> 136 | C141: 1998-03-30 | D141: 41 | I141: เครื่องคอมพิวเตอร์ 1 ค. | J141: 1 | K141: 30000 | L141: 01.53.570 | M141: =IF(BV141="จำหน่าย",0,SUM(J141*K141)) -> 30000 | N141: =IF(K141<5000,0,M141) -> 30000 | O141: 3 | P141: 2001-03-30 | Q141: 1096 | R141: 10000 | S141: 833.3333333 | T141: 27.37226277 | U141: 0 | V141: 0 | W141: 29999 | X141: 0 | Y141: 29999 | Z141: 0 | AA141: 1 | AB141: 20 | AC141: 7 | AD141: 23 | AE141: 7542 | AF141: NO | AV141: 33.33333333 | BS141: 01 | BT141: 53 | BU141: 570 | BY141: 20 ปี 7 เดือน 23 วัน | BZ141: 136
A142: =A141+1 -> 137 | C142: 1998-03-30 | D142: 41 | I142: เครื่องคอมพิวเตอร์ 1 ค. | J142: 1 | K142: 30000 | L142: 01.53.571 | M142: =IF(BV142="จำหน่าย",0,SUM(J142*K142)) -> 30000 | N142: =IF(K142<5000,0,M142) -> 30000 | O142: 3 | P142: 2001-03-30 | Q142: 1096 | R142: 10000 | S142: 833.3333333 | T142: 27.37226277 | U142: 0 | V142: 0 | W142: 29999 | X142: 0 | Y142: 29999 | Z142: 0 | AA142: 1 | AB142: 20 | AC142: 7 | AD142: 23 | AE142: 7542 | AF142: NO | AV142: 33.33333333 | BS142: 01 | BT142: 53 | BU142: 571 | BY142: 20 ปี 7 เดือน 23 วัน | BZ142: 137
A143: =A142+1 -> 138 | C143: 1998-04-02 | D143: 41 | I143: เครื่องพิมพ์สำเนาระบบดิจิตอล 1 ค. | J143: 1 | K143: 140000 | L143: 01.46.17 | M143: =IF(BV143="จำหน่าย",0,SUM(J143*K143)) -> 140000 | N143: =IF(K143<5000,0,M143) -> 140000 | O143: 8 | P143: 2006-04-02 | Q143: 2922 | R143: 17500 | S143: 1458.333333 | T143: 47.91238877 | U143: 0 | V143: 0 | W143: 139999 | X143: 0 | Y143: 139999 | Z143: 0 | AA143: 1 | AB143: 20 | AC143: 7 | AD143: 20 | AE143: 7539 | AF143: NO | AV143: 12.5 | BS143: 01 | BT143: 46 | BU143: 17 | BY143: 20 ปี 7 เดือน 20 วัน | BZ143: 138
A144: =A143+1 -> 139 | C144: 1998-04-02 | D144: 41 | I144: เครื่องพิมพ์เลเซอร์ 1 ค. | J144: 1 | K144: 48499 | L144: 01.72.146 | M144: =IF(BV144="จำหน่าย",0,SUM(J144*K144)) -> 48499 | N144: =IF(K144<5000,0,M144) -> 48499 | O144: 3 | P144: 2001-04-02 | Q144: 1096 | R144: 16166.33333 | S144: 1347.194444 | T144: 44.25091241 | U144: 0 | V144: 0 | W144: 48498 | X144: 0 | Y144: 48498 | Z144: 0 | AA144: 1 | AB144: 20 | AC144: 7 | AD144: 20 | AE144: 7539 | AF144: NO | AV144: 33.33333333 | BS144: 01 | BT144: 72 | BU144: 146 | BY144: 20 ปี 7 เดือน 20 วัน | BZ144: 139
A145: =A144+1 -> 140 | C145: 1998-04-16 | D145: 41 | I145: เครื่องคอมพิวเตอร์ 1 ชุด | J145: 1 | K145: 30000 | L145: 01.53.577 | M145: =IF(BV145="จำหน่าย",0,SUM(J145*K145)) -> 30000 | N145: =IF(K145<5000,0,M145) -> 30000 | O145: 3 | P145: 2001-04-16 | Q145: 1096 | R145: 10000 | S145: 833.3333333 | T145: 27.37226277 | U145: 0 | V145: 0 | W145: 29999 | X145: 0 | Y145: 29999 | Z145: 0 | AA145: 1 | AB145: 20 | AC145: 7 | AD145: 6 | AE145: 7525 | AF145: NO | AV145: 33.33333333 | BS145: 01 | BT145: 53 | BU145: 577 | BY145: 20 ปี 7 เดือน 6 วัน | BZ145: 140
A146: =A145+1 -> 141 | C146: 1998-04-20 | D146: 41 | I146: ตู้แช่ 1 ค. | J146: 1 | K146: 75000 | L146: 01.09.100 | M146: =IF(BV146="จำหน่าย",0,SUM(J146*K146)) -> 75000 | N146: =IF(K146<5000,0,M146) -> 75000 | O146: 8 | P146: 2006-04-20 | Q146: 2922 | R146: 9375 | S146: 781.25 | T146: 25.66735113 | U146: 0 | V146: 0 | W146: 74999 | X146: 0 | Y146: 74999 | Z146: 0 | AA146: 1 | AB146: 20 | AC146: 7 | AD146: 2 | AE146: 7521 | AF146: NO | AV146: 12.5 | BS146: 01 | BT146: 09 | BU146: 100 | BY146: 20 ปี 7 เดือน 2 วัน | BZ146: 141
A147: =A146+1 -> 142 | C147: 1998-05-18 | D147: 41 | I147: เครื่องคอมพิวเตอร์ 2 ค. | J147: 2 | K147: 30000 | L147: 01.53.584-585 | M147: =IF(BV147="จำหน่าย",0,SUM(J147*K147)) -> 60000 | N147: =IF(K147<5000,0,M147) -> 60000 | O147: 3 | P147: 2001-05-18 | Q147: 1096 | R147: 20000 | S147: 1666.666667 | T147: 54.74452555 | U147: 0 | V147: 0 | W147: 59998 | X147: 0 | Y147: 59998 | Z147: 0 | AA147: 2 | AB147: 20 | AC147: 6 | AD147: 4 | AE147: 7493 | AF147: NO | AV147: 33.33333333 | BS147: 01 | BT147: 53 | BU147: 584-585 | BY147: 20 ปี 6 เดือน 4 วัน | BZ147: 142
A148: =A147+1 -> 143 | C148: 1998-05-18 | D148: 41 | I148: เครื่องคอมพิวเตอร์แบบพกพา 1 ค. | J148: 1 | K148: 86790 | L148: 01.53.588 | M148: =IF(BV148="จำหน่าย",0,SUM(J148*K148)) -> 86790 | N148: =IF(K148<5000,0,M148) -> 86790 | O148: 3 | P148: 2001-05-18 | Q148: 1096 | R148: 28930 | S148: 2410.833333 | T148: 79.1879562 | U148: 0 | V148: 0 | W148: 86789 | X148: 0 | Y148: 86789 | Z148: 0 | AA148: 1 | AB148: 20 | AC148: 6 | AD148: 4 | AE148: 7493 | AF148: NO | AV148: 33.33333333 | BS148: 01 | BT148: 53 | BU148: 588 | BY148: 20 ปี 6 เดือน 4 วัน | BZ148: 143
A149: =A148+1 -> 144 | C149: 1998-05-18 | D149: 41 | I149: เครื่องพิมพ์เลเซอร์ 1 ค. | J149: 1 | K149: 45000 | L149: 01.72.148 | M149: =IF(BV149="จำหน่าย",0,SUM(J149*K149)) -> 45000 | N149: =IF(K149<5000,0,M149) -> 45000 | O149: 3 | P149: 2001-05-18 | Q149: 1096 | R149: 15000 | S149: 1250 | T149: 41.05839416 | U149: 0 | V149: 0 | W149: 44999 | X149: 0 | Y149: 44999 | Z149: 0 | AA149: 1 | AB149: 20 | AC149: 6 | AD149: 4 | AE149: 7493 | AF149: NO | AV149: 33.33333333 | BS149: 01 | BT149: 72 | BU149: 148 | BY149: 20 ปี 6 เดือน 4 วัน | BZ149: 144
A150: =A149+1 -> 145 | C150: 1998-05-18 | D150: 41 | I150: เครื่องพิมพ์เลเซอร์ 1 ค. | J150: 1 | K150: 35000 | L150: 01.72.150 | M150: =IF(BV150="จำหน่าย",0,SUM(J150*K150)) -> 35000 | N150: =IF(K150<5000,0,M150) -> 35000 | O150: 3 | P150: 2001-05-18 | Q150: 1096 | R150: 11666.66667 | S150: 972.2222222 | T150: 31.93430657 | U150: 0 | V150: 0 | W150: 34999 | X150: 0 | Y150: 34999 | Z150: 0 | AA150: 1 | AB150: 20 | AC150: 6 | AD150: 4 | AE150: 7493 | AF150: NO | AV150: 33.33333333 | BS150: 01 | BT150: 72 | BU150: 150 | BY150: 20 ปี 6 เดือน 4 วัน | BZ150: 145
A151: =A150+1 -> 146 | C151: 1998-05-18 | D151: 41 | I151: เครื่องเล่นวีดีทัศน์ 2 ค. | J151: 2 | K151: 41500 | L151: 05.09.214-215 | M151: =IF(BV151="จำหน่าย",0,SUM(J151*K151)) -> 83000 | N151: =IF(K151<5000,0,M151) -> 83000 | O151: 5 | P151: 2003-05-18 | Q151: 1826 | R151: 16600 | S151: 1383.333333 | T151: 45.45454545 | U151: 0 | V151: 0 | W151: 82998 | X151: 0 | Y151: 82998 | Z151: 0 | AA151: 2 | AB151: 20 | AC151: 6 | AD151: 4 | AE151: 7493 | AF151: NO | AV151: 20 | BS151: 05 | BT151: 09 | BU151: 214-215 | BY151: 20 ปี 6 เดือน 4 วัน | BZ151: 146
A152: =A151+1 -> 147 | C152: 1998-05-18 | D152: 41 | I152: โทรทัศน์สี 34" 1 ค. | J152: 1 | K152: 49900 | L152: 05.10.270 | M152: =IF(BV152="จำหน่าย",0,SUM(J152*K152)) -> 49900 | N152: =IF(K152<5000,0,M152) -> 49900 | O152: 5 | P152: 2003-05-18 | Q152: 1826 | R152: 9980 | S152: 831.6666667 | T152: 27.32749179 | U152: 0 | V152: 0 | W152: 49899 | X152: 0 | Y152: 49899 | Z152: 0 | AA152: 1 | AB152: 20 | AC152: 6 | AD152: 4 | AE152: 7493 | AF152: NO | AV152: 20 | BS152: 05 | BT152: 10 | BU152: 270 | BY152: 20 ปี 6 เดือน 4 วัน | BZ152: 147
A153: =A152+1 -> 148 | C153: 1998-05-18 | D153: 41 | I153: โทรทัศนสี 29" 2 ค. | J153: 2 | K153: 31150 | L153: 05.10.275-276 | M153: =IF(BV153="จำหน่าย",0,SUM(J153*K153)) -> 62300 | N153: =IF(K153<5000,0,M153) -> 62300 | O153: 5 | P153: 2003-05-18 | Q153: 1826 | R153: 12460 | S153: 1038.333333 | T153: 34.11829135 | U153: 0 | V153: 0 | W153: 62298 | X153: 0 | Y153: 62298 | Z153: 0 | AA153: 2 | AB153: 20 | AC153: 6 | AD153: 4 | AE153: 7493 | AF153: NO | AV153: 20 | BS153: 05 | BT153: 10 | BU153: 275-276 | BY153: 20 ปี 6 เดือน 4 วัน | BZ153: 148
A154: =A153+1 -> 149 | C154: 1998-05-18 | D154: 41 | I154: เครื่องตัดต่อภาพ 1 ค. | J154: 1 | K154: 56000 | L154: 06.06.01 | M154: =IF(BV154="จำหน่าย",0,SUM(J154*K154)) -> 56000 | N154: =IF(K154<5000,0,M154) -> 56000 | O154: 5 | P154: 2003-05-18 | Q154: 1826 | R154: 11200 | S154: 933.3333333 | T154: 30.66812705 | U154: 0 | V154: 0 | W154: 55999 | X154: 0 | Y154: 55999 | Z154: 0 | AA154: 1 | AB154: 20 | AC154: 6 | AD154: 4 | AE154: 7493 | AF154: NO | AV154: 20 | BS154: 06 | BT154: 06 | BU154: 01 | BY154: 20 ปี 6 เดือน 4 วัน | BZ154: 149
A155: =A154+1 -> 150 | C155: 1998-05-18 | D155: 41 | I155: กล้องถ่ายวีดีทัศน์ 1 ตัว | J155: 1 | K155: 39900 | L155: 06.17.28 | M155: =IF(BV155="จำหน่าย",0,SUM(J155*K155)) -> 39900 | N155: =IF(K155<5000,0,M155) -> 39900 | O155: 5 | P155: 2003-05-18 | Q155: 1826 | R155: 7980 | S155: 665 | T155: 21.85104053 | U155: 0 | V155: 0 | W155: 39899 | X155: 0 | Y155: 39899 | Z155: 0 | AA155: 1 | AB155: 20 | AC155: 6 | AD155: 4 | AE155: 7493 | AF155: NO | AV155: 20 | BS155: 06 | BT155: 17 | BU155: 28 | BY155: 20 ปี 6 เดือน 4 วัน | BZ155: 150
A156: =A155+1 -> 151 | C156: 1998-06-11 | D156: 41 | I156: เครื่องคอมพิวเตอร์แบบพกพา 1 ค. | J156: 1 | K156: 90090 | L156: 01.53.601 | M156: =IF(BV156="จำหน่าย",0,SUM(J156*K156)) -> 90090 | N156: =IF(K156<5000,0,M156) -> 90090 | O156: 3 | P156: 2001-06-11 | Q156: 1096 | R156: 30030 | S156: 2502.5 | T156: 82.19890511 | U156: 0 | V156: 0 | W156: 90089 | X156: 0 | Y156: 90089 | Z156: 0 | AA156: 1 | AB156: 20 | AC156: 5 | AD156: 11 | AE156: 7469 | AF156: NO | AV156: 33.33333333 | BS156: 01 | BT156: 53 | BU156: 601 | BY156: 20 ปี 5 เดือน 11 วัน | BZ156: 151
A157: =A156+1 -> 152 | C157: 1998-06-29 | D157: 41 | I157: รถบัส 1 คัน | J157: 1 | K157: 88000 | L157: 02.02.18 | M157: =IF(BV157="จำหน่าย",0,SUM(J157*K157)) -> 88000 | N157: =IF(K157<5000,0,M157) -> 88000 | O157: 5 | P157: 2003-06-29 | Q157: 1826 | R157: 17600 | S157: 1466.666667 | T157: 48.19277108 | U157: 0 | V157: 0 | W157: 87999 | X157: 0 | Y157: 87999 | Z157: 0 | AA157: 1 | AB157: 20 | AC157: 4 | AD157: 24 | AE157: 7451 | AF157: NO | AV157: 20 | BS157: 02 | BT157: 02 | BU157: 18 | BY157: 20 ปี 4 เดือน 24 วัน | BZ157: 152
A158: =A157+1 -> 153 | C158: 1998-07-07 | D158: 41 | I158: เครื่องคอมพิวเตอร์แม่ข่าย 1 ชุด | J158: 1 | K158: 99550 | L158: 01.53.603 | M158: =IF(BV158="จำหน่าย",0,SUM(J158*K158)) -> 99550 | N158: =IF(K158<5000,0,M158) -> 99550 | O158: 3 | P158: 2001-07-07 | Q158: 1096 | R158: 33183.33333 | S158: 2765.277778 | T158: 90.83029197 | U158: 0 | V158: 0 | W158: 99549 | X158: 0 | Y158: 99549 | Z158: 0 | AA158: 1 | AB158: 20 | AC158: 4 | AD158: 15 | AE158: 7443 | AF158: NO | AV158: 33.33333333 | BS158: 01 | BT158: 53 | BU158: 603 | BY158: 20 ปี 4 เดือน 15 วัน | BZ158: 153
A159: =A158+1 -> 154 | C159: 1998-07-07 | D159: 41 | I159: เครื่องพิมพ์เลเซอร์ 1 ค. | J159: 1 | K159: 54780 | L159: 01.72.153 | M159: =IF(BV159="จำหน่าย",0,SUM(J159*K159)) -> 54780 | N159: =IF(K159<5000,0,M159) -> 54780 | O159: 3 | P159: 2001-07-07 | Q159: 1096 | R159: 18260 | S159: 1521.666667 | T159: 49.98175182 | U159: 0 | V159: 0 | W159: 54779 | X159: 0 | Y159: 54779 | Z159: 0 | AA159: 1 | AB159: 20 | AC159: 4 | AD159: 15 | AE159: 7443 | AF159: NO | AV159: 33.33333333 | BS159: 01 | BT159: 72 | BU159: 153 | BY159: 20 ปี 4 เดือน 15 วัน | BZ159: 154
A160: =A159+1 -> 155 | C160: 1998-07-13 | D160: 41 | I160: เคาท์เตอร์สำนักงาน 1 ชุด | J160: 1 | K160: 75000 | L160: 01.36.26 | M160: =IF(BV160="จำหน่าย",0,SUM(J160*K160)) -> 75000 | N160: =IF(K160<5000,0,M160) -> 75000 | O160: 8 | P160: 2006-07-13 | Q160: 2922 | R160: 9375 | S160: 781.25 | T160: 25.66735113 | U160: 0 | V160: 0 | W160: 74999 | X160: 0 | Y160: 74999 | Z160: 0 | AA160: 1 | AB160: 20 | AC160: 4 | AD160: 9 | AE160: 7437 | AF160: NO | AV160: 12.5 | BS160: 01 | BT160: 36 | BU160: 26 | BY160: 20 ปี 4 เดือน 9 วัน | BZ160: 155
A161: =A160+1 -> 156 | C161: 1998-07-13 | D161: 41 | I161: รถบัส 1 คัน | J161: 1 | K161: 88000 | L161: 02.02.19 | M161: =IF(BV161="จำหน่าย",0,SUM(J161*K161)) -> 88000 | N161: =IF(K161<5000,0,M161) -> 88000 | O161: 5 | P161: 2003-07-13 | Q161: 1826 | R161: 17600 | S161: 1466.666667 | T161: 48.19277108 | U161: 0 | V161: 0 | W161: 87999 | X161: 0 | Y161: 87999 | Z161: 0 | AA161: 1 | AB161: 20 | AC161: 4 | AD161: 9 | AE161: 7437 | AF161: NO | AV161: 20 | BS161: 02 | BT161: 02 | BU161: 19 | BY161: 20 ปี 4 เดือน 9 วัน | BZ161: 156
A162: =A161+1 -> 157 | C162: 1998-07-14 | D162: 41 | I162: เครื่องปรับอากาศ 1 ค. | J162: 1 | K162: 33000 | L162: 01.29.306 | M162: =IF(BV162="จำหน่าย",0,SUM(J162*K162)) -> 33000 | N162: =IF(K162<5000,0,M162) -> 33000 | O162: 8 | P162: 2006-07-14 | Q162: 2922 | R162: 4125 | S162: 343.75 | T162: 11.2936345 | U162: 0 | V162: 0 | W162: 32999 | X162: 0 | Y162: 32999 | Z162: 0 | AA162: 1 | AB162: 20 | AC162: 4 | AD162: 8 | AE162: 7436 | AF162: NO | AV162: 12.5 | BS162: 01 | BT162: 29 | BU162: 306 | BY162: 20 ปี 4 เดือน 8 วัน | BZ162: 157
A163: =A162+1 -> 158 | C163: 1998-07-14 | D163: 41 | I163: เครื่องคอมพิวเตอร์ 2 ค. | J163: 2 | K163: 38000 | L163: 01.53.605-606 | M163: =IF(BV163="จำหน่าย",0,SUM(J163*K163)) -> 76000 | N163: =IF(K163<5000,0,M163) -> 76000 | O163: 3 | P163: 2001-07-14 | Q163: 1096 | R163: 25333.33333 | S163: 2111.111111 | T163: 69.34306569 | U163: 0 | V163: 0 | W163: 75998 | X163: 0 | Y163: 75998 | Z163: 0 | AA163: 2 | AB163: 20 | AC163: 4 | AD163: 8 | AE163: 7436 | AF163: NO | AV163: 33.33333333 | BS163: 01 | BT163: 53 | BU163: 605-606 | BY163: 20 ปี 4 เดือน 8 วัน | BZ163: 158
A164: =A163+1 -> 159 | C164: 1998-07-14 | D164: 41 | I164: เครื่องคอมพิวเตอร์ 1 ค. | J164: 1 | K164: 38000 | L164: 01.53.608 | M164: =IF(BV164="จำหน่าย",0,SUM(J164*K164)) -> 38000 | N164: =IF(K164<5000,0,M164) -> 38000 | O164: 3 | P164: 2001-07-14 | Q164: 1096 | R164: 12666.66667 | S164: 1055.555556 | T164: 34.67153285 | U164: 0 | V164: 0 | W164: 37999 | X164: 0 | Y164: 37999 | Z164: 0 | AA164: 1 | AB164: 20 | AC164: 4 | AD164: 8 | AE164: 7436 | AF164: NO | AV164: 33.33333333 | BS164: 01 | BT164: 53 | BU164: 608 | BY164: 20 ปี 4 เดือน 8 วัน | BZ164: 159
A165: =A164+1 -> 160 | C165: 1998-07-14 | D165: 41 | I165: ชุดไมโครโฟนห้องประชุม 1 ชุด | J165: 1 | K165: 194996.8 | L165: 05.12.255 | M165: =IF(BV165="จำหน่าย",0,SUM(J165*K165)) -> 194996.8 | N165: =IF(K165<5000,0,M165) -> 194996.8 | O165: 5 | P165: 2003-07-14 | Q165: 1826 | R165: 38999.36 | S165: 3249.946667 | T165: 106.7890471 | U165: 0 | V165: 0 | W165: 194995.8 | X165: 0 | Y165: 194995.8 | Z165: 0 | AA165: 1 | AB165: 20 | AC165: 4 | AD165: 8 | AE165: 7436 | AF165: NO | AV165: 20 | BS165: 05 | BT165: 12 | BU165: 255 | BY165: 20 ปี 4 เดือน 8 วัน | BZ165: 160
A166: =A165+1 -> 161 | C166: 1998-07-28 | D166: 41 | I166: เครื่องปรับอากาศ 3 ค. | J166: 3 | K166: 40700 | L166: 01.29.328-330 | M166: =IF(BV166="จำหน่าย",0,SUM(J166*K166)) -> 122100 | N166: =IF(K166<5000,0,M166) -> 122100 | O166: 8 | P166: 2006-07-28 | Q166: 2922 | R166: 15262.5 | S166: 1271.875 | T166: 41.78644764 | U166: 0 | V166: 0 | W166: 122097 | X166: 0 | Y166: 122097 | Z166: 0 | AA166: 3 | AB166: 20 | AC166: 3 | AD166: 25 | AE166: 7422 | AF166: NO | AV166: 12.5 | BS166: 01 | BT166: 29 | BU166: 328-330 | BY166: 20 ปี 3 เดือน 25 วัน | BZ166: 161
A167: =A166+1 -> 162 | C167: 1998-08-03 | D167: 41 | I167: เครื่องปรับอากาศ 38,600 BTU 2 ค. | J167: 2 | K167: 43450 | L167: 01.29.331-332 | M167: =IF(BV167="จำหน่าย",0,SUM(J167*K167)) -> 86900 | N167: =IF(K167<5000,0,M167) -> 86900 | O167: 8 | P167: 2006-08-03 | Q167: 2922 | R167: 10862.5 | S167: 905.2083333 | T167: 29.73990418 | U167: 0 | V167: 0 | W167: 86898 | X167: 0 | Y167: 86898 | Z167: 0 | AA167: 2 | AB167: 20 | AC167: 3 | AD167: 19 | AE167: 7416 | AF167: NO | AV167: 12.5 | BS167: 01 | BT167: 29 | BU167: 331-332 | BY167: 20 ปี 3 เดือน 19 วัน | BZ167: 162
A168: =A167+1 -> 163 | C168: 1998-08-19 | D168: 41 | I168: เครื่องพิมพ์สำเนาระบบดิจิตอล 1 ค. | J168: 1 | K168: 140000 | L168: 01.46.18 | M168: =IF(BV168="จำหน่าย",0,SUM(J168*K168)) -> 140000 | N168: =IF(K168<5000,0,M168) -> 140000 | O168: 8 | P168: 2006-08-19 | Q168: 2922 | R168: 17500 | S168: 1458.333333 | T168: 47.91238877 | U168: 0 | V168: 0 | W168: 139999 | X168: 0 | Y168: 139999 | Z168: 0 | AA168: 1 | AB168: 20 | AC168: 3 | AD168: 3 | AE168: 7400 | AF168: NO | AV168: 12.5 | BS168: 01 | BT168: 46 | BU168: 18 | BY168: 20 ปี 3 เดือน 3 วัน | BZ168: 163
A169: =A168+1 -> 164 | C169: 1998-08-19 | D169: 41 | I169: เครื่องอบผ้าแห้ง 1 ค. | J169: 1 | K169: 78000 | L169: 08.36.01 | M169: =IF(BV169="จำหน่าย",0,SUM(J169*K169)) -> 78000 | N169: =IF(K169<5000,0,M169) -> 78000 | O169: 5 | P169: 2003-08-19 | Q169: 1826 | R169: 15600 | S169: 1300 | T169: 42.71631982 | U169: 0 | V169: 0 | W169: 77999 | X169: 0 | Y169: 77999 | Z169: 0 | AA169: 1 | AB169: 20 | AC169: 3 | AD169: 3 | AE169: 7400 | AF169: NO | AV169: 20 | BS169: 08 | BT169: 36 | BU169: 01 | BY169: 20 ปี 3 เดือน 3 วัน | BZ169: 164
A170: =A169+1 -> 165 | C170: 1998-08-20 | D170: 41 | I170: เครื่องคอมพิวเตอร์ 1 ค. | J170: 1 | K170: 55000 | L170: 01.53.612 | M170: =IF(BV170="จำหน่าย",0,SUM(J170*K170)) -> 55000 | N170: =IF(K170<5000,0,M170) -> 55000 | O170: 3 | P170: 2001-08-20 | Q170: 1096 | R170: 18333.33333 | S170: 1527.777778 | T170: 50.18248175 | U170: 0 | V170: 0 | W170: 54999 | X170: 0 | Y170: 54999 | Z170: 0 | AA170: 1 | AB170: 20 | AC170: 3 | AD170: 2 | AE170: 7399 | AF170: NO | AV170: 33.33333333 | BS170: 01 | BT170: 53 | BU170: 612 | BY170: 20 ปี 3 เดือน 2 วัน | BZ170: 165
A171: =A170+1 -> 166 | C171: 1998-08-21 | D171: 41 | I171: เบสไฟฟ้า 1 ตัว | J171: 1 | K171: 44350.9 | L171: 05.40.06 | M171: =IF(BV171="จำหน่าย",0,SUM(J171*K171)) -> 44350.9 | N171: =IF(K171<5000,0,M171) -> 44350.9 | O171: 5 | P171: 2003-08-21 | Q171: 1826 | R171: 8870.18 | S171: 739.1816667 | T171: 24.28855422 | U171: 0 | V171: 0 | W171: 44349.9 | X171: 0 | Y171: 44349.9 | Z171: 0 | AA171: 1 | AB171: 20 | AC171: 3 | AD171: 1 | AE171: 7398 | AF171: NO | AV171: 20 | BS171: 05 | BT171: 40 | BU171: 06 | BY171: 20 ปี 3 เดือน 1 วัน | BZ171: 166
A172: =A171+1 -> 167 | C172: 1998-08-23 | D172: 41 | I172: จอรับภาพ 1 จอ | J172: 1 | K172: 59950 | L172: 06.07.66 | M172: =IF(BV172="จำหน่าย",0,SUM(J172*K172)) -> 59950 | N172: =IF(K172<5000,0,M172) -> 59950 | O172: 5 | P172: 2003-08-23 | Q172: 1826 | R172: 11990 | S172: 999.1666667 | T172: 32.8313253 | U172: 0 | V172: 0 | W172: 59949 | X172: 0 | Y172: 59949 | Z172: 0 | AA172: 1 | AB172: 20 | AC172: 2 | AD172: 30 | AE172: 7396 | AF172: NO | AV172: 20 | BS172: 06 | BT172: 07 | BU172: 66 | BY172: 20 ปี 2 เดือน 30 วัน | BZ172: 167
A173: =A172+1 -> 168 | C173: 1998-08-24 | D173: 41 | I173: เครื่องบันทึกแผ่น 1 ค. | J173: 1 | K173: 38000 | L173: 01.67.24 | M173: =IF(BV173="จำหน่าย",0,SUM(J173*K173)) -> 38000 | N173: =IF(K173<5000,0,M173) -> 38000 | O173: 3 | P173: 2001-08-24 | Q173: 1096 | R173: 12666.66667 | S173: 1055.555556 | T173: 34.67153285 | U173: 0 | V173: 0 | W173: 37999 | X173: 0 | Y173: 37999 | Z173: 0 | AA173: 1 | AB173: 20 | AC173: 2 | AD173: 29 | AE173: 7395 | AF173: NO | AV173: 33.33333333 | BS173: 01 | BT173: 67 | BU173: 24 | BY173: 20 ปี 2 เดือน 29 วัน | BZ173: 168
A174: =A173+1 -> 169 | C174: 1998-08-25 | D174: 41 | I174: ฉากกั้นห้อง 1 ชุด | J174: 1 | K174: 52300 | L174: 01.19.122 | M174: =IF(BV174="จำหน่าย",0,SUM(J174*K174)) -> 52300 | N174: =IF(K174<5000,0,M174) -> 52300 | O174: 8 | P174: 2006-08-25 | Q174: 2922 | R174: 6537.5 | S174: 544.7916667 | T174: 17.89869952 | U174: 0 | V174: 0 | W174: 52299 | X174: 0 | Y174: 52299 | Z174: 0 | AA174: 1 | AB174: 20 | AC174: 2 | AD174: 28 | AE174: 7394 | AF174: NO | AV174: 12.5 | BS174: 01 | BT174: 19 | BU174: 122 | BY174: 20 ปี 2 เดือน 28 วัน | BZ174: 169
A175: =A174+1 -> 170 | C175: 1998-08-25 | D175: 41 | I175: ชุดทำงาน 2.5x3.6 ม. 1 ชุด | J175: 1 | K175: 54600 | L175: 01.58.209 | M175: =IF(BV175="จำหน่าย",0,SUM(J175*K175)) -> 54600 | N175: =IF(K175<5000,0,M175) -> 54600 | O175: 8 | P175: 2006-08-25 | Q175: 2922 | R175: 6825 | S175: 568.75 | T175: 18.68583162 | U175: 0 | V175: 0 | W175: 54599 | X175: 0 | Y175: 54599 | Z175: 0 | AA175: 1 | AB175: 20 | AC175: 2 | AD175: 28 | AE175: 7394 | AF175: NO | AV175: 12.5 | BS175: 01 | BT175: 58 | BU175: 209 | BY175: 20 ปี 2 เดือน 28 วัน | BZ175: 170
A176: =A175+1 -> 171 | C176: 1998-08-27 | D176: 41 | I176: ชุดทำงาน 2.5x3.6 ม. 2 ชุด | J176: 2 | K176: 47421 | L176: 01.58.210-211 | M176: =IF(BV176="จำหน่าย",0,SUM(J176*K176)) -> 94842 | N176: =IF(K176<5000,0,M176) -> 94842 | O176: 8 | P176: 2006-08-27 | Q176: 2922 | R176: 11855.25 | S176: 987.9375 | T176: 32.45790554 | U176: 0 | V176: 0 | W176: 94840 | X176: 0 | Y176: 94840 | Z176: 0 | AA176: 2 | AB176: 20 | AC176: 2 | AD176: 26 | AE176: 7392 | AF176: NO | AV176: 12.5 | BS176: 01 | BT176: 58 | BU176: 210-211 | BY176: 20 ปี 2 เดือน 26 วัน | BZ176: 171
A177: =A176+1 -> 172 | C177: 1998-08-28 | D177: 41 | I177: เครื่องปรับอากาศ 35,300 BTU 2 ค. | J177: 2 | K177: 40700 | L177: 01.29.333-334 | M177: =IF(BV177="จำหน่าย",0,SUM(J177*K177)) -> 81400 | N177: =IF(K177<5000,0,M177) -> 81400 | O177: 8 | P177: 2006-08-28 | Q177: 2922 | R177: 10175 | S177: 847.9166667 | T177: 27.85763176 | U177: 0 | V177: 0 | W177: 81398 | X177: 0 | Y177: 81398 | Z177: 0 | AA177: 2 | AB177: 20 | AC177: 2 | AD177: 25 | AE177: 7391 | AF177: NO | AV177: 12.5 | BS177: 01 | BT177: 29 | BU177: 333-334 | BY177: 20 ปี 2 เดือน 25 วัน | BZ177: 172
A178: =A177+1 -> 173 | C178: 1998-09-01 | D178: 41 | I178: เครื่องพิมพ์รหัสแท่ง 1 ค. | J178: 1 | K178: 88000 | L178: 05.54.01 | M178: =IF(BV178="จำหน่าย",0,SUM(J178*K178)) -> 88000 | N178: =IF(K178<5000,0,M178) -> 88000 | O178: 5 | P178: 2003-09-01 | Q178: 1826 | R178: 17600 | S178: 1466.666667 | T178: 48.19277108 | U178: 0 | V178: 0 | W178: 87999 | X178: 0 | Y178: 87999 | Z178: 0 | AA178: 1 | AB178: 20 | AC178: 2 | AD178: 21 | AE178: 7387 | AF178: NO | AV178: 20 | BS178: 05 | BT178: 54 | BU178: 01 | BY178: 20 ปี 2 เดือน 21 วัน | BZ178: 173
A179: =A178+1 -> 174 | C179: 1998-09-01 | D179: 41 | I179: เครื่องซักผ้า 1 ค. | J179: 1 | K179: 137000 | L179: 08.02.04 | M179: =IF(BV179="จำหน่าย",0,SUM(J179*K179)) -> 137000 | N179: =IF(K179<5000,0,M179) -> 137000 | O179: 5 | P179: 2003-09-01 | Q179: 1826 | R179: 27400 | S179: 2283.333333 | T179: 75.02738226 | U179: 0 | V179: 0 | W179: 136999 | X179: 0 | Y179: 136999 | Z179: 0 | AA179: 1 | AB179: 20 | AC179: 2 | AD179: 21 | AE179: 7387 | AF179: NO | AV179: 20 | BS179: 08 | BT179: 02 | BU179: 04 | BY179: 20 ปี 2 เดือน 21 วัน | BZ179: 174
A180: =A179+1 -> 175 | C180: 1998-09-03 | D180: 41 | I180: ชุดสาธิตเครื่องกลไฟฟ้า 1 ชุด | J180: 1 | K180: 378000 | L180: 05.41.02 | M180: =IF(BV180="จำหน่าย",0,SUM(J180*K180)) -> 378000 | N180: =IF(K180<5000,0,M180) -> 378000 | O180: 5 | P180: 2003-09-03 | Q180: 1826 | R180: 75600 | S180: 6300 | T180: 207.0098576 | U180: 0 | V180: 0 | W180: 377999 | X180: 0 | Y180: 377999 | Z180: 0 | AA180: 1 | AB180: 20 | AC180: 2 | AD180: 19 | AE180: 7385 | AF180: NO | AV180: 20 | BS180: 05 | BT180: 41 | BU180: 02 | BY180: 20 ปี 2 เดือน 19 วัน | BZ180: 175
A181: =A180+1 -> 176 | C181: 1998-09-06 | D181: 41 | I181: ลู่วิ่งไฟฟ้า 1 คัน | J181: 1 | K181: 53000 | L181: 10.15.05 | M181: =IF(BV181="จำหน่าย",0,SUM(J181*K181)) -> 53000 | N181: =IF(K181<5000,0,M181) -> 53000 | O181: 5 | P181: 2003-09-06 | Q181: 1826 | R181: 10600 | S181: 883.3333333 | T181: 29.02519168 | U181: 0 | V181: 0 | W181: 52999 | X181: 0 | Y181: 52999 | Z181: 0 | AA181: 1 | AB181: 20 | AC181: 2 | AD181: 16 | AE181: 7382 | AF181: NO | AV181: 20 | BS181: 10 | BT181: 15 | BU181: 05 | BY181: 20 ปี 2 เดือน 16 วัน | BZ181: 176
A182: =A181+1 -> 177 | C182: 1998-09-09 | D182: 41 | I182: เครื่องปรับอากาศ 33,000 BTU 3 ค. | J182: 3 | K182: 33000 | L182: 01.29.337-339 | M182: =IF(BV182="จำหน่าย",0,SUM(J182*K182)) -> 99000 | N182: =IF(K182<5000,0,M182) -> 99000 | O182: 8 | P182: 2006-09-09 | Q182: 2922 | R182: 12375 | S182: 1031.25 | T182: 33.88090349 | U182: 0 | V182: 0 | W182: 98997 | X182: 0 | Y182: 98997 | Z182: 0 | AA182: 3 | AB182: 20 | AC182: 2 | AD182: 13 | AE182: 7379 | AF182: NO | AV182: 12.5 | BS182: 01 | BT182: 29 | BU182: 337-339 | BY182: 20 ปี 2 เดือน 13 วัน | BZ182: 177
A183: =A182+1 -> 178 | C183: 1998-09-12 | D183: 41 | I183: เครื่องคอมพิวเตอร์ 1 ค. | J183: 1 | K183: 54890 | L183: 01.53.616 | M183: =IF(BV183="จำหน่าย",0,SUM(J183*K183)) -> 54890 | N183: =IF(K183<5000,0,M183) -> 54890 | O183: 3 | P183: 2001-09-12 | Q183: 1096 | R183: 18296.66667 | S183: 1524.722222 | T183: 50.08211679 | U183: 0 | V183: 0 | W183: 54889 | X183: 0 | Y183: 54889 | Z183: 0 | AA183: 1 | AB183: 20 | AC183: 2 | AD183: 10 | AE183: 7376 | AF183: NO | AV183: 33.33333333 | BS183: 01 | BT183: 53 | BU183: 616 | BY183: 20 ปี 2 เดือน 10 วัน | BZ183: 178
A184: =A183+1 -> 179 | C184: 1998-09-13 | D184: 41 | I184: ชุดทำงาน 2.5x3.6 ม. 1 ชุด | J184: 1 | K184: 39494.4 | L184: 01.58.212 | M184: =IF(BV184="จำหน่าย",0,SUM(J184*K184)) -> 39494.4 | N184: =IF(K184<5000,0,M184) -> 39494.4 | O184: 8 | P184: 2006-09-13 | Q184: 2922 | R184: 4936.8 | S184: 411.4 | T184: 13.51622177 | U184: 0 | V184: 0 | W184: 39493.4 | X184: 0 | Y184: 39493.4 | Z184: 0 | AA184: 1 | AB184: 20 | AC184: 2 | AD184: 9 | AE184: 7375 | AF184: NO | AV184: 12.5 | BS184: 01 | BT184: 58 | BU184: 212 | BY184: 20 ปี 2 เดือน 9 วัน | BZ184: 179
A185: =A184+1 -> 180 | C185: 1998-09-15 | D185: 41 | I185: เครื่องปรับอากาศ 25,500 BTU 1 ค. | J185: 1 | K185: 42276 | L185: 01.29.340 | M185: =IF(BV185="จำหน่าย",0,SUM(J185*K185)) -> 42276 | N185: =IF(K185<5000,0,M185) -> 42276 | O185: 8 | P185: 2006-09-15 | Q185: 2922 | R185: 5284.5 | S185: 440.375 | T185: 14.46817248 | U185: 0 | V185: 0 | W185: 42275 | X185: 0 | Y185: 42275 | Z185: 0 | AA185: 1 | AB185: 20 | AC185: 2 | AD185: 7 | AE185: 7373 | AF185: NO | AV185: 12.5 | BS185: 01 | BT185: 29 | BU185: 340 | BY185: 20 ปี 2 เดือน 7 วัน | BZ185: 180
A186: =A185+1 -> 181 | C186: 1998-09-16 | D186: 41 | I186: เครื่องผสมปูนพลาสเตอร์ 1 ค. | J186: 1 | K186: 180000 | L186: 09.42.02 | M186: =IF(BV186="จำหน่าย",0,SUM(J186*K186)) -> 180000 | N186: =IF(K186<5000,0,M186) -> 180000 | O186: 5 | P186: 2003-09-16 | Q186: 1826 | R186: 36000 | S186: 3000 | T186: 98.57612267 | U186: 0 | V186: 0 | W186: 179999 | X186: 0 | Y186: 179999 | Z186: 0 | AA186: 1 | AB186: 20 | AC186: 2 | AD186: 6 | AE186: 7372 | AF186: NO | AV186: 20 | BS186: 09 | BT186: 42 | BU186: 02 | BY186: 20 ปี 2 เดือน 6 วัน | BZ186: 181
A187: =A186+1 -> 182 | C187: 1998-09-17 | D187: 41 | I187: เครื่องปรับอากาศ 30,000 BTU 1 ค. | J187: 1 | K187: 38500 | L187: 01.29.341 | M187: =IF(BV187="จำหน่าย",0,SUM(J187*K187)) -> 38500 | N187: =IF(K187<5000,0,M187) -> 38500 | O187: 8 | P187: 2006-09-17 | Q187: 2922 | R187: 4812.5 | S187: 401.0416667 | T187: 13.17590691 | U187: 0 | V187: 0 | W187: 38499 | X187: 0 | Y187: 38499 | Z187: 0 | AA187: 1 | AB187: 20 | AC187: 2 | AD187: 5 | AE187: 7371 | AF187: NO | AV187: 12.5 | BS187: 01 | BT187: 29 | BU187: 341 | BY187: 20 ปี 2 เดือน 5 วัน | BZ187: 182
A188: =A187+1 -> 183 | C188: 1998-09-29 | D188: 41 | I188: เครื่องปรับอากาศ 35,300 BTU 2 ค. | J188: 2 | K188: 40700 | L188: 01.29.342-343 | M188: =IF(BV188="จำหน่าย",0,SUM(J188*K188)) -> 81400 | N188: =IF(K188<5000,0,M188) -> 81400 | O188: 8 | P188: 2006-09-29 | Q188: 2922 | R188: 10175 | S188: 847.9166667 | T188: 27.85763176 | U188: 0 | V188: 0 | W188: 81398 | X188: 0 | Y188: 81398 | Z188: 0 | AA188: 2 | AB188: 20 | AC188: 1 | AD188: 24 | AE188: 7359 | AF188: NO | AV188: 12.5 | BS188: 01 | BT188: 29 | BU188: 342-343 | BY188: 20 ปี 1 เดือน 24 วัน | BZ188: 183
A189: =A188+1 -> 184 | C189: 1998-09-29 | D189: 41 | I189: เครื่องกวนดิน 1 ค. | J189: 1 | K189: 68200 | L189: 09.33.03 | M189: =IF(BV189="จำหน่าย",0,SUM(J189*K189)) -> 68200 | N189: =IF(K189<5000,0,M189) -> 68200 | O189: 4 | P189: 2002-09-29 | Q189: 1461 | R189: 17050 | S189: 1420.833333 | T189: 46.68035592 | U189: 0 | V189: 0 | W189: 68199 | X189: 0 | Y189: 68199 | Z189: 0 | AA189: 1 | AB189: 20 | AC189: 1 | AD189: 24 | AE189: 7359 | AF189: NO | AV189: 25 | BS189: 09 | BT189: 33 | BU189: 03 | BY189: 20 ปี 1 เดือน 24 วัน | BZ189: 184
A190: =A189+1 -> 185 | C190: 1998-09-30 | D190: 41 | I190: เครื่องคอมพิวเตอร์ 1 ค. | J190: 1 | K190: 32560 | L190: 01.53.623 | M190: =IF(BV190="จำหน่าย",0,SUM(J190*K190)) -> 32560 | N190: =IF(K190<5000,0,M190) -> 32560 | O190: 3 | P190: 2001-09-30 | Q190: 1096 | R190: 10853.33333 | S190: 904.4444444 | T190: 29.7080292 | U190: 0 | V190: 0 | W190: 32559 | X190: 0 | Y190: 32559 | Z190: 0 | AA190: 1 | AB190: 20 | AC190: 1 | AD190: 23 | AE190: 7358 | AF190: NO | AV190: 33.33333333 | BS190: 01 | BT190: 53 | BU190: 623 | BY190: 20 ปี 1 เดือน 23 วัน | BZ190: 185
A191: =A190+1 -> 186 | C191: 1998-09-30 | D191: 41 | I191: เครื่องคอมพิวเตอร์ 1 ค. | J191: 1 | K191: 32560 | L191: 01.53.624 | M191: =IF(BV191="จำหน่าย",0,SUM(J191*K191)) -> 32560 | N191: =IF(K191<5000,0,M191) -> 32560 | O191: 3 | P191: 2001-09-30 | Q191: 1096 | R191: 10853.33333 | S191: 904.4444444 | T191: 29.7080292 | U191: 0 | V191: 0 | W191: 32559 | X191: 0 | Y191: 32559 | Z191: 0 | AA191: 1 | AB191: 20 | AC191: 1 | AD191: 23 | AE191: 7358 | AF191: NO | AV191: 33.33333333 | BS191: 01 | BT191: 53 | BU191: 624 | BY191: 20 ปี 1 เดือน 23 วัน | BZ191: 186
A192: =A191+1 -> 187 | C192: 1998-09-30 | D192: 41 | I192: เครื่องคอมพิวเตอร์ 1 ค. | J192: 1 | K192: 31900 | L192: 01.53.626 | M192: =IF(BV192="จำหน่าย",0,SUM(J192*K192)) -> 31900 | N192: =IF(K192<5000,0,M192) -> 31900 | O192: 3 | P192: 2001-09-30 | Q192: 1096 | R192: 10633.33333 | S192: 886.1111111 | T192: 29.10583942 | U192: 0 | V192: 0 | W192: 31899 | X192: 0 | Y192: 31899 | Z192: 0 | AA192: 1 | AB192: 20 | AC192: 1 | AD192: 23 | AE192: 7358 | AF192: NO | AV192: 33.33333333 | BS192: 01 | BT192: 53 | BU192: 626 | BY192: 20 ปี 1 เดือน 23 วัน | BZ192: 187
A193: =A192+1 -> 188 | C193: 1998-09-30 | D193: 41 | I193: เครื่องคอมพิวเตอร์ 1 ค. | J193: 1 | K193: 31900 | L193: 01.53.627 | M193: =IF(BV193="จำหน่าย",0,SUM(J193*K193)) -> 31900 | N193: =IF(K193<5000,0,M193) -> 31900 | O193: 3 | P193: 2001-09-30 | Q193: 1096 | R193: 10633.33333 | S193: 886.1111111 | T193: 29.10583942 | U193: 0 | V193: 0 | W193: 31899 | X193: 0 | Y193: 31899 | Z193: 0 | AA193: 1 | AB193: 20 | AC193: 1 | AD193: 23 | AE193: 7358 | AF193: NO | AV193: 33.33333333 | BS193: 01 | BT193: 53 | BU193: 627 | BY193: 20 ปี 1 เดือน 23 วัน | BZ193: 188
A194: =A193+1 -> 189 | C194: 1998-09-30 | D194: 41 | I194: เครื่องคอมพิวเตอร์ 1 ค. | J194: 1 | K194: 31900 | L194: 01.53.630 | M194: =IF(BV194="จำหน่าย",0,SUM(J194*K194)) -> 31900 | N194: =IF(K194<5000,0,M194) -> 31900 | O194: 3 | P194: 2001-09-30 | Q194: 1096 | R194: 10633.33333 | S194: 886.1111111 | T194: 29.10583942 | U194: 0 | V194: 0 | W194: 31899 | X194: 0 | Y194: 31899 | Z194: 0 | AA194: 1 | AB194: 20 | AC194: 1 | AD194: 23 | AE194: 7358 | AF194: NO | AV194: 33.33333333 | BS194: 01 | BT194: 53 | BU194: 630 | BY194: 20 ปี 1 เดือน 23 วัน | BZ194: 189
A195: =A194+1 -> 190 | C195: 1998-09-30 | D195: 41 | I195: เครื่องทดสอบสัญญาณ 1 ค. | J195: 1 | K195: 50000 | L195: 05.35.01 | M195: =IF(BV195="จำหน่าย",0,SUM(J195*K195)) -> 50000 | N195: =IF(K195<5000,0,M195) -> 50000 | O195: 5 | P195: =DATE(YEAR(C195)+O195,MONTH(C195),DAY(C195)) -> 2003-09-30 | Q195: =IF(NOT(OR(ISBLANK(P195),ISBLANK(C195))),P195-C195,"") -> 1826 | R195: =SLN(N195,,O195) -> 10000 | S195: =SLN(R195,,12) -> 833.3333333 | T195: =SLN(N195,,Q195) -> 27.3822563 | U195: =IF(N195=0,0,IF(AE195<=Q195,1,0)) -> 0 | V195: 0 | W195: 49999 | X195: 0 | Y195: 49999 | Z195: 0 | AA195: 1 | AB195: =DATEDIF(C195,TODAY(),"Y") -> 20 | AC195: =DATEDIF(C195,TODAY(),"YM") -> 1 | AD195: =DATEDIF(C195,TODAY(),"md")+1 -> 23 | AE195: =DATEDIF(C195,TODAY(),"d")+1 -> 7358 | AF195: =IF(N195=0,"No",IF(AE195>Q195,"NO","YES")) -> NO | AV195: =100/O195 -> 20 | BS195: 05 | BT195: 35 | BU195: 01 | BY195: =CONCATENATE(AB195," ปี ",AC195," เดือน ",AD195," วัน ") -> 20 ปี 1 เดือน 23 วัน | BZ195: =A195 -> 190
A196: =A195+1 -> 191 | C196: 1998-09-30 | D196: 41 | I196: เครื่องชุบเคลือบ 1 ค. | J196: 1 | K196: 58850 | L196: 09.32.02 | M196: =IF(BV196="จำหน่าย",0,SUM(J196*K196)) -> 58850 | N196: =IF(K196<5000,0,M196) -> 58850 | O196: 5 | P196: 2003-09-30 | Q196: 1826 | R196: 11770 | S196: 980.8333333 | T196: 32.22891566 | U196: 0 | V196: 0 | W196: 58849 | X196: 0 | Y196: 58849 | Z196: 0 | AA196: 1 | AB196: 20 | AC196: 1 | AD196: 23 | AE196: 7358 | AF196: NO | AV196: 20 | BS196: 09 | BT196: 32 | BU196: 02 | BY196: 20 ปี 1 เดือน 23 วัน | BZ196: 191
A197: =A196+1 -> 192 | C197: 1998-10-17 | D197: 42 | I197: เครื่องปรับอากาศ 35,300 BTU 2 ค. | J197: 2 | K197: 40700 | L197: 01.29.344-345 | M197: =IF(BV197="จำหน่าย",0,SUM(J197*K197)) -> 81400 | N197: =IF(K197<5000,0,M197) -> 81400 | O197: 8 | P197: 2006-10-17 | Q197: 2922 | R197: 10175 | S197: 847.9166667 | T197: 27.85763176 | U197: 0 | V197: 0 | W197: 81398 | X197: 0 | Y197: 81398 | Z197: 0 | AA197: 2 | AB197: 20 | AC197: 1 | AD197: 5 | AE197: 7341 | AF197: NO | AV197: 12.5 | BS197: 01 | BT197: 29 | BU197: 344-345 | BY197: 20 ปี 1 เดือน 5 วัน | BZ197: 192
A198: =A197+1 -> 193 | C198: 1998-10-27 | D198: 42 | I198: เครื่องคอมพิวเตอร์พร้อมเครื่องพิมพ์ 1 ชุด | J198: 1 | K198: 42790 | L198: 01.53.632 | M198: =IF(BV198="จำหน่าย",0,SUM(J198*K198)) -> 42790 | N198: =IF(K198<5000,0,M198) -> 42790 | O198: 3 | P198: 2001-10-27 | Q198: 1096 | R198: 14263.33333 | S198: 1188.611111 | T198: 39.0419708 | U198: 0 | V198: 0 | W198: 42789 | X198: 0 | Y198: 42789 | Z198: 0 | AA198: 1 | AB198: 20 | AC198: 0 | AD198: 26 | AE198: 7331 | AF198: NO | AV198: 33.33333333 | BS198: 01 | BT198: 53 | BU198: 632 | BY198: 20 ปี 0 เดือน 26 วัน | BZ198: 193
A199: =A198+1 -> 194 | C199: 1998-10-27 | D199: 42 | I199: เครื่องพิมพ์เลเซอร์ 1 ค. | J199: 1 | K199: 39900 | L199: 01.72.161 | M199: =IF(BV199="จำหน่าย",0,SUM(J199*K199)) -> 39900 | N199: =IF(K199<5000,0,M199) -> 39900 | O199: 3 | P199: 2001-10-27 | Q199: 1096 | R199: 13300 | S199: 1108.333333 | T199: 36.40510949 | U199: 0 | V199: =SUM(R199*U199/12) -> 0 | W199: =IF(N199=0,0,IF((R199*AB199)+(R199*AC199/12)>=N199,N199-J199,((R199*AB199)+(R199*AC199/12)))) -> 39899 | X199: =SUM(T199*U199) -> 0 | Y199: =IF(N199=0,0,IF((DATEDIF(C199,TODAY(),"d")+1)*T199>=N199,N199-J199,(DATEDIF(C199,TODAY(),"d")+1)*T199)) -> 39899 | Z199: =IF(U199=0,0,IF(OR(DAY(C199)=1,MONTH(C199)<>MONTH(TODAY()),YEAR(C199)<>YEAR(TODAY())),T199*((DAY(DATE(YEAR(TODAY()),MONTH(TODAY())+1,1)-1))),T199*((DAY(DATE(YEAR(TODAY()),MONTH(TODAY())+1,1)-1)-DAY(C199)+1)))) -> 0 | AA199: =IF(N199=0,0,IF(X199>=N199,(J199),(N199-Y199))) -> 1 | AB199: 20 | AC199: 0 | AD199: 26 | AE199: 7331 | AF199: NO | AV199: 33.33333333 | BS199: 01 | BT199: 72 | BU199: 161 | BY199: 20 ปี 0 เดือน 26 วัน | BZ199: 194
A200: =A199+1 -> 195 | C200: 1998-10-28 | D200: 42 | I200: เครื่องพิมพ์เลเซอร์ 1 ค. | J200: 1 | K200: 45000 | L200: 01.72.162 | M200: =IF(BV200="จำหน่าย",0,SUM(J200*K200)) -> 45000 | N200: =IF(K200<5000,0,M200) -> 45000 | O200: 3 | P200: 2001-10-28 | Q200: 1096 | R200: 15000 | S200: 1250 | T200: 41.05839416 | U200: 0 | V200: 0 | W200: 44999 | X200: 0 | Y200: 44999 | Z200: 0 | AA200: 1 | AB200: 20 | AC200: 0 | AD200: 25 | AE200: 7330 | AF200: NO | AV200: 33.33333333 | BS200: 01 | BT200: 72 | BU200: 162 | BY200: 20 ปี 0 เดือน 25 วัน | BZ200: 195
A201: =A200+1 -> 196 | C201: 1998-10-30 | D201: 42 | I201: เครื่องเจียรดิน 1 ค. | J201: 1 | K201: 52800 | L201: 04.25.18 | M201: =IF(BV201="จำหน่าย",0,SUM(J201*K201)) -> 52800 | N201: =IF(K201<5000,0,M201) -> 52800 | O201: 2 | P201: 2000-10-30 | Q201: 731 | R201: 26400 | S201: 2200 | T201: 72.22982216 | U201: 0 | V201: 0 | W201: 52799 | X201: 0 | Y201: 52799 | Z201: 0 | AA201: 1 | AB201: 20 | AC201: 0 | AD201: 23 | AE201: 7328 | AF201: NO | AV201: 50 | BS201: 04 | BT201: 25 | BU201: 18 | BY201: 20 ปี 0 เดือน 23 วัน | BZ201: 196
... 924 more rows

Sheet report1
A1: มหาวิทยาลัยราชภัฏราชนครินทร์ | F1: ข้อมูล ณ วันที่ | G1: =TODAY() -> 2018-11-21
A2: บัญชีรายการค่าเสื่อมราคาและค่าเสื่อมราคาสะสม ครุภัณฑ์ ประจำเดือน....ตุลาคม........................... ปีงบประมาณ ..2562...........................
B3: ปีงบประมาณ | C3: ราคาทุน ที่คิดค่าเสื่อม | D3: ค่าเสื่อมราคาเดือนปัจจุบัน | E3: ค่าเสื่อมราคาสะสม | F3: ผลรวม ของ มูลค่าสุทธิ
B4: 40 | C4: 12718799.96 | D4: 0 | E4: 12718585.96 | F4: 214
B5: 41 | C5: 7450027.1 | D5: 0 | E5: 7449910.1 | F5: 117
B6: 42 | C6: 14388463.45 | D6: 0 | E6: 14388313.45 | F6: 150
B7: 43 | C7: 23259439.02 | D7: 0 | E7: 23259173.02 | F7: 266
B8: 44 | C8: 35495483.19 | D8: 0 | E8: 35495147.19 | F8: 336
B9: 45 | C9: 35016359.48 | D9: 0 | E9: 35016073.48 | F9: 286
B10: 46 | C10: 15528642.19 | D10: 0 | E10: 15528259.19 | F10: 383
B11: 47 | C11: 26388130.02 | D11: 0 | E11: 26387806.02 | F11: 324
B12: 48 | C12: 10574642.16 | D12: 0 | E12: 10574381.16 | F12: 261
B13: 49 | C13: 17631283.12 | D13: 10595.25912 | E13: 17292492.11 | F13: 338791.0099
B14: 50 | C14: 44606511.42 | D14: 0 | E14: 44605253.42 | F14: 1258
B15: 51 | C15: 35133847.07 | D15: 0 | E15: 35132564.07 | F15: 1283
B16: 52 | C16: 35653812.69 | D16: 0 | E16: 35652916.69 | F16: 896
B17: 53 | C17: 23789263.48 | D17: 6037.222121 | E17: 23306325.67 | F17: 482937.8067
B18: 54 | C18: 60438715.89 | D18: 238660.1356 | E18: 58392909.38 | F18: 2045806.515
B19: 55 | C19: 27938775.95 | D19: 71391.33848 | E19: 24746312.41 | F19: 3192463.543
B20: 56 | C20: 86537526.91 | D20: 482686.9751 | E20: 70134616.33 | F20: 16402910.58
B21: 57 | C21: 11367724.01 | D21: 125639.6688 | E21: 10002449.5 | F21: 1365274.511
B22: 58 | C22: 41098129.5 | D22: 422707.0753 | E22: 24941790.02 | F22: 16156339.48
B23: 59 | C23: 49120238.9 | D23: 789157.5402 | E23: 25124567.61 | F23: 23995671.29
B24: 60 | C24: 24225127.69 | D24: 304416.8312 | E24: 6010037.477 | F24: 18215090.21
B25: 61 | C25: 64983040.9 | D25: 920563.82 | E25: 7008394.963 | F25: 57974645.94
B26: 62 | C26: 132900 | D26: 1850.690798 | E26: 1213.013263 | F26: 131686.9867
B27: ผลรวมสุทธิ | C27: 703476884.1 | D27: 3373706.557 | E27: 563169492.2 | F27: 140307391.9
D35: ขอรับรองว่าข้อความข้างต้นเป็นความจริงทุกประการ
D38: ลงชื่อ...........................................................................ผู้รับผิดชอบ
D39: (รองศาสตราจารย์ ดร.ดวงพร ภู่ผะกา)
D40: อธิการบดี

Sheet report2
A2: รายงานหน่วยงานที่รับผิดชอบ
A4: หน่วยงาน | B4: (หลายรายการ)
A5: สาขา | B5: (ทั้งหมด)
A7: ปีงบประมาณ | B7: จำนวน | C7: ผลรวมราคาทุนรวม
A8: 61 | B8: 1 | C8: 17000
A9: 62 | B9: 2 | C9: 59900
A10: ผลรวมทั้งหมด | B10: 3 | C10: 76900

Sheet report3
B2: รายงานผู้เบิก
A4: หน่วยงาน | B4: (หลายรายการ)
A5: ผู้เบิก | B5: (ทั้งหมด)
A7: ปีงบประมาณ | B7: จำนวน | C7: ผลรวมราคาทุนรวม
A8: 59 | B8: 2 | C8: 63850
A9: 62 | B9: 2 | C9: 59900
A10: ผลรวมทั้งหมด | B10: 4 | C10: 123750

Sheet report4
B2: รายงานครุภัณฑ์
A4: หมวด | B4: 01
A5: ประเภท | B5: 29
A6: หมายเลข | B6: (ทั้งหมด)
A8: ปีงบประมาณ | B8: จำนวน | C8: ผลรวม มูลค่าสุทธิ
A9: 40 | B9: 4 | C9: 37
A10: 41 | B10: 11 | C10: 21
A11: 42 | B11: 19 | C11: 51
A12: 43 | B12: 10 | C12: 36
A13: 44 | B13: 8 | C13: 112
A14: 45 | B14: 7 | C14: 9
A15: 46 | B15: 14 | C15: 22
A16: 47 | B16: 11 | C16: 35
A17: 48 | B17: 11 | C17: 11
A18: 49 | B18: 13 | C18: 21
A19: 50 | B19: 35 | C19: 105
A20: 51 | B20: 27 | C20: 87
A21: 52 | B21: 19 | C21: 31
A22: 53 | B22: 38 | C22: 195
A23: 54 | B23: 23 | C23: 559113.3919
A24: 55 | B24: 16 | C24: 338745.5192
A25: 56 | B25: 45 | C25: 4943995.601
A26: 57 | B26: 5 | C26: 220445.7611
A27: 58 | B27: 14 | C27: 1200563.746
A28: 59 | B28: 10 | C28: 1247679.392
A29: 60 | B29: 19 | C29: 11424742.45
A30: 61 | B30: 34 | C30: 24765485
A31: 62 | B31: 1 | C31: 53648.87064
A32: ผลรวมทั้งหมด | B32: 394 | C32: 44755192.73

Sheet ทะเบียนคุมทรัพย์สิน
A1: ทะเบียนคุมทรัพย์สิน
I2: ส่วนราชการ มหาวิทยาลัยราชภัฏราชนครินทร์
L3: หน่วยงาน | M3: หน่วยงาน
A4: ประเภท | B4: ปรถเภท | F4: ลักษณะ/คุณสมบัติ | H4: ลักษณะ/คุณสมบัติ | L4: สาขา | M4: สาขา
A5: รหัส | B5: 02.01.10 | F5: รุ่น/แบบ/ขนาด | H5: รุ่น/แบบ/ขนาด
A6: หมายเลขเครื่อง | C6: หมายเลขเครื่อง
A7: สถานที่ตั้ง/หน่วยงานที่รับผิดชอบ | D7: หน่วยงาน | H7: ชื่อผู้ขาย | I7: บริษัท/ร้านค้า
A8: ที่อยู่ | B8: ที่อยู่ผู้ขาย
A9: ประเภทเงิน | C9: ประเภท | E9: วิธีการได้มา | F9: วิธีการที่ได้มา | H9: ชื่อผู้รับของ/ผู้รับผิดชอบ | J9: ผู้เบิก
A10: เอกสารอ้างอิง | C10: เอกสารอ้างอิง | E10: ใบเสร็จเล่มที่ | F10: ใบเสร็จเล่มที่ | G10: ใบเสร็จเลขที่ | H10: ใบเสร็จเลขที่ | I10: สัญญาเลขที่ | J10: สัญญาเลขที่ | L10: เลขที่ใบเบิก | M10: เลขที่ใบเบิกพัสดุ
J11: เล่ม | K11: คุมเล่ม | L11: คุมหน้า
A13: วันที่ เดือน ปี | B13: ที่เอกสาร | C13: รายการ | F13: จำนวน | G13: ราคา ต่อหน่วย | H13: มูลค่ารวม | I13: อายุการใช้งาน | J13: อัตราค่าเสื่อมราคา % | K13: ค่าเสื่อมราคาประจำปี | L13: ค่าเสื่อมราคาสะสม | M13: มูลค่าสุทธิ | N13: หมายเหตุ
A14: 2018-07-15 | B14: อกสาร | C14: รถยนต์เก๋ง 4 ประตู 1 คัน | F14: 1 | G14: 1190000 | H14: 1190000 | I14: 1 | J14: 100 | K14: 1190000 | L14: 16301.36986 | M14: 1173698.63 | N14: หมายเหตุ
A23: ประเภทครุภัณฑ์ | C23: ปรถเภท | G23: หมายเลขครุภัณฑ์ | H23: 02.01.10
A25: ครั้งที่ | B25: วัน เดือน ปี | C25: รายการ | G25: จำนวนหน่วย | H25: จำนวนเงิน | J25: ร้าน/หจก./บริษัทที่รับซ่อม | M25: หมายเหตุ/เอกสารอ้างอิง
A26: ซI | B26: ซII | C26: ซIII | G26: ซIv | H26: ซv | J26: ซvi | M26: ซvii
A27: ซI LL | B27: ซII LL | C27: ซIIILL | G27: ซIvLL | H27: ซvLL | J27: ซviLL | M27: ซviiLL
A28: ซILLL | B28: ซIILLL | C28: ซIIILLL | G28: ซIvLLL | H28: ซvLLL | J28: ซviLLL | M28: ซviiLLL

Sheet Search
E1: ข้อมูล ณ วันที่ : | G1: =TODAY() -> 2018-11-21
A2: ค้นหาครุภัณฑ์รายตัว
A3: โปรดระบุหมายเลขครุภัณฑ์ที่ต้องการทราบรายละเอียด ในช่อง "เลขครุภัณฑ์"
A4: เลขครุภัณฑ์ : | B4: 08.03.118-121 | E4: ลำดับการบันทึก : | G4: =VLOOKUP(B4,'40-now'!L:BZ,67,FALSE) -> 6037
A5: รายการ : | B5: =VLOOKUP(G4,'40-now'!A:BZ,9,FALSE) -> เครื่องตัดหญ้าสายสะพาย 4 ค. | E5: วันที่บันทึก : | G5: =VLOOKUP(G4,'40-now'!A:BZ,76,FALSE) -> 0
A6: วันที่ได้มา : | B6: =VLOOKUP(G4,'40-now'!A:BZ,3,FALSE) -> 2017-08-08 | E6: ปีงบประมาณ : | G6: =VLOOKUP(G4,'40-now'!A:BZ,4,FALSE) -> 60
A7: จำนวน : | B7: =VLOOKUP(G4,'40-now'!A:BZ,10,FALSE) -> 4 | E7: วิธีการได้มา : | G7: =VLOOKUP(G4,'40-now'!A:BZ,5,FALSE) -> ตกลงราคา
A8: ราคาต่อหน่วย : | B8: =VLOOKUP(G4,'40-now'!A:BZ,11,FALSE) -> 9400 | C8: บาท | E8: ประเภทงบประมาณ : | G8: =VLOOKUP(G4,'40-now'!A:BZ,6,FALSE) -> รายได้
A9: ราคารวม : | B9: =VLOOKUP(G4,'40-now'!A:BZ,13,FALSE) -> 37600 | C9: บาท | E9: ทะเบียนคุมเล่มที่ : | G9: =VLOOKUP(G4,'40-now'!A:BZ,33,FALSE) -> 9
A10: อายุการใช้งาน : | B10: =VLOOKUP(G4,'40-now'!A:BZ,15,FALSE) -> 5 | C10: ปี | E10: ทะเบียนคุมหน้าที่ : | G10: =VLOOKUP(G4,'40-now'!A:BZ,34,FALSE) -> 5
A11: ใช้งานมาแล้ว : | B11: =VLOOKUP(G4,'40-now'!A:BZ,77,FALSE) -> 1 ปี 3 เดือน 14 วัน | E11: หน่วยงาน : | G11: =VLOOKUP(G4,'40-now'!A:BZ,35,FALSE) -> มรร.บางคล้า
A12: ค่าเสื่อมราค่าต่อวัน : | B12: =VLOOKUP(G4,'40-now'!A:BZ,20,FALSE) -> 20.59145674 | C12: บาท | E12: สาขา : | G12: =VLOOKUP(G4,'40-now'!A:BZ,36,FALSE) -> -
A13: ค่าเสื่อมราคาสะสม : | B13: =VLOOKUP(G4,'40-now'!A:BZ,25,FALSE) -> 9698.576123 | C13: บาท | E13: ผู้เบิก : | G13: =VLOOKUP(G4,'40-now'!A:BZ,37,FALSE) -> นายอุดร พิมแก้ว
A14: มูลค่าสุทธิ : | B14: =VLOOKUP(G4,'40-now'!A:BZ,27,FALSE) -> 27901.42388 | C14: บาท

Sheet Sheet2 (hidden)
G2: =IF(U2=0,0,IF(OR(DAY(C2)=1,MONTH(C2)<>MONTH(TODAY()),YEAR(C2)<>YEAR(TODAY())),T2*((DAY(DATE(YEAR(C2),MONTH(C2)+1,1)-1))),T2*((DAY(DATE(YEAR(C2),MONTH(C2)+1,1)-1)-DAY(C2)+1)))) -> 0
C3: =IF(U6=0,0,IF(DAY(C6)=1,T6*(DAY(DATE(YEAR(C6),MONTH(C6)+1,1)-1)),T6*(DAY(DATE(YEAR(C6),MONTH(C6)+1,1)-1)-DAY(C6)+1))) -> 24 | G3: =IF(U3=0,0,IF(OR(DAY(C3)=1,MONTH(C3)<>MONTH(TODAY()),YEAR(C3)<>YEAR(TODAY())),T3*((DAY(DATE(YEAR(C3),MONTH(C3)+1,1)-1))),T3*((DAY(DATE(YEAR(C3),MONTH(C3)+1,1)-1)-DAY(C3)+1)))) -> 0
C4: =IF(U6=0,0,IF(OR(DAY(C6)=1,MONTH(C6)<>MONTH(TODAY()),YEAR(C6)<>YEAR(TODAY())),(DAY(DATE(YEAR(C6),MONTH(C6)+1,1)-1)),(DAY(DATE(YEAR(C6),MONTH(C6)+1,1)-1)-DAY(C6)+1))) -> 31 | D4: =IF(DAY(C6)=1&(MONTH(C6)<>MONTH(TODAY()))&(YEAR(C6)<>YEAR(TODAY())),(DAY(DATE(YEAR(C6),MONTH(C6)+1,1)-1)),(DAY(DATE(YEAR(C6),MONTH(C6)+1,1)-1)-DAY(C6)+1)) -> 12 | E4: =IF(DAY(C3)<=15,DATEDIF(C3,TODAY(),"YM")+1,IF(DAY(C3)=31,DATEDIF(C3,TODAY(),"YM")+1,IF(DAY(C3)=30,DATEDIF(C3,TODAY(),"YM")+1,IF(DAY(C3)=29,DATEDIF(C3,TODAY(),"YM")+1,DATEDIF(C3,TODAY(),"YM"))))) -> 9 | G4: =IF(U4=0,0,IF(OR(DAY(C4)=1,MONTH(C4)<>MONTH(TODAY()),YEAR(C4)<>YEAR(TODAY())),T4*((DAY(DATE(YEAR(C4),MONTH(C4)+1,1)-1))),T4*((DAY(DATE(YEAR(C4),MONTH(C4)+1,1)-1)-DAY(C4)+1)))) -> 0 | U4: 1
C5: =IF(U6=0,0,IF(DAY(C6)=1,(DAY(DATE(YEAR(C6),MONTH(C6)+1,1)-1)),(DAY(DATE(YEAR(C6),MONTH(C6)+1,1)-1)-DAY(C6)+1))) -> 12 | G5: =IF(U5=0,0,IF(OR(DAY(C5)=1,MONTH(C5)<>MONTH(TODAY()),YEAR(C5)<>YEAR(TODAY())),T5*((DAY(DATE(YEAR(C5),MONTH(C5)+1,1)-1))),T5*((DAY(DATE(YEAR(C5),MONTH(C5)+1,1)-1)-DAY(C5)+1)))) -> 0 | U5: 0
C6: 2017-08-20 | G6: =IF(U6=0,0,IF(OR(DAY(C6)=1,MONTH(C6)<>MONTH(TODAY()),YEAR(C6)<>YEAR(TODAY())),((DAY(DATE(YEAR(TODAY()),MONTH(TODAY())+1,1)-1))),((DAY(DATE(YEAR(TODAY()),MONTH(TODAY())+1,1)-1)-DAY(C6)+1)))) -> 30 | T6: 2 | U6: 1
G7: =IF(U6=0,0,IF(OR(DAY(C6)=1,MONTH(C6)<>MONTH(TODAY()),YEAR(C6)<>YEAR(TODAY())),((DAY(DATE(YEAR(C6),MONTH(C6)+1,1)-1))),((DAY(DATE(YEAR(C6),MONTH(C6)+1,1)-1)-DAY(C6)+1)))) -> 31
G8: =(DAY(DATE(YEAR(TODAY()),MONTH(TODAY())+1,1)-1)) -> 30
